Service Area,Service Division,Expense Type,Expense Code,Detailed Expense Type,Payment Date,Transaction Number,Amount Exc VAT,Supplier Name
Neighbourhoods and Climate Change,Environmental Services,Third Party Payments,430100,Rendered by Private Contractors,01/09/2021,3906596-3134,837.00,A & J GUTHRIE.
Adult and Health Services,Head of Adults,Third Party Payments,470101,Purchase of Care,01/09/2021,3906781-I-21-1476295,"79,118.41",A CHARLES THOMAS (CARE) LTD.
Children and Young Peoples Services,Head of Childrens Social Care,Third Party Payments,425021,Rendered by Voluntary Organisations,01/09/2021,3906782-PIG_104998,"7,650.00",A WILDERNESS WAY LTD.
Children and Young Peoples Services,Head of Childrens Social Care,Third Party Payments,425040,Rendered by Voluntary Organisations,01/09/2021,3906783-PIG_104993,"14,840.00",A1 FOSTER CARE.
Children and Young Peoples Services,Head of Childrens Social Care,Third Party Payments,425040,Rendered by Voluntary Organisations,01/09/2021,3906812-PIG_105580,"32,442.91",ACORN CARE (NE) LTD.
Children and Young Peoples Services,Head of Childrens Social Care,Third Party Payments,425040,Rendered by Voluntary Organisations,01/09/2021,3906813-PIG_105572,"9,128.64",ACORN HOUSE (FOSTERING SERVICES) LTD.
Adult and Health Services,Head of Adults,Third Party Payments,479140,Purchase of Care,01/09/2021,3906816-SUSTAINABILITYPAYMENT17/21,"1,227.88",AKARI CARE LTD.
Adult and Health Services,Head of Adults,Third Party Payments,474101,Purchase of Care,01/09/2021,3906818-I-21-1476556,"14,418.00",AKARI CARE LTD.
Adult and Health Services,Head of Adults,Third Party Payments,474101,Purchase of Care,01/09/2021,3906815-I-21-1476470,"2,559.24",AKARI CARE LTD.
Adult and Health Services,Head of Adults,Third Party Payments,470101,Purchase of Care,01/09/2021,3906817-I-21-1476332,"69,762.07",AKARI CARE LTD.
Adult and Health Services,Head of Adults,Third Party Payments,470101,Purchase of Care,01/09/2021,3906816-I-21-1476538,"95,275.86",AKARI CARE LTD.
Children and Young Peoples Services,Head of Childrens Social Care,Third Party Payments,425021,Rendered by Voluntary Organisations,01/09/2021,3906819-PIG_104964,"32,844.80",ALEXANDERS HOUSE.
Adult and Health Services,Head of Adults,Third Party Payments,474101,Purchase of Care,01/09/2021,3906822-I-21-1476337,"119,402.06",ALLIANCE CARE (TRENDLEWOOD) LTD.
Adult and Health Services,Head of Adults,Third Party Payments,470101,Purchase of Care,01/09/2021,3906823-I-21-1476472,"7,224.00",ANCHOR CAREHOMES LTD.
Adult and Health Services,Head of Adults,Third Party Payments,470101,Purchase of Care,01/09/2021,3906824-I-21-1476429,"64,389.73",ANCHOR HANOVER GROUP.
Adult and Health Services,Head of Adults,Third Party Payments,470101,Purchase of Care,01/09/2021,3906825-I-21-1476444,"2,600.00",ANCHOR HANOVER GROUP.
Adult and Health Services,Head of Adults,Third Party Payments,470101,Purchase of Care,01/09/2021,3906826-I-21-1476555,"9,392.00",ANCHOR TRUST.
Adult and Health Services,Head of Adults,Third Party Payments,470101,Purchase of Care,01/09/2021,3906827-I-21-1476562,"2,176.64",REDACTED - PAYMENT TO INDIVIDUAL
"Regeneration, Economy and Growth",Development and Housing,Supplies and Services,384700,Miscellaneous Expenses,01/09/2021,3906601-RED-08-2021-188,500.00,ANTALYA BARBERS.
Adult and Health Services,Head of Adults,Third Party Payments,470101,Purchase of Care,01/09/2021,3906828-I-21-1476495,"41,904.04",ASCOT CARE NORTH EAST LTD..
Adult and Health Services,Head of Adults,Third Party Payments,470101,Purchase of Care,01/09/2021,3906829-I-21-1476481,"4,080.00",ASHBERRY HEALTH CARE LTD T/A MOORHOUSE NURSING HOME.
Adult and Health Services,Head of Adults,Third Party Payments,470101,Purchase of Care,01/09/2021,3906830-I-21-1309315,"2,667.16",ASHBOURNE LODGE CARE HOME.
Adult and Health Services,Head of Adults,Third Party Payments,470101,Purchase of Care,01/09/2021,3906830-I-21-1476546,"2,667.16",ASHBOURNE LODGE CARE HOME.
"Regeneration, Economy and Growth",Culture Sport and Tourism,Supplies and Services,312013,Newspapers books and periodicals E312,01/09/2021,3906604-6548322,844.37,ASKEWS & HOLTS LIBRARY SERVICES LTD.
Adult and Health Services,Head of Adults,Third Party Payments,470101,Purchase of Care,01/09/2021,3906831-I-21-1476499,"1,324.72",ASPIRE CARE GROUP T/A GRASMERE LODGE.
Adult and Health Services,Head of Adults,Third Party Payments,470101,Purchase of Care,01/09/2021,3906832-I-21-1476473,"10,665.16",ASPIRE CARE GROUP.
Adult and Health Services,Head of Adults,Third Party Payments,470101,Purchase of Care,01/09/2021,3906833-I-21-1476401,"4,633.92",ASPIRE CARE GROUP.
Adult and Health Services,Head of Adults,Third Party Payments,470101,Purchase of Care,01/09/2021,3906834-I-21-1476324,"11,314.44",ASPIRE CARE GROUP.
Adult and Health Services,Head of Adults,Third Party Payments,474101,Purchase of Care,01/09/2021,3906835-I-21-1476536,"2,400.00",ASTORIA HEALTHCARE LTD.
Adult and Health Services,Head of Adults,Third Party Payments,474101,Purchase of Care,01/09/2021,3906836-I-21-1476446,"4,401.20",ATLAS CARE HOMES LTD.
Adult and Health Services,Head of Adults,Third Party Payments,474101,Purchase of Care,01/09/2021,3906837-I-21-1476412,"1,539.20",ATLAS CARE HOMES LTD.
Adult and Health Services,Head of Adults,Third Party Payments,470101,Purchase of Care,01/09/2021,3906839-I-21-1476392,"19,994.65",AUTISM CARE UK (4) LTD.
Neighbourhoods and Climate Change,Environmental Services,Supplies and Services,304259,Equipment and Materials,01/09/2021,3906605-INV146623,729.24,AZTEC CHEMICALS LTD.
Neighbourhoods and Climate Change,Technical Services CM0300,Supplies and Services,304358,Equipment and Materials,01/09/2021,3906606-MG07552,934.00,BAILEY CONCRETE PUMPING LTD.
Neighbourhoods and Climate Change,Technical Services CM0300,Supplies and Services,304358,Equipment and Materials,01/09/2021,3906606-MG07553,750.00,BAILEY CONCRETE PUMPING LTD.
Adult and Health Services,Head of Adults,Third Party Payments,474101,Purchase of Care,01/09/2021,3906846-I-21-1476422,"38,957.32",BARCHESTER HEALTHCARE HOMES LTD.
Adult and Health Services,Head of Adults,Third Party Payments,474101,Purchase of Care,01/09/2021,3906841-I-21-1476558,"33,087.32",BARCHESTER HEALTHCARE HOMES LTD.
Adult and Health Services,Head of Adults,Third Party Payments,474101,Purchase of Care,01/09/2021,3906841-I-21-1476408,"7,693.34",BARCHESTER HEALTHCARE HOMES LTD.
Adult and Health Services,Head of Adults,Third Party Payments,470101,Purchase of Care,01/09/2021,3906840-I-21-1476410,"1,233.12",BARCHESTER HEALTHCARE HOMES LTD.
Adult and Health Services,Head of Adults,Third Party Payments,470101,Purchase of Care,01/09/2021,3906844-I-21-1476477,"2,412.00",BARCHESTER HEALTHCARE HOMES LTD.
Adult and Health Services,Head of Adults,Third Party Payments,470101,Purchase of Care,01/09/2021,3906845-I-21-1309339,"5,436.57",BARCHESTER HEALTHCARE HOMES LTD.
Adult and Health Services,Head of Adults,Third Party Payments,470101,Purchase of Care,01/09/2021,3906845-I-21-1476570,"2,144.00",BARCHESTER HEALTHCARE HOMES LTD.
Adult and Health Services,Head of Adults,Third Party Payments,470101,Purchase of Care,01/09/2021,3906843-I-21-1309061,728.00,BARCHESTER HEALTHCARE HOMES LTD.
Adult and Health Services,Head of Adults,Third Party Payments,470101,Purchase of Care,01/09/2021,3906842-I-21-1476399,"9,798.00",BARCHESTER HEALTHCARE HOMES LTD.
Adult and Health Services,Head of Adults,Third Party Payments,470101,Purchase of Care,01/09/2021,3906847-I-21-1476434,"4,400.00",BARCHESTER HEALTHCARE HOMES LTD.
Adult and Health Services,Head of Adults,Third Party Payments,470101,Purchase of Care,01/09/2021,3906843-I-21-1476491,"85,648.23",BARCHESTER HEALTHCARE HOMES LTD.
Children and Young Peoples Services,Head of Childrens Social Care,Third Party Payments,425040,Rendered by Voluntary Organisations,01/09/2021,3906848-PIG_105560,"26,804.36",BARNARDOS BELIEVE IN CHILDREN.
Neighbourhoods and Climate Change,Environmental Services,Supplies and Services,342051,Computers and Communications,01/09/2021,3906608-SI/75319,"49,681.32",BARTEC AUTO ID.
Neighbourhoods and Climate Change,Environmental Services,Supplies and Services,304259,Equipment and Materials,01/09/2021,3906609-SI681999,"1,939.92",BARUCH ENTERPRISES LTD.
Children and Young Peoples Services,Head of Childrens Social Care,Third Party Payments,425021,Rendered by Voluntary Organisations,01/09/2021,3906849-PIG_104997,"63,520.76",BDT CARE SOLUTIONS LTD.
Children and Young Peoples Services,Head of Childrens Social Care,Third Party Payments,425021,Rendered by Voluntary Organisations,01/09/2021,3906849-PIG_104999,"12,619.08",BDT CARE SOLUTIONS LTD.
Children and Young Peoples Services,Head of Childrens Social Care,Third Party Payments,425021,Rendered by Voluntary Organisations,01/09/2021,3906849-PIG_105570,"16,841.01",BDT CARE SOLUTIONS LTD.
Children and Young Peoples Services,Head of Childrens Social Care,Third Party Payments,425021,Rendered by Voluntary Organisations,01/09/2021,3906849-PIG_105571,"46,521.12",BDT CARE SOLUTIONS LTD.
Adult and Health Services,Central/Other,Creditors,952287,Creditor-DHSC Infection Control Grant,01/09/2021,3906610-INFECTIONCONTROLFUND4/175,"3,384.36",BEAMISH RESIDENTIAL CARE HOME LTD.
Adult and Health Services,Central/Other,Creditors,952288,Creditor-DHSC Rapid Testing Fund Grant,01/09/2021,3906610-RAPIDTESTINGFUND4/348,"3,668.91",BEAMISH RESIDENTIAL CARE HOME LTD.
Adult and Health Services,Head of Adults,Third Party Payments,470101,Purchase of Care,01/09/2021,3906850-I-21-1476517,"20,218.46",BENTON CARE SERVICES LTD.
Adult and Health Services,Commissioning inc Supporting People,Supplies and Services,338066,Services,01/09/2021,3906611-10126952,"1,436.00",BEVAN BRITTAN LLP.
"Regeneration, Economy and Growth",Culture Sport and Tourism,Supplies and Services,304359,Equipment and Materials,01/09/2021,3906612-BMPR/701/SKIPS,673.05,BISHOP MIDDLEHAM PLANT & RECYCLING LTD.
"Regeneration, Economy and Growth",Corporate Property and Land,Supplies and Services,304359,Equipment and Materials,01/09/2021,3906612-BMPR/700/SKIPS,673.05,BISHOP MIDDLEHAM PLANT & RECYCLING LTD.
Adult and Health Services,Central/Other,Creditors,952287,Creditor-DHSC Infection Control Grant,01/09/2021,3906615-INFECTIONCONTROLFUND4/178,892.67,BLOSSOM HOME CARE.
Adult and Health Services,Head of Adults,Third Party Payments,474101,Purchase of Care,01/09/2021,3906853-I-21-1476449,"89,888.12",BONDCARE WILLINGTON LTD.
Adult and Health Services,Head of Adults,Third Party Payments,470101,Purchase of Care,01/09/2021,3906852-I-21-1476403,"71,148.95",BONDCARE WILLINGTON LTD.
Adult and Health Services,Head of Adults,Third Party Payments,470101,Purchase of Care,01/09/2021,3906854-I-21-1476551,"107,066.95",BONDCARE WILLINGTON LTD.
Adult and Health Services,Head of Adults,Third Party Payments,478151,Purchase of Care,01/09/2021,3906854-CB32,"2,943.43",BONDCARE WILLINGTON LTD.
Adult and Health Services,Head of Adults,Third Party Payments,470101,Purchase of Care,01/09/2021,3906855-I-21-1476330,"4,412.00",BOWDEN DERRA PARK LTD.
Adult and Health Services,Head of Adults,Third Party Payments,470101,Purchase of Care,01/09/2021,3906856-I-21-1476450,"4,312.22",BRIARDENE PRIVATE RESIDENTIAL & NURSING HOME.
Adult and Health Services,Head of Adults,Third Party Payments,470101,Purchase of Care,01/09/2021,3906857-I-21-1476569,"55,710.62",BROOMHOUSE CARE LTD.
Adult and Health Services,Head of Adults,Third Party Payments,470101,Purchase of Care,01/09/2021,3906858-I-21-1476317,"3,957.14",BURLINGTON CARE LTD.
Children and Young Peoples Services,Head of Childrens Social Care,Third Party Payments,425021,Rendered by Voluntary Organisations,01/09/2021,3906860-PIG_104319,"27,300.00",CAMBIAN CHILDCARE LTD T/A HARTLEPOOL SCHOOL.
Children and Young Peoples Services,Head of Childrens Social Care,Third Party Payments,425023,Rendered by Voluntary Organisations,01/09/2021,3906860-PIG_104318,"10,716.85",CAMBIAN CHILDCARE LTD T/A HARTLEPOOL SCHOOL.
Children and Young Peoples Services,Head of Childrens Social Care,Third Party Payments,425023,Rendered by Voluntary Organisations,01/09/2021,3906861-PIG_104965,"25,501.08",CAMBIAN WHINFELL SCHOOL LTD.
Adult and Health Services,Head of Adults,Third Party Payments,474101,Purchase of Care,01/09/2021,3906864-I-21-1476423,"111,155.44",CARE UK COMMUNITY PARTNERSHIPS LTD.
Adult and Health Services,Head of Adults,Third Party Payments,470101,Purchase of Care,01/09/2021,3906867-I-21-1476453,"5,246.44",CARE UK COMMUNITY PARTNERSHIPS LTD.
Adult and Health Services,Head of Adults,Third Party Payments,470101,Purchase of Care,01/09/2021,3906863-I-21-1476425,"2,496.00",CARE UK COMMUNITY PARTNERSHIPS LTD.
Adult and Health Services,Head of Adults,Third Party Payments,470101,Purchase of Care,01/09/2021,3906866-I-21-1476458,"26,360.64",CARE UK COMMUNITY PARTNERSHIPS LTD.
Adult and Health Services,Head of Adults,Third Party Payments,470101,Purchase of Care,01/09/2021,3906868-I-21-1476511,"2,397.36",CARE UK COMMUNITY PARTNERSHIPS LTD.
Adult and Health Services,Head of Adults,Third Party Payments,470101,Purchase of Care,01/09/2021,3906862-I-21-1476560,"5,413.68",CARE UK COMMUNITY PARTNERSHIPS LTD.
Adult and Health Services,Head of Adults,Third Party Payments,470101,Purchase of Care,01/09/2021,3906865-I-21-1476488,"39,327.72",CARE UK COMMUNITY PARTNERSHIPS LTD.
Adult and Health Services,Head of Adults,Third Party Payments,474101,Purchase of Care,01/09/2021,3906871-I-21-1476380,"13,431.52",CARELINE LIFESTYLES (UK) LTD.
Adult and Health Services,Head of Adults,Third Party Payments,474101,Purchase of Care,01/09/2021,3906872-I-21-1476355,"8,298.76",CARELINE LIFESTYLES (UK) LTD.
Adult and Health Services,Head of Adults,Third Party Payments,470101,Purchase of Care,01/09/2021,3906870-I-21-1476398,"3,676.96",CARELINE LIFESTYLES (UK) LTD.
Adult and Health Services,Head of Adults,Third Party Payments,470101,Purchase of Care,01/09/2021,3906869-I-21-1476508,"2,796.52",CARELINE LIFESTYLES (UK) LTD.
Adult and Health Services,Head of Adults,Third Party Payments,474101,Purchase of Care,01/09/2021,3906873-I-21-1476416,"21,146.73",CARELINE LIFESTYLES.
Adult and Health Services,Head of Adults,Third Party Payments,474101,Purchase of Care,01/09/2021,3906874-I-21-1476553,"64,662.24",CAREWELL (HEALTH CARE) LTD.
Adult and Health Services,Head of Adults,Third Party Payments,470101,Purchase of Care,01/09/2021,3906875-I-21-1476343,"24,296.02",CASTLEBANK CARE HOME LTD.
Neighbourhoods and Climate Change,Environmental Services,Construction work A908,908105,Construction work,01/09/2021,3906618-73082,"1,100.00",CEMETERY DEVELOPMENT SERVICES LTD.
Children and Young Peoples Services,Head of Childrens Social Care,Third Party Payments,425040,Rendered by Voluntary Organisations,01/09/2021,3906876-PIG_105595,"1,518.66",CHANGING FUTURES FOSTERING.
Neighbourhoods and Climate Change,Environmental Services,Supplies and Services,384199,Miscellaneous Expenses,01/09/2021,3906619-60850,"25,736.00",CHEVIOT TREES LTD.
Children and Young Peoples Services,Head of Childrens Social Care,Third Party Payments,425040,Rendered by Voluntary Organisations,01/09/2021,3906878-PIG_105575,"38,722.07",CHILDRENS FAMILY TRUST.
Adult and Health Services,Head of Adults,Third Party Payments,470101,Purchase of Care,01/09/2021,3906880-I-21-1476437,"2,360.00",CLEVEDEN CARE LTD T/A TEESDALE LODGE NURSING HOME.
Adult and Health Services,Head of Adults,Third Party Payments,478151,Purchase of Care,01/09/2021,3906625-421R175750,"5,555.88",COMMUNITY INTEGRATED CARE LTD.
Adult and Health Services,Head of Adults,Third Party Payments,478151,Purchase of Care,01/09/2021,3906625-421R175782,"9,712.00",COMMUNITY INTEGRATED CARE LTD.
Adult and Health Services,Head of Adults,Third Party Payments,478151,Purchase of Care,01/09/2021,3906626-421R175749,"7,800.00",COMMUNITY INTEGRATED CARE LTD.
Adult and Health Services,Head of Adults,Third Party Payments,470101,Purchase of Care,01/09/2021,3906881-I-21-1476564,"8,167.16",CONSENSUS SUPPORT SERVICES LTD.
Resources BK0010,Legal & Democratic Services,Supplies and Services,338025,Services,01/09/2021,3906623-S44995-02033,"1,100.00",CO-OPERATIVE FUNERAL CARE.
Resources BK0010,Legal & Democratic Services,Supplies and Services,338025,Services,01/09/2021,3906623-S45008-01189,580.00,CO-OPERATIVE FUNERAL CARE.
Adult and Health Services,Head of Adults,Third Party Payments,474101,Purchase of Care,01/09/2021,3906885-I-21-1476371,"4,144.52",COUNTRYWIDE CARE HOMES (2) LTD.
Adult and Health Services,Head of Adults,Third Party Payments,474101,Purchase of Care,01/09/2021,3906883-I-21-1476550,"69,009.35",COUNTRYWIDE CARE HOMES (2) LTD.
Adult and Health Services,Head of Adults,Third Party Payments,470101,Purchase of Care,01/09/2021,3906887-I-21-1476496,"2,465.76",COUNTRYWIDE CARE HOMES (2) LTD.
Adult and Health Services,Head of Adults,Third Party Payments,470101,Purchase of Care,01/09/2021,3906886-I-21-1309091,"101,378.39",COUNTRYWIDE CARE HOMES (2) LTD.
Adult and Health Services,Head of Adults,Third Party Payments,470101,Purchase of Care,01/09/2021,3906886-I-21-1476360,"105,222.65",COUNTRYWIDE CARE HOMES (2) LTD.
Adult and Health Services,Head of Adults,Third Party Payments,470101,Purchase of Care,01/09/2021,3906884-I-21-1476501,"43,529.18",COUNTRYWIDE CARE HOMES (2) LTD.
Adult and Health Services,Head of Adults,Third Party Payments,474101,Purchase of Care,01/09/2021,3906888-I-21-1476545,"60,602.42",CRAIGARRAN LTD.
Adult and Health Services,Head of Adults,Third Party Payments,474101,Purchase of Care,01/09/2021,3906889-I-21-1476350,"51,335.45",CROFT HOUSE (CARE) LTD.
Adult and Health Services,Head of Adults,Third Party Payments,474101,Purchase of Care,01/09/2021,3906890-I-21-1476291,"1,779.20",CROWN CARE IV LTD T/A BALMORAL COURT.
Adult and Health Services,Head of Adults,Third Party Payments,474101,Purchase of Care,01/09/2021,3906891-I-21-1476383,"134,354.60",CROWN CARE VI LTD.
Adult and Health Services,Head of Adults,Third Party Payments,474101,Purchase of Care,01/09/2021,3906892-I-21-1476466,"10,182.52",CYGNET OE LTD.
Adult and Health Services,Head of Adults,Third Party Payments,470101,Purchase of Care,01/09/2021,3906892-794532,"1,903.44",CYGNET OE LTD.
Adult and Health Services,Head of Adults,Third Party Payments,479140,Purchase of Care,01/09/2021,3906893-SUSTAINABILITYPAYMENT17/20,"22,286.62",D3 CARE LTD.
Adult and Health Services,Head of Adults,Third Party Payments,474101,Purchase of Care,01/09/2021,3906894-I-21-1476335,"16,679.76",D3 CARE LTD.
Adult and Health Services,Head of Adults,Third Party Payments,470101,Purchase of Care,01/09/2021,3906893-I-21-1476303,"44,386.41",D3 CARE LTD.
Adult and Health Services,Head of Adults,Third Party Payments,478151,Purchase of Care,01/09/2021,3906638-INV-0889,"1,708.80",DEACONSTAR LTD.
Adult and Health Services,Head of Adults,Third Party Payments,478151,Purchase of Care,01/09/2021,3906638-INV-0890,"2,521.41",DEACONSTAR LTD.
Adult and Health Services,Head of Adults,Third Party Payments,478151,Purchase of Care,01/09/2021,3906638-INV-0891,"2,160.00",DEACONSTAR LTD.
Adult and Health Services,Head of Adults,Third Party Payments,470101,Purchase of Care,01/09/2021,3906897-I-21-1476387,"47,083.14",DEVONSHIRE HOUSE CARE LTD.
Adult and Health Services,Head of Adults,Third Party Payments,479140,Purchase of Care,01/09/2021,3906898-SUSTAINABILITYPAYMENT17/6,"1,861.80",DIPTON CARE HOME LTD.
Adult and Health Services,Head of Adults,Third Party Payments,470101,Purchase of Care,01/09/2021,3906898-I-21-1476452,"76,986.59",DIPTON CARE HOME LTD.
Children and Young Peoples Services,Head of Childrens Social Care,Third Party Payments,425040,Rendered by Voluntary Organisations,01/09/2021,3906899-PIG_105573,"4,498.20",DIVERSE CARE UK LTD.
Adult and Health Services,Head of Adults,Third Party Payments,474101,Purchase of Care,01/09/2021,3906901-I-21-1476498,"9,647.12",DUNLUCE HOUSE T/A BOHILL BUNGALOWS.
Adult and Health Services,Head of Adults,Third Party Payments,474101,Purchase of Care,01/09/2021,3906902-I-21-1476497,"69,543.59",DURHAM CARELINE LTD.
Adult and Health Services,Head of Adults,Third Party Payments,474101,Purchase of Care,01/09/2021,3906904-I-21-1476557,"98,016.20",DURHAM CARELINE LTD.
Adult and Health Services,Head of Adults,Third Party Payments,474101,Purchase of Care,01/09/2021,3906903-I-21-1476411,"52,834.08",DURHAM CARELINE LTD.
Adult and Health Services,Head of Adults,Third Party Payments,474101,Purchase of Care,01/09/2021,3906904-I-21-1309326,"91,301.38",DURHAM CARELINE LTD.
Children and Young Peoples Services,Head of Childrens Social Care,Third Party Payments,425021,Rendered by Voluntary Organisations,01/09/2021,3906905-PIG_104321,"34,400.00",DUTY OF CARE LTD.
Children and Young Peoples Services,Head of Childrens Social Care,Third Party Payments,425021,Rendered by Voluntary Organisations,01/09/2021,3906905-PIG_105563,"37,200.00",DUTY OF CARE LTD.
"Regeneration, Economy and Growth",Development and Housing,Cap Exp on Grants & Other Financial Assistance (REFCUS),918501,Exp assets not owned by authority,01/09/2021,3906641-RED-08-2021-181,"2,014.22",E LANGTON T/A S & E BUILDERS.
Adult and Health Services,Head of Adults,Third Party Payments,474101,Purchase of Care,01/09/2021,3906906-I-21-1476487,"2,625.48",EAST CHESHIRE HOUSING CONSORTIUM LTD.
Adult and Health Services,Head of Adults,Third Party Payments,474101,Purchase of Care,01/09/2021,3906907-I-21-1476373,"2,132.76",EAST CLEVELAND M S HOME.
Adult and Health Services,Public Health CC0450,Supplies and Services,384899,Miscellaneous Expenses,01/09/2021,3906642-CAS-08-2021-132,"9,122.00",EAST DURHAM COMMUNITY TRANSPORT LTD.
Neighbourhoods and Climate Change,Environmental Services,Third Party Payments,430100,Rendered by Private Contractors,01/09/2021,3906643-INV-658,"2,100.00",ECO ENTERPRISES LTD.
Neighbourhoods and Climate Change,Environmental Services,Supplies and Services,338066,Services,01/09/2021,3906647-2324,"6,000.00",ECONOMIC RESEARCH SERVICES LTD T/A ERS RESEARCH & CONSULTANCY.
"Regeneration, Economy and Growth",Corporate Property and Land,Supplies and Services,304221,Equipment and Materials,01/09/2021,3906645-059-286638,"14,454.66",EDMUNDSON ELECTRICAL LTD.
Resources BK0010,Digital and Customer Services,Supplies and Services,384156,Miscellaneous Expenses,01/09/2021,3906645-059-286950,801.36,EDMUNDSON ELECTRICAL LTD.
Adult and Health Services,Head of Adults,Third Party Payments,470101,Purchase of Care,01/09/2021,3906910-I-21-1476475,"10,200.24",EDUCATION & SERVICES FOR PEOPLE WITH AUTISM LTD (ESPA).
Adult and Health Services,Head of Adults,Third Party Payments,470101,Purchase of Care,01/09/2021,3906908-I-21-1476374,"6,489.84",EDUCATION & SERVICES FOR PEOPLE WITH AUTISM LTD (ESPA).
Adult and Health Services,Head of Adults,Third Party Payments,470101,Purchase of Care,01/09/2021,3906908-I-21-1476451,"5,374.92",EDUCATION & SERVICES FOR PEOPLE WITH AUTISM LTD (ESPA).
Adult and Health Services,Head of Adults,Third Party Payments,470101,Purchase of Care,01/09/2021,3906909-I-21-1476524,"11,554.80",EDUCATION & SERVICES FOR PEOPLE WITH AUTISM LTD (ESPA).
Adult and Health Services,Head of Adults,Third Party Payments,470101,Purchase of Care,01/09/2021,3906911-I-21-1476348,"8,843.80",EDUCATION & SERVICES FOR PEOPLE WITH AUTISM LTD (ESPA).
Adult and Health Services,Head of Adults,Third Party Payments,470101,Purchase of Care,01/09/2021,3906912-I-21-1476417,"48,891.17",ELBA CARE LTD.
Adult and Health Services,Head of Adults,Third Party Payments,470101,Purchase of Care,01/09/2021,3906914-I-21-1476548,"5,676.96",ELLERSHAW HOUSE LTD.
Adult and Health Services,Head of Adults,Third Party Payments,470101,Purchase of Care,01/09/2021,3906915-I-21-1476357,"2,952.04",ELPHA LODGE RESIDENTIAL CARE HOME  LTD.
Adult and Health Services,Head of Adults,Third Party Payments,470101,Purchase of Care,01/09/2021,3906918-I-21-1476353,"2,670.88",EOTHEN HOMES LTD.
Adult and Health Services,Head of Adults,Third Party Payments,470101,Purchase of Care,01/09/2021,3906917-I-21-1476469,"1,276.68",EOTHEN HOMES LTD.
Adult and Health Services,Head of Adults,Third Party Payments,470101,Purchase of Care,01/09/2021,3906919-I-21-1476518,"68,831.71",ESSENTIAL CARE & SUPPORT LTD.
Children and Young Peoples Services,Head of Childrens Social Care,Third Party Payments,425021,Rendered by Voluntary Organisations,01/09/2021,3906920-PIG_104322,"12,800.00",EVOLUTION CHILDRENS SERVICES LTD.
Adult and Health Services,Head of Adults,Third Party Payments,470101,Purchase of Care,01/09/2021,3906921-I-21-1476438,"2,348.00",EXCLUSIVE CARE GROUP T/A EASTBOURNE CARE HOME.
Neighbourhoods and Climate Change,Technical Services CM0300,Stock A926,926900,Stock in hand-Inventory system,01/09/2021,3906648-138385,"2,219.40",FABRIKAT (NOTTINGHAM) LTD.
Children and Young Peoples Services,Head of Childrens Social Care,Third Party Payments,425040,Rendered by Voluntary Organisations,01/09/2021,3906923-PIG_104299,"13,203.00",FIVE RIVERS CHILD CARE LTD.
Neighbourhoods and Climate Change,Environmental Services,Supplies and Services,304259,Equipment and Materials,01/09/2021,3906649-INV-031111,"1,200.00",FOCUS PEST & DRAINAGE SERVICES LTD.
Children and Young Peoples Services,Head of Childrens Social Care,Third Party Payments,425040,Rendered by Voluntary Organisations,01/09/2021,3906924-PIG_105581,"66,092.88",FOSTER CARE ASSOCIATES LTD.
Children and Young Peoples Services,Head of Childrens Social Care,Third Party Payments,425040,Rendered by Voluntary Organisations,01/09/2021,3906925-PIG_105578,"43,039.56",FOSTER CARE SOLUTIONS LTD.
Children and Young Peoples Services,Head of Childrens Social Care,Third Party Payments,425040,Rendered by Voluntary Organisations,01/09/2021,3906926-PIG_105558,"28,021.61",FOSTER CARES LTD.
Children and Young Peoples Services,Head of Childrens Social Care,Third Party Payments,425040,Rendered by Voluntary Organisations,01/09/2021,3906927-PIG_104306,"23,684.06",FOSTERING PEOPLE LTD.
Adult and Health Services,Head of Adults,Third Party Payments,470101,Purchase of Care,01/09/2021,3906928-I-21-1476500,"73,072.57",FOUR SEASONS (NO 9) LTD.
Adult and Health Services,Head of Adults,Third Party Payments,470101,Purchase of Care,01/09/2021,3906929-I-21-1476308,"49,264.50",FOUR SEASONS HOMES NO 1 LTD.
Adult and Health Services,Head of Adults,Third Party Payments,470101,Purchase of Care,01/09/2021,3906930-I-21-1476476,"2,667.16",FOUR SEASONS T/A MAPLE LODGE CARE HOME (SUNDERLAND).
Adult and Health Services,Head of Adults,Third Party Payments,474101,Purchase of Care,01/09/2021,3906937-I-21-1476378,"13,454.33",GAINFORD CARE HOMES LTD.
Adult and Health Services,Head of Adults,Third Party Payments,474101,Purchase of Care,01/09/2021,3906933-I-21-1476420,"84,366.26",GAINFORD CARE HOMES LTD.
Adult and Health Services,Head of Adults,Third Party Payments,470101,Purchase of Care,01/09/2021,3906932-I-21-1476464,"78,848.09",GAINFORD CARE HOMES LTD.
Adult and Health Services,Head of Adults,Third Party Payments,470101,Purchase of Care,01/09/2021,3906936-I-21-1476318,"56,666.88",GAINFORD CARE HOMES LTD.
Adult and Health Services,Head of Adults,Third Party Payments,470101,Purchase of Care,01/09/2021,3906935-I-21-1476454,"96,671.81",GAINFORD CARE HOMES LTD.
Adult and Health Services,Head of Adults,Third Party Payments,470101,Purchase of Care,01/09/2021,3906936-I-21-1476554,"76,262.09",GAINFORD CARE HOMES LTD.
Adult and Health Services,Head of Adults,Third Party Payments,470101,Purchase of Care,01/09/2021,3906934-I-21-1476382,"87,167.21",GAINFORD CARE HOMES LTD.
Neighbourhoods and Climate Change,Technical Services CM0300,Premises,150015,Apportioned Exps of Operational Blds,01/09/2021,3906654-411912401,748.00,GAP GROUP LTD.
Neighbourhoods and Climate Change,Technical Services CM0300,Premises,150015,Apportioned Exps of Operational Blds,01/09/2021,3906654-411912402,748.00,GAP GROUP LTD.
Neighbourhoods and Climate Change,Technical Services CM0300,Premises,150015,Apportioned Exps of Operational Blds,01/09/2021,3906654-411912406,"1,100.00",GAP GROUP LTD.
Children and Young Peoples Services,Head of Childrens Social Care,Third Party Payments,425020,Rendered by Voluntary Organisations,01/09/2021,3906938-PIG_105596,"4,203.00",GATESHEAD COUNCIL.
Adult and Health Services,Head of Adults,Third Party Payments,470101,Purchase of Care,01/09/2021,3906942-I-21-1476325,"2,444.00",GREATHAM HOSPITAL BROTHER HOUSE.
Neighbourhoods and Climate Change,Technical Services CM0300,Stock A926,926900,Stock in hand-Inventory system,01/09/2021,3906659-06/136314,573.87,GREENHAM TRADING LTD.
Adult and Health Services,Head of Adults,Third Party Payments,479140,Purchase of Care,01/09/2021,3906946-SUSTAINABILITYPAYMENT17/15,"22,101.84",HC-ONE BEAMISH LTD.
Adult and Health Services,Head of Adults,Third Party Payments,479140,Purchase of Care,01/09/2021,3906950-SUSTAINABILITYPAYMENT17/12,"2,473.52",HC-ONE BEAMISH LTD.
Adult and Health Services,Head of Adults,Third Party Payments,474101,Purchase of Care,01/09/2021,3906950-I-21-1476463,"100,022.95",HC-ONE BEAMISH LTD.
Adult and Health Services,Head of Adults,Third Party Payments,470101,Purchase of Care,01/09/2021,3906949-I-21-1476523,"68,431.00",HC-ONE BEAMISH LTD.
Adult and Health Services,Head of Adults,Third Party Payments,470101,Purchase of Care,01/09/2021,3906946-I-21-1476321,"59,939.72",HC-ONE BEAMISH LTD.
Adult and Health Services,Head of Adults,Third Party Payments,470101,Purchase of Care,01/09/2021,3906945-I-21-1476298,"2,558.44",HC-ONE BEAMISH LTD.
Adult and Health Services,Head of Adults,Third Party Payments,470101,Purchase of Care,01/09/2021,3906947-I-21-1476389,"124,436.16",HC-ONE BEAMISH LTD.
Adult and Health Services,Head of Adults,Third Party Payments,470101,Purchase of Care,01/09/2021,3906948-I-21-1476301,"89,911.43",HC-ONE BEAMISH LTD.
Adult and Health Services,Head of Adults,Third Party Payments,470101,Purchase of Care,01/09/2021,3906951-I-21-1476296,"1,156.52",HC-ONE LTD (ASHTON GRANGE CARE HOME).
Adult and Health Services,Head of Adults,Third Party Payments,474101,Purchase of Care,01/09/2021,3906954-I-21-1476460,"47,837.26",HC-ONE LTD.
Adult and Health Services,Head of Adults,Third Party Payments,470101,Purchase of Care,01/09/2021,3906952-I-21-1476534,"58,283.54",HC-ONE LTD.
Adult and Health Services,Head of Adults,Third Party Payments,470101,Purchase of Care,01/09/2021,3906955-I-21-1476456,"87,663.88",HC-ONE LTD.
Adult and Health Services,Head of Adults,Third Party Payments,470101,Purchase of Care,01/09/2021,3906959-I-21-1476424,"72,515.81",HC-ONE LTD.
Adult and Health Services,Head of Adults,Third Party Payments,470101,Purchase of Care,01/09/2021,3906958-I-21-1476440,"2,807.96",HC-ONE LTD.
Adult and Health Services,Head of Adults,Third Party Payments,470101,Purchase of Care,01/09/2021,3906953-I-21-1476483,"42,491.11",HC-ONE LTD.
Adult and Health Services,Head of Adults,Third Party Payments,470101,Purchase of Care,01/09/2021,3906956-I-21-1476448,"58,205.66",HC-ONE LTD.
Adult and Health Services,Head of Adults,Third Party Payments,470101,Purchase of Care,01/09/2021,3906957-I-21-1476395,"71,726.04",HC-ONE LTD.
Adult and Health Services,Head of Adults,Third Party Payments,470101,Purchase of Care,01/09/2021,3906960-I-21-1476549,"78,066.08",HC-ONE LTD.
Adult and Health Services,Head of Adults,Third Party Payments,474101,Purchase of Care,01/09/2021,3906961-I-21-1476311,"3,473.16",HC-ONE LTD..
Adult and Health Services,Head of Adults,Third Party Payments,470101,Purchase of Care,01/09/2021,3906963-I-21-1476516,"2,187.48",HC-ONE OVAL LTD.
Adult and Health Services,Head of Adults,Third Party Payments,470101,Purchase of Care,01/09/2021,3906962-I-21-1476366,"2,169.32",HC-ONE OVAL LTD.
Adult and Health Services,Head of Adults,Third Party Payments,474101,Purchase of Care,01/09/2021,3906964-I-21-1476413,"1,234.40",HENDON PIF LTD T/A ASHWOOD COURT CARE HOME.
Adult and Health Services,Head of Adults,Third Party Payments,470101,Purchase of Care,01/09/2021,3906965-I-21-1476457,988.44,HEREFORDSHIRE CARE HOMES.
Adult and Health Services,Head of Adults,Third Party Payments,470101,Purchase of Care,01/09/2021,3906966-I-21-1476567,"2,579.28",HERRINGTON MEWS LTD.
"Regeneration, Economy and Growth",Development and Housing,Cap Exp on Grants & Other Financial Assistance (REFCUS),918501,Exp assets not owned by authority,01/09/2021,3906664-RED-08-2021-180,"4,234.00",HES GROUP UK LTD.
Neighbourhoods and Climate Change,Technical Services CM0300,Supplies and Services,304358,Equipment and Materials,01/09/2021,3906665-64899,"1,807.00",HF COLTON PLANT HIRE LTD.*
Neighbourhoods and Climate Change,Technical Services CM0300,Supplies and Services,304358,Equipment and Materials,01/09/2021,3906665-64960,583.00,HF COLTON PLANT HIRE LTD.*
Adult and Health Services,Head of Adults,Third Party Payments,479140,Purchase of Care,01/09/2021,3906968-SUSTAINABILITYPAYMENT17/2,"14,573.16",HILL CARE 3 LTD.
Adult and Health Services,Head of Adults,Third Party Payments,474101,Purchase of Care,01/09/2021,3906968-I-21-1476370,"65,696.92",HILL CARE 3 LTD.
Adult and Health Services,Head of Adults,Third Party Payments,470101,Purchase of Care,01/09/2021,3906967-I-21-1476430,"55,097.03",HILL CARE 3 LTD.
Adult and Health Services,Head of Adults,Third Party Payments,470101,Purchase of Care,01/09/2021,3906969-I-21-1476341,"6,803.16",HOMES TOGETHER LTD.
Dedicated Schools Grant BG0015,DSG High Needs Block,Third Party Payments,425005,Rendered by Voluntary Organisations,01/09/2021,3906970-PIG_104326,"70,201.40",HURWORTH HOUSE PRIORY.
Adult and Health Services,Head of Adults,Third Party Payments,470101,Purchase of Care,01/09/2021,3906971-I-21-1476568,"28,072.34",IDEAL CARE (NORTH) LTD.
"Regeneration, Economy and Growth",Development and Housing,Supplies and Services,342051,Computers and Communications,01/09/2021,3906671-7034619,"1,500.00",IDOX SOFTWARE LTD.
Adult and Health Services,Head of Adults,Third Party Payments,470101,Purchase of Care,01/09/2021,3906972-I-21-1476344,"2,579.28",INDIGO CARE SERVICES LTD.
Children and Young Peoples Services,Head of Childrens Social Care,Third Party Payments,486020,Service level agreements E486,01/09/2021,3906973-PIG_105582,"6,388.02",INTEGRATING CHILDREN.
Adult and Health Services,Central/Other,Creditors,952287,Creditor-DHSC Infection Control Grant,01/09/2021,3906975-INFECTIONCONTROLFUND4/133,805.80,INTERACT CARE LTD.
Adult and Health Services,Central/Other,Creditors,952288,Creditor-DHSC Rapid Testing Fund Grant,01/09/2021,3906975-RAPIDTESTINGFUND4/131,873.55,INTERACT CARE LTD.
Adult and Health Services,Head of Adults,Third Party Payments,470101,Purchase of Care,01/09/2021,3906974-I-21-1476326,"5,941.00",INTERACT CARE LTD.
Adult and Health Services,Head of Adults,Third Party Payments,470101,Purchase of Care,01/09/2021,3906975-I-21-1476362,"21,880.44",INTERACT CARE LTD.
Children and Young Peoples Services,Head of Childrens Social Care,Third Party Payments,425021,Rendered by Voluntary Organisations,01/09/2021,3906976-PIG_105566,"12,145.00",INVESTED CHILDCARE LTD.
Neighbourhoods and Climate Change,Technical Services CM0300,Third Party Payments,430100,Rendered by Private Contractors,01/09/2021,3906675-25433,"28,118.24",JACK COUPE & SONS LTD T/A COUPE LINE.
Neighbourhoods and Climate Change,Technical Services CM0300,Supplies and Services,304221,Equipment and Materials,01/09/2021,3906677-00209244,"3,720.00",JAMES A JOBLING & CO LTD T/A JOBLING PURSER LTD.
Neighbourhoods and Climate Change,Technical Services CM0300,Supplies and Services,304221,Equipment and Materials,01/09/2021,3906677-00210142,"2,480.00",JAMES A JOBLING & CO LTD T/A JOBLING PURSER LTD.
Neighbourhoods and Climate Change,Technical Services CM0300,Supplies and Services,304358,Equipment and Materials,01/09/2021,3906680-31567,888.00,JOHN R BUTTERFIELD LTD.
Neighbourhoods and Climate Change,Technical Services CM0300,Supplies and Services,304358,Equipment and Materials,01/09/2021,3906680-31572,"1,850.20",JOHN R BUTTERFIELD LTD.
Neighbourhoods and Climate Change,Technical Services CM0300,Supplies and Services,304358,Equipment and Materials,01/09/2021,3906680-31576,925.00,JOHN R BUTTERFIELD LTD.
Neighbourhoods and Climate Change,Technical Services CM0300,Supplies and Services,304358,Equipment and Materials,01/09/2021,3906680-31582,"1,205.50",JOHN R BUTTERFIELD LTD.
Neighbourhoods and Climate Change,Technical Services CM0300,Supplies and Services,304358,Equipment and Materials,01/09/2021,3906681-0000083296,"1,125.00",JOHN WADE (HAULAGE) LTD.
Neighbourhoods and Climate Change,Technical Services CM0300,Supplies and Services,304358,Equipment and Materials,01/09/2021,3906681-0000083298,750.00,JOHN WADE (HAULAGE) LTD.
"Regeneration, Economy and Growth",Development and Housing,Cap Exp on Grants & Other Financial Assistance (REFCUS),918501,Exp assets not owned by authority,01/09/2021,3906682-RED-08-2021-194,"3,093.75",JOHNSON LAND CONSTRUCTION LTD.
Children and Young Peoples Services,Head of Childrens Social Care,Third Party Payments,425021,Rendered by Voluntary Organisations,01/09/2021,3906980-PIG_104323,"15,200.00",JOSH`S PLACE.
Neighbourhoods and Climate Change,Technical Services CM0300,Supplies and Services,304358,Equipment and Materials,01/09/2021,3906694-3837,"1,091.50",KEVIN SNOWDON GROUNDWORKS LTD.
Neighbourhoods and Climate Change,Technical Services CM0300,Supplies and Services,304358,Equipment and Materials,01/09/2021,3906694-3839,"1,054.75",KEVIN SNOWDON GROUNDWORKS LTD.
Neighbourhoods and Climate Change,Technical Services CM0300,Supplies and Services,304358,Equipment and Materials,01/09/2021,3906694-3840,"1,054.75",KEVIN SNOWDON GROUNDWORKS LTD.
Neighbourhoods and Climate Change,Technical Services CM0300,Supplies and Services,304358,Equipment and Materials,01/09/2021,3906694-3841,"1,054.75",KEVIN SNOWDON GROUNDWORKS LTD.
Neighbourhoods and Climate Change,Technical Services CM0300,Supplies and Services,304358,Equipment and Materials,01/09/2021,3906694-3842,"1,054.75",KEVIN SNOWDON GROUNDWORKS LTD.
Neighbourhoods and Climate Change,Technical Services CM0300,Supplies and Services,304358,Equipment and Materials,01/09/2021,3906694-3843,640.00,KEVIN SNOWDON GROUNDWORKS LTD.
Neighbourhoods and Climate Change,Technical Services CM0300,Supplies and Services,304358,Equipment and Materials,01/09/2021,3906694-3844,858.40,KEVIN SNOWDON GROUNDWORKS LTD.
Neighbourhoods and Climate Change,Technical Services CM0300,Supplies and Services,304358,Equipment and Materials,01/09/2021,3906694-3845,"1,060.00",KEVIN SNOWDON GROUNDWORKS LTD.
Neighbourhoods and Climate Change,Technical Services CM0300,Supplies and Services,304358,Equipment and Materials,01/09/2021,3906694-3846,858.40,KEVIN SNOWDON GROUNDWORKS LTD.
Neighbourhoods and Climate Change,Technical Services CM0300,Supplies and Services,304358,Equipment and Materials,01/09/2021,3906694-3847,858.40,KEVIN SNOWDON GROUNDWORKS LTD.
Adult and Health Services,Head of Adults,Third Party Payments,474101,Purchase of Care,01/09/2021,3906984-I-21-1476539,"1,598.92",KEY HEALTHCARE (OPERATIONS) LTD.
Dedicated Schools Grant BG0015,DSG High Needs Block,Third Party Payments,425005,Rendered by Voluntary Organisations,01/09/2021,3906985-PIG_105555,"6,300.00",KEYS GROUP T/A ALLIANCE CARE AND EDUCATION LTD.
Children and Young Peoples Services,Head of Childrens Social Care,Third Party Payments,425021,Rendered by Voluntary Organisations,01/09/2021,3906985-PIG_105553,"15,800.00",KEYS GROUP T/A ALLIANCE CARE AND EDUCATION LTD.
Children and Young Peoples Services,Head of Childrens Social Care,Third Party Payments,425021,Rendered by Voluntary Organisations,01/09/2021,3906985-PIG_105554,"15,800.00",KEYS GROUP T/A ALLIANCE CARE AND EDUCATION LTD.
Neighbourhoods and Climate Change,Environmental Services,Stock A926,926900,Stock in hand-Inventory system,01/09/2021,3906695-SI02-0325487,"1,698.32",KILLGERM CHEMICALS LTD.
Adult and Health Services,Head of Adults,Third Party Payments,474101,Purchase of Care,01/09/2021,3906986-I-21-1476377,"45,113.46",KINGSWAY CARE HOME LTD.
Adult and Health Services,Head of Adults,Third Party Payments,479140,Purchase of Care,01/09/2021,3906987-SUSTAINABILITYPAYMENT17/10,"44,203.68",LAMBTON HOUSE LTD.
Adult and Health Services,Head of Adults,Third Party Payments,470101,Purchase of Care,01/09/2021,3906987-I-21-1476379,"43,735.49",LAMBTON HOUSE LTD.
Adult and Health Services,Head of Adults,Third Party Payments,474101,Purchase of Care,01/09/2021,3906988-I-21-1476494,"80,093.57",LEAZES HALL CARE HOME LTD.
Adult and Health Services,Head of Adults,Third Party Payments,470101,Purchase of Care,01/09/2021,3906989-I-21-1476292,"6,590.24",LENORE CARE LTD.
Adult and Health Services,Head of Adults,Third Party Payments,470101,Purchase of Care,01/09/2021,3906990-I-21-1476486,"67,786.54",LEONARD CHESHIRE DISABILITY.
"Regeneration, Economy and Growth",Transport and Contracted Services,Third Party Payments,460160,Contract Payments,01/09/2021,3906697-6128024210,"1,925.00",LIBERTY PRINTERS (AR & RF REDDIN) LTD.
Adult and Health Services,Head of Adults,Third Party Payments,474101,Purchase of Care,01/09/2021,3906991-I-21-1476561,"4,878.72",LIFESTYLE (ABBEY CARE) LTD.
Adult and Health Services,Central/Other,Creditors,952287,Creditor-DHSC Infection Control Grant,01/09/2021,3906992-INFECTIONCONTROLFUND4/95,"3,545.52",LIFEWAYS COMMUNITY CARE LTD.
Adult and Health Services,Central/Other,Creditors,952288,Creditor-DHSC Rapid Testing Fund Grant,01/09/2021,3906992-RAPIDTESTINGFUND4/93,"3,843.62",LIFEWAYS COMMUNITY CARE LTD.
Adult and Health Services,Head of Adults,Third Party Payments,470101,Purchase of Care,01/09/2021,3906992-I-21-1476358,"13,454.32",LIFEWAYS COMMUNITY CARE LTD.
"Regeneration, Economy and Growth",Culture Sport and Tourism,Supplies and Services,384199,Miscellaneous Expenses,01/09/2021,3906699-3107176,730.00,LITEWHITE LTD T/A BLUMILK.
Children and Young Peoples Services,Head of Early Help Inclusion & Vulnerable Children.,Supplies and Services,384302,Miscellaneous Expenses,01/09/2021,3906700-66,"1,455.00",LITTLE CHEFS BIG CHEFS CIC.
Adult and Health Services,Head of Adults,Third Party Payments,470101,Purchase of Care,01/09/2021,3906993-I-21-1476391,"4,884.00",LONGWOOD LODGE CARE LTD.
"Regeneration, Economy and Growth",Development and Housing,Construction work A908,908105,Construction work,01/09/2021,3906702-141614,880.00,LUCION ENVIRONMENTAL LLP LTD.
Adult and Health Services,Head of Adults,Third Party Payments,474101,Purchase of Care,01/09/2021,3906995-I-21-1476349,"88,137.00",MALHOTRA CARE HOMES LTD.
Adult and Health Services,Head of Adults,Third Party Payments,470101,Purchase of Care,01/09/2021,3906996-I-21-1476340,"9,191.60",MALHOTRA CARE HOMES LTD.
Adult and Health Services,Head of Adults,Third Party Payments,474101,Purchase of Care,01/09/2021,3906998-I-21-1476302,"77,781.32",MARIA MALLABAND CARE GROUP LTD.
Adult and Health Services,Head of Adults,Third Party Payments,479140,Purchase of Care,01/09/2021,3907000-SUSTAINABILITYPAYMENT17/22,"12,278.80",MARIPOSA CARE GROUP LTD.
Adult and Health Services,Head of Adults,Third Party Payments,470101,Purchase of Care,01/09/2021,3907000-I-21-1476461,"33,597.84",MARIPOSA CARE GROUP LTD.
Adult and Health Services,Head of Adults,Third Party Payments,470101,Purchase of Care,01/09/2021,3906999-I-21-1476397,"2,989.20",MARIPOSA CARE GROUP LTD.
Adult and Health Services,Head of Adults,Third Party Payments,470101,Purchase of Care,01/09/2021,3907001-I-21-1476552,"83,384.88",MARIPOSA CARE LTD.
Adult and Health Services,Head of Adults,Third Party Payments,474101,Purchase of Care,01/09/2021,3907002-I-21-1476490,"12,141.96",MARTON CARE HOMES LTD T/A ELIZABETH FLEMING CARE HOME.
Adult and Health Services,Head of Adults,Third Party Payments,470101,Purchase of Care,01/09/2021,3907003-I-21-1476304,"9,600.00",MARTON CARE HOMES LTD T/A GROSVENOR PARK CARE HOME.
Adult and Health Services,Head of Adults,Third Party Payments,470101,Purchase of Care,01/09/2021,3907004-I-21-1476300,"83,994.46",MARTON CARE HOMES LTD T/A LANGLEY PARK CARE HOME.
Adult and Health Services,Head of Adults,Third Party Payments,470101,Purchase of Care,01/09/2021,3907005-I-21-1476320,"5,925.71",MARTON CARE HOMES LTD T/A RIVERSIDE VIEW CARE HOME.
Adult and Health Services,Head of Adults,Third Party Payments,474101,Purchase of Care,01/09/2021,3907006-I-21-1476528,"58,247.84",MARTON CARE HOMES LTD T/A ST HELENS CARE HOME.
Neighbourhoods and Climate Change,Technical Services CM0300,Supplies and Services,342051,Computers and Communications,01/09/2021,3906709-INV-31442,500.00,MCCARTHY TAYLOR SYSTEMS LTD.
Neighbourhoods and Climate Change,Environmental Services,Third Party Payments,430101,Rendered by Private Contractors,01/09/2021,3906710-HOL06350,"1,903.94",MCCONECHYS TYRE SERVICE LTD.
Neighbourhoods and Climate Change,Environmental Services,Third Party Payments,430101,Rendered by Private Contractors,01/09/2021,3906710-HOL06381,"2,511.00",MCCONECHYS TYRE SERVICE LTD.
Neighbourhoods and Climate Change,Environmental Services,Third Party Payments,430101,Rendered by Private Contractors,01/09/2021,3906710-HOL06351,"2,094.00",MCCONECHYS TYRE SERVICE LTD.
Neighbourhoods and Climate Change,Environmental Services,Third Party Payments,430101,Rendered by Private Contractors,01/09/2021,3906710-HOL06383,686.00,MCCONECHYS TYRE SERVICE LTD.
Neighbourhoods and Climate Change,Environmental Services,Third Party Payments,430101,Rendered by Private Contractors,01/09/2021,3906710-HOL06348,"1,406.00",MCCONECHYS TYRE SERVICE LTD.
Neighbourhoods and Climate Change,Environmental Services,Third Party Payments,430101,Rendered by Private Contractors,01/09/2021,3906710-HOL06382,"1,341.50",MCCONECHYS TYRE SERVICE LTD.
Neighbourhoods and Climate Change,Environmental Services,Third Party Payments,430101,Rendered by Private Contractors,01/09/2021,3906710-HOL06349,891.50,MCCONECHYS TYRE SERVICE LTD.
Neighbourhoods and Climate Change,Environmental Services,Third Party Payments,430101,Rendered by Private Contractors,01/09/2021,3906710-HOL06380,"1,897.25",MCCONECHYS TYRE SERVICE LTD.
Adult and Health Services,Head of Adults,Third Party Payments,474101,Purchase of Care,01/09/2021,3907009-I-21-1476515,"2,090.84",MEMORY LANE CARE HOMES LTD.
Adult and Health Services,Head of Adults,Third Party Payments,470101,Purchase of Care,01/09/2021,3907010-I-21-1476331,"2,364.00",MERIDIAN HEALTHCARE LTD.
Adult and Health Services,Central/Other,Creditors,952287,Creditor-DHSC Infection Control Grant,01/09/2021,3906711-INFECTIONCONTROLFUND4/174,"3,203.11",MIDDLETON CARE LTD.
Adult and Health Services,Head of Adults,Third Party Payments,479151,Purchase of Care,01/09/2021,3906711-RAPIDTESTINGFUND4/349,"1,415.81",MIDDLETON CARE LTD.
Adult and Health Services,Head of Adults,Third Party Payments,470101,Purchase of Care,01/09/2021,3907012-I-21-1476502,"23,060.66",MOORLAND HOLDINGS (NE) LTD.
Adult and Health Services,Head of Adults,Third Party Payments,478151,Purchase of Care,01/09/2021,3907012-22,"1,500.00",MOORLAND HOLDINGS (NE) LTD.
Adult and Health Services,Head of Adults,Third Party Payments,470101,Purchase of Care,01/09/2021,3907013-I-21-1476305,"22,218.77",MR & MRS BURNS.
"Regeneration, Economy and Growth",Corporate Property and Land,Third Party Payments,430100,Rendered by Private Contractors,01/09/2021,3906712-DCC198,"1,500.00",MR WILLIAM MAGUIRE T/A VALLUM LIFTS LTD.
"Regeneration, Economy and Growth",Corporate Property and Land,Third Party Payments,430100,Rendered by Private Contractors,01/09/2021,3906712-DCC200,"1,500.00",MR WILLIAM MAGUIRE T/A VALLUM LIFTS LTD.
Adult and Health Services,Head of Adults,Third Party Payments,470101,Purchase of Care,01/09/2021,3907016-I-21-1476503,"2,040.00",MS LINDA CHARLTON.
Neighbourhoods and Climate Change,Environmental Services,Supplies and Services,304259,Equipment and Materials,01/09/2021,3906717-INVHE62441,607.56,NE TRUCK SPARES LTD (NETS).
Resources BK0010,Legal & Democratic Services,Supplies and Services,338042,Services,01/09/2021,3906718-362741,"9,500.00",NEW PARK COURT CHAMBERS.
Adult and Health Services,Head of Adults,Third Party Payments,470101,Purchase of Care,01/09/2021,3907020-I-21-1476309,"17,584.52",NEWLIFE CARE SERVICES LTD.
"Regeneration, Economy and Growth",Development and Housing,Supplies and Services,336005,Advertising E336,01/09/2021,3906719-37717480,929.45,NEWSQUEST (YORKSHIRE & NORTH EAST) LTD.
"Regeneration, Economy and Growth",Communications Management,Supplies and Services,336005,Advertising E336,01/09/2021,3906719-37718774,"1,000.00",NEWSQUEST (YORKSHIRE & NORTH EAST) LTD.
Neighbourhoods and Climate Change,Environmental Services,Supplies and Services,304221,Equipment and Materials,01/09/2021,3906720-SI/04421849,"2,996.00",NOMIX ENVIRO LTD.
Dedicated Schools Grant BG0015,DSG High Needs Block,Third Party Payments,440080,Other third party payments E440,01/09/2021,3907022-PIG_104966,"52,569.73",NORTH EAST AUTISM SOCIETY.
Dedicated Schools Grant BG0015,DSG High Needs Block,Third Party Payments,440080,Other third party payments E440,01/09/2021,3907022-PIG_104969,"47,851.76",NORTH EAST AUTISM SOCIETY.
Dedicated Schools Grant BG0015,DSG High Needs Block,Third Party Payments,440080,Other third party payments E440,01/09/2021,3907022-PIG_104989,"6,623.00",NORTH EAST AUTISM SOCIETY.
Adult and Health Services,Head of Adults,Third Party Payments,470101,Purchase of Care,01/09/2021,3907024-I-21-1476394,"49,907.37",NORTH EAST AUTISM SOCIETY.
Adult and Health Services,Head of Adults,Third Party Payments,470101,Purchase of Care,01/09/2021,3907021-I-21-1476313,"16,558.36",NORTH EAST AUTISM SOCIETY.
Adult and Health Services,Head of Adults,Third Party Payments,470101,Purchase of Care,01/09/2021,3907022-PIG_104968,"7,820.24",NORTH EAST AUTISM SOCIETY.
Children and Young Peoples Services,Head of Childrens Social Care,Third Party Payments,425020,Rendered by Voluntary Organisations,01/09/2021,3907023-PIG_105584,"19,595.44",NORTH EAST AUTISM SOCIETY.
Children and Young Peoples Services,Head of Childrens Social Care,Third Party Payments,425021,Rendered by Voluntary Organisations,01/09/2021,3907022-PIG_104967,"14,832.52",NORTH EAST AUTISM SOCIETY.
Adult and Health Services,Head of Adults,Third Party Payments,486020,Service level agreements E486,01/09/2021,3907023-PIG_105583,"17,032.22",NORTH EAST AUTISM SOCIETY.
Adult and Health Services,Head of Adults,Third Party Payments,470101,Purchase of Care,01/09/2021,3907025-I-21-1476359,"2,462.72",NORTH EAST CARE HOMES LTD.
"Regeneration, Economy and Growth",Corporate Property and Land,Supplies and Services,338066,Services,01/09/2021,3906721-112028348,561.65,NORTH EAST PROCUREMENT ORGANISATION (NEPO).
Neighbourhoods and Climate Change,Environmental Services,Supplies and Services,384199,Miscellaneous Expenses,01/09/2021,3906722-100068LR,"5,000.00",NORTH OF TYNE COMBINED AUTHORITY.
"Regeneration, Economy and Growth",Corporate Property and Land,Construction work A908,908105,Construction work,01/09/2021,3906724-DI20367365,"64,933.20",NORTHERN POWERGRID (NORTHEAST) LTD.
Adult and Health Services,Head of Adults,Third Party Payments,474101,Purchase of Care,01/09/2021,3907026-I-21-1476435,"8,119.76",NORTHLEA COURT.
Adult and Health Services,Head of Adults,Third Party Payments,470101,Purchase of Care,01/09/2021,3907027-I-21-1476532,"7,448.32",NORWOOD.
Children and Young Peoples Services,Head of Childrens Social Care,Third Party Payments,425021,Rendered by Voluntary Organisations,01/09/2021,3907028-PIG_105567,"57,000.00",NUEVAVIDA NE LTD.
Adult and Health Services,Head of Adults,Third Party Payments,470101,Purchase of Care,01/09/2021,3907029-I-21-1476333,"52,485.17",OBJECT QUEST LTD.
Children and Young Peoples Services,Head of Childrens Social Care,Third Party Payments,440062,Other third party payments E440,01/09/2021,3907031-PIG_104994,667.80,ORCHARD HOME CARE SERVICES LTD.
Adult and Health Services,Head of Adults,Third Party Payments,470101,Purchase of Care,01/09/2021,3907032-I-21-1476364,"4,711.44",OSWALD HOUSE CARE HOME LTD.
Adult and Health Services,Head of Adults,Third Party Payments,470101,Purchase of Care,01/09/2021,3907033-I-21-1476354,"7,067.16",OSWALD HOUSE CARE HOME LTD.
Adult and Health Services,Head of Adults,Third Party Payments,470101,Purchase of Care,01/09/2021,3907034-I-21-1476312,"7,067.16",OSWALD HOUSE CARE HOME LTD.
Adult and Health Services,Head of Adults,Third Party Payments,470101,Purchase of Care,01/09/2021,3907035-I-21-1476493,"7,002.28",OSWALD HOUSE CARE HOME LTD.
Adult and Health Services,Head of Adults,Third Party Payments,470101,Purchase of Care,01/09/2021,3907036-I-21-1476428,"17,600.22",OSWALD HOUSE CARE HOME LTD.
Adult and Health Services,Head of Adults,Third Party Payments,470101,Purchase of Care,01/09/2021,3907037-I-21-1476316,"29,677.04",PARAMOUNT CARE (GATESHEAD) LTD T/A THE ROPERY CARE HOME.
Adult and Health Services,Head of Adults,Third Party Payments,470101,Purchase of Care,01/09/2021,3907038-I-21-1476527,"39,045.84",PARAMOUNT CARE (GATESHEAD) LTD.
Neighbourhoods and Climate Change,Technical Services CM0300,Stock A926,926900,Stock in hand-Inventory system,01/09/2021,3906726-XL274789,"1,584.00",PARK ELECTRICAL DISTRIBUTORS LTD.
Dedicated Schools Grant BG0015,DSG High Needs Block,Third Party Payments,425005,Rendered by Voluntary Organisations,01/09/2021,3907039-PIG_104996,"11,482.00",PARKSIDE HOUSE SCHOOL.
Adult and Health Services,Head of Adults,Third Party Payments,470101,Purchase of Care,01/09/2021,3907040-I-21-1476480,"4,300.00",PATHWAYS CARE GROUP LTD.
Adult and Health Services,Head of Adults,Third Party Payments,470101,Purchase of Care,01/09/2021,3907041-I-21-1476542,"11,368.34",PATHWAYS CARE GROUP LTD.
Adult and Health Services,Head of Adults,Third Party Payments,470101,Purchase of Care,01/09/2021,3907042-I-21-1476409,"2,720.00",PEARLCARE (KENDAL) LTD T/A GILLING REANE CARE HOME.
Children and Young Peoples Services,Head of Childrens Social Care,Third Party Payments,425021,Rendered by Voluntary Organisations,01/09/2021,3907043-PIG_104324,"15,128.48",PEARTREE PROJECTS LTD.
Children and Young Peoples Services,Head of Childrens Social Care,Third Party Payments,425021,Rendered by Voluntary Organisations,01/09/2021,3907043-PIG_104325,"13,579.52",PEARTREE PROJECTS LTD.
Children and Young Peoples Services,Head of Childrens Social Care,Third Party Payments,425021,Rendered by Voluntary Organisations,01/09/2021,3907044-PIG_104979,"4,143.00",PEBBLES CARE LTD.
Children and Young Peoples Services,Head of Childrens Social Care,Third Party Payments,425021,Rendered by Voluntary Organisations,01/09/2021,3907044-PIG_104980,"12,429.00",PEBBLES CARE LTD.
Adult and Health Services,Head of Adults,Third Party Payments,470101,Purchase of Care,01/09/2021,3907045-I-21-1476294,"36,748.43",PERFECT CARE LTD.
Adult and Health Services,Head of Adults,Third Party Payments,474101,Purchase of Care,01/09/2021,3907046-I-21-1476319,"4,696.00",POPULAR CARE LTD.
Adult and Health Services,Head of Adults,Third Party Payments,474101,Purchase of Care,01/09/2021,3907047-I-21-1476492,"76,406.44",POPULAR CARE LTD..
Children and Young Peoples Services,Head of Education and Skills,Construction work A908,908105,Construction work,01/09/2021,3906730-900933883,"22,847.75",PORTAKABIN LTD.
Adult and Health Services,Head of Adults,Third Party Payments,470101,Purchase of Care,01/09/2021,3907048-I-21-1476376,"24,750.28",POTENSIAL LTD.
Adult and Health Services,Head of Adults,Third Party Payments,478151,Purchase of Care,01/09/2021,3906731-26001611,"4,590.00",POTENSIAL LTD.
Adult and Health Services,Head of Adults,Third Party Payments,479140,Purchase of Care,01/09/2021,3907049-SUSTAINABILITYPAYMENT17/13,"130,005.27",PREMIER CARE HOMES LTD.
Adult and Health Services,Head of Adults,Third Party Payments,479140,Purchase of Care,01/09/2021,3907050-SUSTAINABILITYPAYMENT17/7,"96,159.32",PREMIER CARE HOMES LTD.
Adult and Health Services,Head of Adults,Third Party Payments,474101,Purchase of Care,01/09/2021,3907049-I-21-1476459,"102,712.58",PREMIER CARE HOMES LTD.
Adult and Health Services,Head of Adults,Third Party Payments,470101,Purchase of Care,01/09/2021,3907050-I-21-1476547,"46,572.81",PREMIER CARE HOMES LTD.
Adult and Health Services,Head of Adults,Third Party Payments,474101,Purchase of Care,01/09/2021,3907052-I-21-1476474,"2,485.16",PRESTIGE CARE (YEW TREE) LTD.
Adult and Health Services,Head of Adults,Third Party Payments,470101,Purchase of Care,01/09/2021,3907053-I-21-1476368,"3,600.00",PRIDE CARE HOMES PETERBOROUGH LTD.
Adult and Health Services,Head of Adults,Third Party Payments,470101,Purchase of Care,01/09/2021,3907054-I-21-1476367,"2,416.00",QUALIA CARE LTD T/A BIRCHLEY HALL.
Adult and Health Services,Head of Adults,Third Party Payments,470101,Purchase of Care,01/09/2021,3907055-I-21-1476529,"7,118.90",QUALIA CARE LTD T/A WASHINGTON LODGE.
Adult and Health Services,Head of Adults,Third Party Payments,470101,Purchase of Care,01/09/2021,3907056-I-21-1476431,"3,849.16",QUARRIERS.
Adult and Health Services,Head of Adults,Third Party Payments,474101,Purchase of Care,01/09/2021,3907058-I-21-1476307,"53,406.08",RAYSON HOMES LTD.
Adult and Health Services,Head of Adults,Third Party Payments,470101,Purchase of Care,01/09/2021,3907059-I-21-1476520,"19,172.39",RAYSON HOMES LTD.
Children and Young Peoples Services,Head of Childrens Social Care,Third Party Payments,425040,Rendered by Voluntary Organisations,01/09/2021,3907060-PIG_104305,"72,394.54",REACH OUT CARE LTD.
Children and Young Peoples Services,Head of Childrens Social Care,Third Party Payments,486020,Service level agreements E486,01/09/2021,3907061-PIG_105577,750.60,REAL CARE LTD.
Children and Young Peoples Services,Head of Childrens Social Care,Third Party Payments,486020,Service level agreements E486,01/09/2021,3907062-PIG_105587,"4,096.27",REAL LIFE OPTIONS.
"Regeneration, Economy and Growth",Culture Sport and Tourism,Supplies and Services,384199,Miscellaneous Expenses,01/09/2021,3906655-003650,"2,450.00",REDACTED - PAYMENT TO INDIVIDUAL
Adult and Health Services,Head of Adults,Third Party Payments,474101,Purchase of Care,01/09/2021,3907063-I-21-1476544,"7,548.96",RENAL HEALTH LTD.
Adult and Health Services,Head of Adults,Third Party Payments,470101,Purchase of Care,01/09/2021,3907065-I-21-1476388,"10,659.56",RESOLVE (CARE NORTHERN) LTD..
Adult and Health Services,Head of Adults,Third Party Payments,470101,Purchase of Care,01/09/2021,3907064-I-21-1476512,"3,966.56",RESOLVE (CARE NORTHERN) LTD..
Adult and Health Services,Head of Adults,Third Party Payments,472101,Purchase of Care,01/09/2021,3906735-CAS-08-2021-131,"3,338.05",RESOURCES CARE T/A MYHOMECARE DDNY LTD.
Adult and Health Services,Head of Adults,Third Party Payments,479151,Purchase of Care,01/09/2021,3906738-RAPIDTESTINGFUND4/354,"3,496.32",RICHMOND FELLOWSHIP.
Adult and Health Services,Head of Adults,Third Party Payments,470101,Purchase of Care,01/09/2021,3907066-I-21-1476530,"2,070.12",RICHMOND FELLOWSHIP.
Children and Young Peoples Services,Head of Childrens Social Care,Third Party Payments,425021,Rendered by Voluntary Organisations,01/09/2021,3907067-PIG_104327,"42,232.00",RIGHT-TRAK LTD.
Neighbourhoods and Climate Change,Environmental Services,Supplies and Services,304337,Equipment and Materials,01/09/2021,3906740-797197,518.60,RJB STONE LTD T/A SASS & BELLE.
Adult and Health Services,Head of Adults,Third Party Payments,479140,Purchase of Care,01/09/2021,3907070-SUSTAINABILITYPAYMENT17/1,"16,296.00",ROBERT PATTINSON.
Adult and Health Services,Head of Adults,Third Party Payments,470101,Purchase of Care,01/09/2021,3907071-I-21-1476328,"2,984.46",ROBERT PATTINSON.
Adult and Health Services,Head of Adults,Third Party Payments,470101,Purchase of Care,01/09/2021,3907070-I-21-1476485,"53,861.96",ROBERT PATTINSON.
Adult and Health Services,Head of Adults,Third Party Payments,470101,Purchase of Care,01/09/2021,3907069-I-21-1476356,"1,174.00",ROBERT PATTINSON.
Adult and Health Services,Head of Adults,Third Party Payments,486020,Service level agreements E486,01/09/2021,3907072-PIG_105588,"13,727.98",ROC FAMILY SUPPORT LTD.
Adult and Health Services,Head of Adults,Third Party Payments,470101,Purchase of Care,01/09/2021,3907073-I-21-1476414,"76,411.67",ROSEBERRY CARE CENTRES GB LTD.
Adult and Health Services,Head of Adults,Third Party Payments,470101,Purchase of Care,01/09/2021,3907074-I-21-1476436,"9,701.44",ROSEMOUNT TRUST.
Adult and Health Services,Head of Adults,Third Party Payments,470101,Purchase of Care,01/09/2021,3907075-I-21-1476471,"2,704.00",ROSEWOOD HR SERVICES LTD T/A ROSEWOOD HOUSE CARE HOME.
Children and Young Peoples Services,Head of Education and Skills,Fees,901002,Professinal fees,01/09/2021,3906743-TEC579,"1,275.00",RPS CONSULTING SERVICES LTD.
Adult and Health Services,Head of Adults,Third Party Payments,470101,Purchase of Care,01/09/2021,3907076-I-21-1476441,"2,431.52",RUNWOOD HOMES LTD.
Children and Young Peoples Services,Head of Childrens Social Care,Third Party Payments,425023,Rendered by Voluntary Organisations,01/09/2021,3907077-PIG_104320,"28,250.00",S/C 200000 CAMBIAN CHILDCARE LTD.
Adult and Health Services,Head of Adults,Third Party Payments,470101,Purchase of Care,01/09/2021,3907078-I-21-1476310,"5,839.52",SAINT JOHN OF GOD HOSPITALLER SERVICES.
Adult and Health Services,Head of Adults,Third Party Payments,474101,Purchase of Care,01/09/2021,3907085-I-21-1476418,"5,274.40",SANCTUARY CARE (ENGLAND) LTD.
Adult and Health Services,Head of Adults,Third Party Payments,474101,Purchase of Care,01/09/2021,3907081-I-21-1476293,"160,615.62",SANCTUARY CARE (ENGLAND) LTD.
Adult and Health Services,Head of Adults,Third Party Payments,470101,Purchase of Care,01/09/2021,3907084-I-21-1476322,"7,242.56",SANCTUARY CARE (ENGLAND) LTD.
Adult and Health Services,Head of Adults,Third Party Payments,470101,Purchase of Care,01/09/2021,3907080-I-21-1476405,"12,198.72",SANCTUARY CARE (ENGLAND) LTD.
Adult and Health Services,Head of Adults,Third Party Payments,470101,Purchase of Care,01/09/2021,3907082-I-21-1476484,"67,755.92",SANCTUARY CARE (ENGLAND) LTD.
Adult and Health Services,Head of Adults,Third Party Payments,470101,Purchase of Care,01/09/2021,3907083-I-21-1476526,"65,206.50",SANCTUARY CARE (ENGLAND) LTD.
Adult and Health Services,Head of Adults,Third Party Payments,470101,Purchase of Care,01/09/2021,3907079-I-21-1476297,"88,938.96",SANCTUARY CARE (ENGLAND) LTD.
Adult and Health Services,Head of Adults,Third Party Payments,479140,Purchase of Care,01/09/2021,3907086-SUSTAINABILITYPAYMENT17/17,"49,558.75",SEAHAM CARE LTD.
Adult and Health Services,Head of Adults,Third Party Payments,479140,Purchase of Care,01/09/2021,3907087-SUSTAINABILITYPAYMENT17/5,602.65,SEAHAM CARE LTD.
Adult and Health Services,Head of Adults,Third Party Payments,474101,Purchase of Care,01/09/2021,3907087-I-21-1476559,"53,665.02",SEAHAM CARE LTD.
Adult and Health Services,Head of Adults,Third Party Payments,474101,Purchase of Care,01/09/2021,3907086-I-21-1476375,"51,184.20",SEAHAM CARE LTD.
Neighbourhoods and Climate Change,Partnerships & Community Engagement Div.,Cap Exp on Grants & Other Financial Assistance (REFCUS),918004,Contributions to other bodies 918004,01/09/2021,3906746-VOUCHER20NB-EDUR101,"1,398.00",SEAHAM EASTLEA & DISTRICT COMMUNITY ASSOCIATION.
Children and Young Peoples Services,Head of Childrens Social Care,Third Party Payments,440062,Other third party payments E440,01/09/2021,3907088-PIG_105552,"13,314.00",SECOND TO NONE CARE LTD.
Adult and Health Services,Head of Adults,Third Party Payments,474101,Purchase of Care,01/09/2021,3907089-I-21-1476427,"2,444.00",SEYMOUR HOUSE HARTLEPOOL LTD.
Adult and Health Services,Head of Adults,Third Party Payments,474101,Purchase of Care,01/09/2021,3907090-I-21-1476352,"91,984.07",SHAFTESBURY CARE GROUP LTD.
Children and Young Peoples Services,Head of Childrens Social Care,Third Party Payments,486020,Service level agreements E486,01/09/2021,3907091-PIG_105594,"4,115.66",SHEENA MILES CARE SERVICES LTD.
Adult and Health Services,Head of Adults,Third Party Payments,470101,Purchase of Care,01/09/2021,3907092-I-21-1476521,"36,428.94",SHERBURN HOUSE CHARITY.
Adult and Health Services,Head of Adults,Third Party Payments,479140,Purchase of Care,01/09/2021,3907093-SUSTAINABILITYPAYMENT17/14,"2,283.24",SHOTLEY PARK HOMES FOR THE ELDERLY LTD.
Adult and Health Services,Head of Adults,Third Party Payments,470101,Purchase of Care,01/09/2021,3907093-I-21-1476505,"26,938.82",SHOTLEY PARK HOMES FOR THE ELDERLY LTD.
Adult and Health Services,Head of Adults,Third Party Payments,470101,Purchase of Care,01/09/2021,3907094-I-21-1476514,"5,200.00",SIGNATURE AT ASCOT GRANGE CARE HOME.
Adult and Health Services,Head of Adults,Third Party Payments,470101,Purchase of Care,01/09/2021,3907095-I-21-1476531,"5,723.78",SLW LTD.
Children and Young Peoples Services,Head of Early Help Inclusion & Vulnerable Children.,Supplies and Services,384964,Miscellaneous Expenses,01/09/2021,3906748-INV00451,915.38,SMARTWORD (GLOBAL) LTD.
Adult and Health Services,Head of Adults,Third Party Payments,474101,Purchase of Care,01/09/2021,3907096-I-21-1476338,"2,670.88",SOLEHAWK LTD T/A ASHTON COURT NURSING HOME.
Adult and Health Services,Head of Adults,Third Party Payments,474101,Purchase of Care,01/09/2021,3907097-I-21-1476384,"1,822.05",SOLEHAWK LTD T/A CRAIGIELEA CARE HOME.
Adult and Health Services,Head of Adults,Third Party Payments,479151,Purchase of Care,01/09/2021,3907098-RAPIDTESTINGFUND4/355,728.40,SOVEREIGN CARE (NORTH EAST) LTD.
Adult and Health Services,Head of Adults,Third Party Payments,470101,Purchase of Care,01/09/2021,3907098-I-21-1476563,"25,871.63",SOVEREIGN CARE (NORTH EAST) LTD.
Dedicated Schools Grant BG0015,DSG High Needs Block,Third Party Payments,425005,Rendered by Voluntary Organisations,01/09/2021,3907099-PIG_105568,"3,307.32",SPARK OF GENIUS (NORTH EAST LLP).
Adult and Health Services,Head of Adults,Third Party Payments,470101,Purchase of Care,01/09/2021,3907100-I-21-1476467,"9,920.40",SPECIALITY CARE (REHAB) LTD.
Adult and Health Services,Head of Adults,Third Party Payments,474101,Purchase of Care,01/09/2021,3907101-I-21-1476510,"3,054.72",SPYNIE CARE HOME.
Adult and Health Services,Head of Adults,Third Party Payments,470101,Purchase of Care,01/09/2021,3907102-I-21-1476386,"57,872.74",ST ANDREWS MPS LTD.
Adult and Health Services,Head of Adults,Third Party Payments,470101,Purchase of Care,01/09/2021,3907103-I-21-1476506,"2,724.28",ST CUTHBERTS CARE.
Adult and Health Services,Head of Adults,Third Party Payments,470101,Purchase of Care,01/09/2021,3907104-I-21-1476299,"2,722.00",ST CUTHBERTS CARE.
Children and Young Peoples Services,Head of Childrens Social Care,Third Party Payments,425040,Rendered by Voluntary Organisations,01/09/2021,3907105-PIG_105561,"1,415.68",ST CUTHBERTS CARE.
Adult and Health Services,Head of Adults,Third Party Payments,474101,Purchase of Care,01/09/2021,3907106-I-21-1476465,"2,360.00",ST MARTIN`S CARE LTD.
Adult and Health Services,Head of Adults,Third Party Payments,470101,Purchase of Care,01/09/2021,3907107-I-21-1476519,"97,966.74",ST PHILIPS CARE LTD.
Adult and Health Services,Head of Adults,Third Party Payments,470101,Purchase of Care,01/09/2021,3907108-I-21-1476339,"75,774.72",ST PHILIPS CARE LTD.
Adult and Health Services,Head of Adults,Third Party Payments,474101,Purchase of Care,01/09/2021,3907109-I-21-1476315,"9,478.40",STAINTON LODGE CARE CENTRE.
Neighbourhoods and Climate Change,Partnerships & Community Engagement Div.,Cap Exp on Grants & Other Financial Assistance (REFCUS),918004,Contributions to other bodies 918004,01/09/2021,3906751-VOUCHER20NB-STAN024,"1,500.00",STANLEY TOWN COUNCIL.*
Children and Young Peoples Services,Head of Education and Skills,Supplies and Services,384540,Miscellaneous Expenses,01/09/2021,3906753-INV-5635,"7,066.00",STEVE DAVIDSON ADVERTISING LTD T/A SD ADVERTISING LTD.
Children and Young Peoples Services,Head of Childrens Social Care,Transport,230005,Contract Hire,01/09/2021,3906754-SI-1055,745.00,STEVEN PRATT T/A PTL TAXIS DURHAM.
Children and Young Peoples Services,Head of Childrens Social Care,Transport,230005,Contract Hire,01/09/2021,3906754-SI-1067,596.00,STEVEN PRATT T/A PTL TAXIS DURHAM.
Children and Young Peoples Services,Head of Childrens Social Care,Transport,230005,Contract Hire,01/09/2021,3906754-SI-1039,788.00,STEVEN PRATT T/A PTL TAXIS DURHAM.
Children and Young Peoples Services,Head of Childrens Social Care,Transport,230005,Contract Hire,01/09/2021,3906754-SI-1058,709.20,STEVEN PRATT T/A PTL TAXIS DURHAM.
Children and Young Peoples Services,Head of Childrens Social Care,Transport,230005,Contract Hire,01/09/2021,3906754-SI-1069,630.40,STEVEN PRATT T/A PTL TAXIS DURHAM.
Children and Young Peoples Services,Head of Childrens Social Care,Transport,230005,Contract Hire,01/09/2021,3906754-SI-1048,600.00,STEVEN PRATT T/A PTL TAXIS DURHAM.
Children and Young Peoples Services,Head of Childrens Social Care,Transport,230005,Contract Hire,01/09/2021,3906754-SI-1056,739.00,STEVEN PRATT T/A PTL TAXIS DURHAM.
Children and Young Peoples Services,Head of Childrens Social Care,Transport,230005,Contract Hire,01/09/2021,3906754-SI-1043,518.50,STEVEN PRATT T/A PTL TAXIS DURHAM.
Children and Young Peoples Services,Head of Childrens Social Care,Transport,230005,Contract Hire,01/09/2021,3906754-SI-1061,518.50,STEVEN PRATT T/A PTL TAXIS DURHAM.
Children and Young Peoples Services,Head of Childrens Social Care,Transport,230005,Contract Hire,01/09/2021,3906754-SI-1072,518.50,STEVEN PRATT T/A PTL TAXIS DURHAM.
Children and Young Peoples Services,Head of Childrens Social Care,Transport,230005,Contract Hire,01/09/2021,3906754-SI-1042,520.00,STEVEN PRATT T/A PTL TAXIS DURHAM.
Children and Young Peoples Services,Head of Childrens Social Care,Transport,230005,Contract Hire,01/09/2021,3906754-SI-1060,520.00,STEVEN PRATT T/A PTL TAXIS DURHAM.
Children and Young Peoples Services,Head of Childrens Social Care,Transport,230005,Contract Hire,01/09/2021,3906754-SI-1071,520.00,STEVEN PRATT T/A PTL TAXIS DURHAM.
Adult and Health Services,Head of Adults,Third Party Payments,470101,Purchase of Care,01/09/2021,3907111-I-21-1476407,824.00,SUNDERLAND CARE & SUPPORT LTD.
Adult and Health Services,Head of Adults,Third Party Payments,470101,Purchase of Care,01/09/2021,3907112-I-21-1476385,"37,080.20",SUNNY OKUKPOLOR HUMPHREYS.
Adult and Health Services,Central/Other,Creditors,952287,Creditor-DHSC Infection Control Grant,01/09/2021,3906759-INFECTIONCONTROLFUND4/176,"8,349.09",SUPPORTIVE SRC LTD.
Adult and Health Services,Head of Adults,Third Party Payments,479151,Purchase of Care,01/09/2021,3906758-RAPIDTESTINGFUND4/350,"3,690.39",SUPPORTIVE SRC LTD.
Adult and Health Services,Head of Adults,Third Party Payments,470101,Purchase of Care,01/09/2021,3907114-I-21-1476421,"8,222.04",SWANTON CARE & COMMUNITY (AUTISM NORTH) LTD.
Adult and Health Services,Head of Adults,Third Party Payments,470101,Purchase of Care,01/09/2021,3907113-I-21-1476565,"23,844.16",SWANTON CARE & COMMUNITY (AUTISM NORTH) LTD.
Adult and Health Services,Head of Adults,Third Party Payments,470101,Purchase of Care,01/09/2021,3907115-I-21-1476393,"5,467.08",SWANTON CARE & COMMUNITY (AUTISM NORTH) LTD.
Adult and Health Services,Head of Adults,Third Party Payments,470101,Purchase of Care,01/09/2021,3907116-I-21-1476404,"6,978.32",SWANTON CARE & COMMUNITY (AUTISM NORTH) LTD.
Adult and Health Services,Head of Adults,Third Party Payments,470101,Purchase of Care,01/09/2021,3907117-I-21-1476361,"45,454.72",SWANTON CARE & COMMUNITY (AUTISM NORTH) LTD.
Adult and Health Services,Head of Adults,Third Party Payments,470101,Purchase of Care,01/09/2021,3907118-I-21-1476522,"6,388.20",SWANTON CARE & COMMUNITY (AUTISM NORTH) LTD.
Children and Young Peoples Services,Head of Childrens Social Care,Third Party Payments,425040,Rendered by Voluntary Organisations,01/09/2021,3907119-PIG_104959,"37,051.48",SWIIS FOSTER CARE LTD.
Adult and Health Services,Head of Adults,Third Party Payments,474101,Purchase of Care,01/09/2021,3907120-I-21-1476334,"88,936.73",TAMARIS HEALTHCARE (ENGLAND) LTD.
Adult and Health Services,Head of Adults,Third Party Payments,474101,Purchase of Care,01/09/2021,3907121-I-21-1476346,"136,718.83",TAMARIS HEALTHCARE (ENGLAND) LTD.
Adult and Health Services,Head of Adults,Third Party Payments,474101,Purchase of Care,01/09/2021,3907124-I-21-1476351,"13,227.56",TAMARIS HEALTHCARE (ENGLAND) LTD.
Adult and Health Services,Head of Adults,Third Party Payments,470101,Purchase of Care,01/09/2021,3907122-I-21-1476543,"52,898.50",TAMARIS HEALTHCARE (ENGLAND) LTD.
Adult and Health Services,Head of Adults,Third Party Payments,470101,Purchase of Care,01/09/2021,3907123-I-21-1476390,"2,254.92",TAMARIS HEALTHCARE (ENGLAND) LTD.
Adult and Health Services,Head of Adults,Third Party Payments,470101,Purchase of Care,01/09/2021,3907125-I-21-1476541,"134,953.65",TAMARIS HEALTHCARE (ENGLAND) LTD.
"Regeneration, Economy and Growth",Culture Sport and Tourism,Third Party Payments,430131,Rendered by Private Contractors,01/09/2021,3906762-TT/202182,680.00,TERESA DONNELLAN T/A T TRAINING.
Adult and Health Services,Head of Adults,Third Party Payments,479140,Purchase of Care,01/09/2021,3907126-SUSTAINABILITYPAYMENT17/19,"48,204.96",THE FIELDS CARE HOME.
Adult and Health Services,Head of Adults,Third Party Payments,470101,Purchase of Care,01/09/2021,3907126-I-21-1476402,"18,190.20",THE FIELDS CARE HOME.
Children and Young Peoples Services,Head of Childrens Social Care,Third Party Payments,425040,Rendered by Voluntary Organisations,01/09/2021,3907127-PIG_104301,"8,876.40",THE FOSTERING COMPANY NORTH EAST LTD.
Adult and Health Services,Head of Adults,Third Party Payments,470101,Purchase of Care,01/09/2021,3907128-I-21-1476336,"68,348.77",THE HAWTHORNS LODGE LTD.
Adult and Health Services,Central/Other,Creditors,952287,Creditor-DHSC Infection Control Grant,01/09/2021,3906763-INFECTIONCONTROLFUND4/173,"2,900.88",THE ORDER OF THE GOOD & PERPETUAL SUCCOUR.
Adult and Health Services,Central/Other,Creditors,952288,Creditor-DHSC Rapid Testing Fund Grant,01/09/2021,3906763-RAPIDTESTINGFUND4/347,"3,144.78",THE ORDER OF THE GOOD & PERPETUAL SUCCOUR.
Adult and Health Services,Head of Adults,Third Party Payments,470101,Purchase of Care,01/09/2021,3907129-I-21-1476323,"18,190.20",THE ORDER OF THE GOOD & PERPETUAL SUCCOUR.
Adult and Health Services,Head of Adults,Third Party Payments,470101,Purchase of Care,01/09/2021,3907130-I-21-1476415,"8,703.84",THE PERCY HEDLEY FOUNDATION.
Adult and Health Services,Head of Adults,Third Party Payments,470101,Purchase of Care,01/09/2021,3906764-51386,"22,525.80",THE PERCY HEDLEY FOUNDATION.
Adult and Health Services,Head of Adults,Third Party Payments,470101,Purchase of Care,01/09/2021,3906764-52355,"1,029.76",THE PERCY HEDLEY FOUNDATION.
Adult and Health Services,Head of Adults,Third Party Payments,470101,Purchase of Care,01/09/2021,3906764-52356,"22,976.32",THE PERCY HEDLEY FOUNDATION.
Adult and Health Services,Head of Adults,Third Party Payments,470101,Purchase of Care,01/09/2021,3906764-52357,"22,976.32",THE PERCY HEDLEY FOUNDATION.
Adult and Health Services,Head of Adults,Third Party Payments,470101,Purchase of Care,01/09/2021,3906764-52358,"22,976.32",THE PERCY HEDLEY FOUNDATION.
Adult and Health Services,Head of Adults,Third Party Payments,470101,Purchase of Care,01/09/2021,3907131-I-21-1476513,"2,850.56",THE SALVATION ARMY T/A VILLA ADASTRA CARE HOME.
Neighbourhoods and Climate Change,Technical Services CM0300,Stock A926,926900,Stock in hand-Inventory system,01/09/2021,3906766-NSIN00060707,513.30,THOMAS OWEN & SONS (NEWCASTLE) LTD.
Neighbourhoods and Climate Change,Technical Services CM0300,Stock A926,926900,Stock in hand-Inventory system,01/09/2021,3906766-NSIN00060710,796.00,THOMAS OWEN & SONS (NEWCASTLE) LTD.
Neighbourhoods and Climate Change,Technical Services CM0300,Stock A926,926900,Stock in hand-Inventory system,01/09/2021,3906766-NSIN00060842,626.16,THOMAS OWEN & SONS (NEWCASTLE) LTD.
Adult and Health Services,Head of Adults,Third Party Payments,470101,Purchase of Care,01/09/2021,3907133-I-21-1476525,"2,360.00",TL CARE LTD.
Neighbourhoods and Climate Change,Technical Services CM0300,Stock A926,926900,Stock in hand-Inventory system,01/09/2021,3906768-105223,882.00,TOTAL RENTAL SOLUTIONS.
Adult and Health Services,Head of Adults,Third Party Payments,470101,Purchase of Care,01/09/2021,3907134-I-21-1476314,"76,658.72",TRIMS GYM LTD.
Resources BK0010,Legal & Democratic Services,Supplies and Services,338042,Services,01/09/2021,3906769-287656-24082021,"2,940.00",TRINITY CHAMBERS.
Resources BK0010,Legal & Democratic Services,Supplies and Services,338042,Services,01/09/2021,3906769-290429/INVLM153,"2,700.00",TRINITY CHAMBERS.
Adult and Health Services,Head of Adults,Third Party Payments,470101,Purchase of Care,01/09/2021,3907135-I-21-1476537,"7,982.24",TRUST CARE MANAGEMENT LTD.
Children and Young Peoples Services,Head of Childrens Social Care,Third Party Payments,425040,Rendered by Voluntary Organisations,01/09/2021,3907137-PIG_105576,"12,628.99",UK FOSTERING LTD.
"Regeneration, Economy and Growth",Development and Housing,Supplies and Services,384899,Miscellaneous Expenses,01/09/2021,3906771-ND015/9,"4,178.19",UMI COMMERCIAL LTD.
"Regeneration, Economy and Growth",Development and Housing,Supplies and Services,384899,Miscellaneous Expenses,01/09/2021,3906771-SD013/9,"1,867.98",UMI COMMERCIAL LTD.
Adult and Health Services,Head of Adults,Third Party Payments,474101,Purchase of Care,01/09/2021,3907138-I-21-1476533,"3,804.04",UNDERWOOD HALL LTD.
Adult and Health Services,Head of Adults,Third Party Payments,470101,Purchase of Care,01/09/2021,3907139-I-21-1476433,"19,308.56",VALDIGARTH RESIDENTIAL CARE HOME.
Adult and Health Services,Head of Adults,Third Party Payments,474101,Purchase of Care,01/09/2021,3907140-I-21-1476455,"5,686.40",VICTORIA HOUSE.
"Regeneration, Economy and Growth",Transport and Contracted Services,Supplies and Services,384199,Miscellaneous Expenses,01/09/2021,3906772-0005022649,"3,579.00",VISION TECHNIQUES (UK) LTD.
Children and Young Peoples Services,Head of Childrens Social Care,Third Party Payments,425021,Rendered by Voluntary Organisations,01/09/2021,3907141-PIG_104328,"51,862.40",VITA NOVA NE LTD.
Adult and Health Services,Head of Adults,Third Party Payments,470101,Purchase of Care,01/09/2021,3907144-I-21-1476509,"5,936.80",VOYAGE 1 LTD.
Adult and Health Services,Head of Adults,Third Party Payments,470101,Purchase of Care,01/09/2021,3907145-I-21-1476489,"15,826.20",VOYAGE 1 LTD.
Adult and Health Services,Head of Adults,Third Party Payments,470101,Purchase of Care,01/09/2021,3907146-I-21-1476566,"19,119.36",VOYAGE 1 LTD.
Adult and Health Services,Head of Adults,Third Party Payments,470101,Purchase of Care,01/09/2021,3907142-I-21-1476507,"10,762.24",VOYAGE 1 LTD.
Adult and Health Services,Head of Adults,Third Party Payments,470101,Purchase of Care,01/09/2021,3907143-I-21-1476363,"5,577.04",VOYAGE 1 LTD.
Adult and Health Services,Head of Adults,Third Party Payments,479151,Purchase of Care,01/09/2021,3906773-RAPIDTESTINGFUND4/357,"1,311.12",WADDINGTON STREET CENTRE LTD.
Adult and Health Services,Head of Adults,Third Party Payments,470101,Purchase of Care,01/09/2021,3907147-I-21-1476406,"2,424.00",WELLBURN CARE HOMES LTD.
Adult and Health Services,Head of Adults,Third Party Payments,470101,Purchase of Care,01/09/2021,3907148-I-21-1476479,"2,533.28",WELLBURN CARE HOMES LTD.
Neighbourhoods and Climate Change,Environmental Services,Premises,150015,Apportioned Exps of Operational Blds,01/09/2021,3906775-211168141,703.56,WERNICK HIRE LTD.
Neighbourhoods and Climate Change,Environmental Services,Premises,150015,Apportioned Exps of Operational Blds,01/09/2021,3906775-211168144,702.19,WERNICK HIRE LTD.
Neighbourhoods and Climate Change,Environmental Services,Premises,150015,Apportioned Exps of Operational Blds,01/09/2021,3906775-211168142,703.56,WERNICK HIRE LTD.
Neighbourhoods and Climate Change,Environmental Services,Premises,150015,Apportioned Exps of Operational Blds,01/09/2021,3906775-211168143,703.56,WERNICK HIRE LTD.
Neighbourhoods and Climate Change,Technical Services CM0300,Premises,150015,Apportioned Exps of Operational Blds,01/09/2021,3906775-211168098,618.96,WERNICK HIRE LTD.
"Regeneration, Economy and Growth",Corporate Property and Land,Premises,150015,Apportioned Exps of Operational Blds,01/09/2021,3906775-211168145,736.17,WERNICK HIRE LTD.
"Regeneration, Economy and Growth",Corporate Property and Land,Premises,150015,Apportioned Exps of Operational Blds,01/09/2021,3906775-211168157,623.14,WERNICK HIRE LTD.
"Regeneration, Economy and Growth",Corporate Property and Land,Premises,150015,Apportioned Exps of Operational Blds,01/09/2021,3906775-211168158,703.56,WERNICK HIRE LTD.
"Regeneration, Economy and Growth",Corporate Property and Land,Premises,150015,Apportioned Exps of Operational Blds,01/09/2021,3906775-211168169,703.56,WERNICK HIRE LTD.
Adult and Health Services,Head of Adults,Third Party Payments,474101,Purchase of Care,01/09/2021,3907149-I-21-1476381,"50,040.60",WEST HOUSE CARE HOME LTD.
Adult and Health Services,Head of Adults,Third Party Payments,470101,Purchase of Care,01/09/2021,3907150-I-21-1476396,"106,105.03",WEST LODGE CARE HOMES LTD.
Adult and Health Services,Head of Adults,Third Party Payments,470101,Purchase of Care,01/09/2021,3907151-I-21-1476347,"59,134.04",WILLIAMS & SPENCELEY LTD.
Adult and Health Services,Head of Adults,Third Party Payments,470101,Purchase of Care,01/09/2021,3907152-I-21-1476327,"1,564.00",WILLOW VIEW CARE LTD.
Dedicated Schools Grant BG0015,DSG High Needs Block,Third Party Payments,425005,Rendered by Voluntary Organisations,01/09/2021,3907153-PIG_104970,"73,299.88",WITHERSLACK GROUP LTD T/A ASHBROOKE SCHOOL.
Children and Young Peoples Services,Head of Childrens Social Care,Third Party Payments,425021,Rendered by Voluntary Organisations,01/09/2021,3907153-PIG_104971,"15,769.72",WITHERSLACK GROUP LTD T/A ASHBROOKE SCHOOL.
Dedicated Schools Grant BG0015,DSG High Needs Block,Third Party Payments,425005,Rendered by Voluntary Organisations,01/09/2021,3907154-PIG_104990,"10,496.12",WITHERSLACK GROUP LTD T/A HARTWELL SCHOOL.
Dedicated Schools Grant BG0015,DSG High Needs Block,Third Party Payments,425005,Rendered by Voluntary Organisations,01/09/2021,3907155-PIG_104972,"6,572.04",WITHERSLACK GROUP LTD.
Dedicated Schools Grant BG0015,DSG High Needs Block,Third Party Payments,425005,Rendered by Voluntary Organisations,01/09/2021,3907155-PIG_104973,"10,361.96",WITHERSLACK GROUP LTD.
Dedicated Schools Grant BG0015,DSG High Needs Block,Third Party Payments,425005,Rendered by Voluntary Organisations,01/09/2021,3907155-PIG_104974,"6,419.16",WITHERSLACK GROUP LTD.
Children and Young Peoples Services,Head of Childrens Social Care,Third Party Payments,425021,Rendered by Voluntary Organisations,01/09/2021,3907155-PIG_104976,"15,334.72",WITHERSLACK GROUP LTD.
Children and Young Peoples Services,Head of Childrens Social Care,Third Party Payments,425021,Rendered by Voluntary Organisations,01/09/2021,3907155-PIG_104977,"28,712.72",WITHERSLACK GROUP LTD.
Children and Young Peoples Services,Head of Childrens Social Care,Third Party Payments,425021,Rendered by Voluntary Organisations,01/09/2021,3907155-PIG_104992,"17,028.24",WITHERSLACK GROUP LTD.
Dedicated Schools Grant BG0015,DSG High Needs Block,Third Party Payments,425005,Rendered by Voluntary Organisations,01/09/2021,3907156-PIG_104991,"9,716.64",WITHERSLACK GROUP T/A CEDAR HOUSE.
Children and Young Peoples Services,Head of Childrens Social Care,Third Party Payments,425021,Rendered by Voluntary Organisations,01/09/2021,3907156-PIG_104975,"6,611.12",WITHERSLACK GROUP T/A CEDAR HOUSE.
Neighbourhoods and Climate Change,Environmental Services,Supplies and Services,304999,Equipment and Materials,01/09/2021,3906779-RED-08-2021-189,"6,929.00",YORKSHIRE DALES NATIONAL PARK AUTHORITY (NPA).
Dedicated Schools Grant BG0015,DSG High Needs Block,Third Party Payments,425005,Rendered by Voluntary Organisations,01/09/2021,3907157-PIG_104978,"5,257.56",YOUNG FOUNDATIONS LTD.
Children and Young Peoples Services,Head of Childrens Social Care,Third Party Payments,425021,Rendered by Voluntary Organisations,01/09/2021,3907158-PIG_105569,"7,205.00",YOUNG FOUNDATIONS LTD.
Children and Young Peoples Services,Childrens Services Operational Support,Supplies and Services,342053,Computers and Communications,01/09/2021,3906780-101496,640.00,YOUTHINMIND LTD.
"Regeneration, Economy and Growth",Business Durham CL0850,Supplies and Services,384899,Miscellaneous Expenses,02/09/2021,3907159-DBRG-09-2021-01,"1,080.00",A1 STAGE.
"Regeneration, Economy and Growth",Business Durham CL0850,Supplies and Services,384899,Miscellaneous Expenses,02/09/2021,3907159-DBRG-09-2021-02,900.00,A1 STAGE.
"Regeneration, Economy and Growth",Business Durham CL0850,Supplies and Services,384899,Miscellaneous Expenses,02/09/2021,3907159-DBRG-09-2021-03,"1,282.50",A1 STAGE.
"Regeneration, Economy and Growth",Business Durham CL0850,Supplies and Services,384899,Miscellaneous Expenses,02/09/2021,3907159-DBRG-09-2021-04,"1,219.20",A1 STAGE.
"Regeneration, Economy and Growth",Business Durham CL0850,Supplies and Services,384899,Miscellaneous Expenses,02/09/2021,3907159-DBRG-09-2021-08,"3,510.00",A1 STAGE.
Children and Young Peoples Services,Head of Childrens Social Care,Supplies and Services,338044,Services,02/09/2021,3907162-MWJA760821,"1,276.60",ADVANCED CHILD CARE ASSESSMENTS LTD.
Children and Young Peoples Services,Head of Childrens Social Care,Supplies and Services,338044,Services,02/09/2021,3907162-MWNG1560821,"2,557.00",ADVANCED CHILD CARE ASSESSMENTS LTD.
Adult and Health Services,Head of Adults,Supplies and Services,308011,Furniture,02/09/2021,3907164-172172,564.00,ALBANY OFFICE EQUIPMENT (WHOLESALE) LTD.
"Regeneration, Economy and Growth",Corporate Property and Land,Supplies and Services,304221,Equipment and Materials,02/09/2021,3907169-282963,"2,811.78",AVIRE LTD.
Neighbourhoods and Climate Change,Environmental Services,Supplies and Services,304221,Equipment and Materials,02/09/2021,3907170-98621812,"3,912.30",BALL COLEGRAVE LTD.
Neighbourhoods and Climate Change,Environmental Services,Supplies and Services,304221,Equipment and Materials,02/09/2021,3907170-98621813,"1,184.87",BALL COLEGRAVE LTD.
Neighbourhoods and Climate Change,Environmental Services,Supplies and Services,304221,Equipment and Materials,02/09/2021,3907170-98621814,"1,542.56",BALL COLEGRAVE LTD.
Neighbourhoods and Climate Change,Environmental Services,Supplies and Services,304221,Equipment and Materials,02/09/2021,3907170-98621815,609.73,BALL COLEGRAVE LTD.
Neighbourhoods and Climate Change,Environmental Services,Supplies and Services,304221,Equipment and Materials,02/09/2021,3907170-98621816,"1,028.38",BALL COLEGRAVE LTD.
Dedicated Schools Grant BG0015,DSG High Needs Block,Supplies and Services,304259,Equipment and Materials,02/09/2021,3907173-132183,"1,997.00",BENNETT WORKPLACE.
Children and Young Peoples Services,Head of Early Help Inclusion & Vulnerable Children.,Supplies and Services,342051,Computers and Communications,02/09/2021,3907180-ES11873,"8,049.50",CACI LTD.
Adult and Health Services,Head of Adults,Third Party Payments,479140,Purchase of Care,02/09/2021,3907182-SUSTAINABILITYPAYMENT17/4,"5,525.46",CARE UK COMMUNITY PARTNERSHIPS LTD.
Adult and Health Services,Head of Adults,Third Party Payments,479140,Purchase of Care,02/09/2021,3907183-SUSTAINABILITYPAYMENT17/16,"8,067.80",CARE UK COMMUNITY PARTNERSHIPS LTD.
Children and Young Peoples Services,Head of Education and Skills,Supplies and Services,384199,Miscellaneous Expenses,02/09/2021,3907184-CW452,840.00,CAREERWAVE LTD.
"Regeneration, Economy and Growth",Corporate Property and Land,Supplies and Services,304221,Equipment and Materials,02/09/2021,3907187-6648,635.00,CENTURY FABRICATIONS LTD.
Neighbourhoods and Climate Change,Technical Services CM0300,Supplies and Services,304358,Equipment and Materials,02/09/2021,3907188-1824,"4,851.94",CG SIMPSON & SON.
Children and Young Peoples Services,Head of Education and Skills,Supplies and Services,384540,Miscellaneous Expenses,02/09/2021,3907198-3529,905.00,CURIOUS 12 LTD.
Children and Young Peoples Services,Head of Education and Skills,Third Party Payments,440999,Other third party payments E440,02/09/2021,3907202-Z7EY-P7PG-SALARY6,"1,010.75",DAYPARK LTD T/A YELLOW WELLIES.
Neighbourhoods and Climate Change,Technical Services CM0300,Supplies and Services,338066,Services,02/09/2021,3907206-DCL/2827,900.00,DENDRA CONSULTING LTD.
Neighbourhoods and Climate Change,Technical Services CM0300,Supplies and Services,338066,Services,02/09/2021,3907206-DCL/2828,970.00,DENDRA CONSULTING LTD.
Resources BK0010,Legal & Democratic Services,Supplies and Services,338105,Services,02/09/2021,3907208-JRB082021JC,"1,198.50",REDACTED - PAYMENT TO INDIVIDUAL
Children and Young Peoples Services,Head of Education and Skills,Construction work A908,908105,Construction work,02/09/2021,3907211-1281,"2,900.00",DYNAMIC TRANSPORT PLANNING LTD.
Neighbourhoods and Climate Change,Environmental Services,Transport,230005,Contract Hire,02/09/2021,3907218-8176288,"2,193.25",ENTERPRISE FLEX-E-RENT T/A BURNT TREE GROUP LTD.
Children and Young Peoples Services,Head of Education and Skills,Third Party Payments,440999,Other third party payments E440,02/09/2021,3907229-YSF3-W99R-SALARY6,716.39,GA WALTON & SON LTD.
Neighbourhoods and Climate Change,Technical Services CM0300,Supplies and Services,304358,Equipment and Materials,02/09/2021,3907230-78790,"2,425.16",GEORGE VARDY HAULAGE.
Neighbourhoods and Climate Change,Environmental Services,Supplies and Services,338066,Services,02/09/2021,3907233-189727,750.00,H&H REEDS PRINTERS LTD.
Adult and Health Services,Head of Adults,Third Party Payments,479140,Purchase of Care,02/09/2021,3907236-SUSTAINABILITYPAYMENT17/18,"5,820.00",HC-ONE LTD.
Adult and Health Services,Head of Adults,Third Party Payments,479140,Purchase of Care,02/09/2021,3907237-SUSTAINABILITYPAYMENT17/3,"6,414.65",HC-ONE LTD.
"Regeneration, Economy and Growth",Culture Sport and Tourism,Supplies and Services,304259,Equipment and Materials,02/09/2021,3907239-INVA03429,"2,845.00",HS SPORTS LTD.
"Regeneration, Economy and Growth",Culture Sport and Tourism,Premises,120009,Energy Costs,02/09/2021,3907242-15277,"1,768.35",IMPALA ESTATES LTD.
Neighbourhoods and Climate Change,Environmental Services,Supplies and Services,324117,Provisions E324,02/09/2021,3907245-13928,546.40,J MORAN LTD T/A CAFFE VINCI.
Neighbourhoods and Climate Change,Technical Services CM0300,Supplies and Services,304358,Equipment and Materials,02/09/2021,3907246-5306208,925.00,JA GILSON (AGRICULTURAL CONTRACTORS) LTD.
Neighbourhoods and Climate Change,Technical Services CM0300,Supplies and Services,304358,Equipment and Materials,02/09/2021,3907246-5306216,562.50,JA GILSON (AGRICULTURAL CONTRACTORS) LTD.
Neighbourhoods and Climate Change,Technical Services CM0300,Supplies and Services,304358,Equipment and Materials,02/09/2021,3907246-5306243,562.50,JA GILSON (AGRICULTURAL CONTRACTORS) LTD.
Neighbourhoods and Climate Change,Environmental Services,Supplies and Services,338066,Services,02/09/2021,3907247-BURSARYAUG2021,719.08,JACK RAVENSCROFT.
"Regeneration, Economy and Growth",Transport and Contracted Services,Supplies and Services,336005,Advertising E336,02/09/2021,3907248-INV-1556,"1,500.00",JAK HQ LTD.
Neighbourhoods and Climate Change,Environmental Services,Supplies and Services,304357,Equipment and Materials,02/09/2021,3907251-2928140,576.54,JOHN NIXON LTD.
"Regeneration, Economy and Growth",Business Durham CL0850,Supplies and Services,384899,Miscellaneous Expenses,02/09/2021,3907258-DBRG-09-2021-12,"3,750.00",KOODOO CREATIVE LTD.
Neighbourhoods and Climate Change,Environmental Services,Supplies and Services,338066,Services,02/09/2021,3907262-02-08/21,"1,675.00",LIONEL PLAYFORD CONTEMPORARY ART.
Neighbourhoods and Climate Change,Technical Services CM0300,Supplies and Services,304358,Equipment and Materials,02/09/2021,3907265-MS3031,724.50,M SPENCE SURFACING LTD.
Neighbourhoods and Climate Change,Technical Services CM0300,Supplies and Services,304358,Equipment and Materials,02/09/2021,3907265-MS3032,517.50,M SPENCE SURFACING LTD.
Neighbourhoods and Climate Change,Technical Services CM0300,Supplies and Services,304358,Equipment and Materials,02/09/2021,3907265-MS3033,531.00,M SPENCE SURFACING LTD.
Neighbourhoods and Climate Change,Technical Services CM0300,Supplies and Services,304358,Equipment and Materials,02/09/2021,3907265-MS3049,504.00,M SPENCE SURFACING LTD.
Neighbourhoods and Climate Change,Environmental Services,Cap Exp on Grants & Other Financial Assistance (REFCUS),918501,Exp assets not owned by authority,02/09/2021,3907272-02/07/2021/6177,"5,813.90",MICROPROPAGATION SERVICES (EM) LTD T/A BEADAMOSS.
Neighbourhoods and Climate Change,Environmental Services,Cap Exp on Grants & Other Financial Assistance (REFCUS),918501,Exp assets not owned by authority,02/09/2021,3907272-05/08/2021/6182,"7,512.01",MICROPROPAGATION SERVICES (EM) LTD T/A BEADAMOSS.
"Regeneration, Economy and Growth",Corporate Property and Land,Supplies and Services,304221,Equipment and Materials,02/09/2021,3907273-0000097859,"1,364.56",MIKROFILL SYSTEMS LTD.
"Regeneration, Economy and Growth",Corporate Property and Land,Third Party Payments,430100,Rendered by Private Contractors,02/09/2021,3907276-DCC199,"1,500.00",MR WILLIAM MAGUIRE T/A VALLUM LIFTS LTD.
Neighbourhoods and Climate Change,Technical Services CM0300,Supplies and Services,304221,Equipment and Materials,02/09/2021,3907277-0000102652,561.18,NAL LTD.
Neighbourhoods and Climate Change,Environmental Services,Transport,230005,Contract Hire,02/09/2021,3907278-144340,770.00,ND BROWN LTD.
"Regeneration, Economy and Growth",Culture Sport and Tourism,Supplies and Services,338066,Services,02/09/2021,3907281-NH21-22/010,"10,000.00",NORTHERN HEARTLANDS.
Neighbourhoods and Climate Change,Technical Services CM0300,Third Party Payments,430100,Rendered by Private Contractors,02/09/2021,3907283-DI20368018,"1,079.78",NORTHERN POWERGRID (NORTHEAST) LTD.
"Regeneration, Economy and Growth",Corporate Property and Land,Supplies and Services,304221,Equipment and Materials,02/09/2021,3907285-652807,787.00,NORTHERN TOOLS & ACCESSORIES.
Resources BK0010,Corporate Finance & Commercial Services,Supplies and Services,342053,Computers and Communications,02/09/2021,3907290-460006357,"10,936.50",ORACLE CORPORATION UK LTD.
Adult and Health Services,Public Health CC0450,Supplies and Services,332047,Printing Stationery and Gen Off Exps,02/09/2021,3907293-23052,"1,844.63",PA PROMOTIONS LTD.
Resources BK0010,Legal & Democratic Services,Supplies and Services,338042,Services,02/09/2021,3907297-INV/JR17,"1,530.00",PARKLANE PLOWDEN CHAMBERS (BARRISTERS).
"Regeneration, Economy and Growth",Business Durham CL0850,Third Party Payments,430100,Rendered by Private Contractors,02/09/2021,3907300-DBRG-09-2021-13,"17,500.00",PEOPLE ENTERPRISES LTD.
"Regeneration, Economy and Growth",Corporate Property and Land,Supplies and Services,304221,Equipment and Materials,02/09/2021,3907301-397225,570.00,PEW ELECTRICAL DISTRIBUTORS LTD.
Children and Young Peoples Services,Childrens Services Operational Support,Supplies and Services,352001,Conference Expenses,02/09/2021,3907307-3743,"4,728.00",PRICE TRAINING LTD.
Neighbourhoods and Climate Change,Technical Services CM0300,Supplies and Services,304221,Equipment and Materials,02/09/2021,3907309-240273,884.52,PUDSEY DIAMOND ENGINEERING LTD.
"Regeneration, Economy and Growth",Business Durham CL0850,Supplies and Services,384899,Miscellaneous Expenses,02/09/2021,3907314-DBRG-09-2021-14,"4,798.50",ROXY BEAUTY LTD.
Neighbourhoods and Climate Change,Technical Services CM0300,Supplies and Services,304358,Equipment and Materials,02/09/2021,3907318-2728,857.20,S & R LANDSCAPES.
Neighbourhoods and Climate Change,Technical Services CM0300,Supplies and Services,304358,Equipment and Materials,02/09/2021,3907318-2729,"1,017.00",S & R LANDSCAPES.
Neighbourhoods and Climate Change,Technical Services CM0300,Supplies and Services,304358,Equipment and Materials,02/09/2021,3907318-2730,888.00,S & R LANDSCAPES.
Neighbourhoods and Climate Change,Technical Services CM0300,Supplies and Services,304358,Equipment and Materials,02/09/2021,3907318-2734,654.50,S & R LANDSCAPES.
Neighbourhoods and Climate Change,Technical Services CM0300,Supplies and Services,304358,Equipment and Materials,02/09/2021,3907318-2738,"1,023.75",S & R LANDSCAPES.
Neighbourhoods and Climate Change,Technical Services CM0300,Supplies and Services,304358,Equipment and Materials,02/09/2021,3907318-2785,922.25,S & R LANDSCAPES.
Neighbourhoods and Climate Change,Technical Services CM0300,Supplies and Services,304358,Equipment and Materials,02/09/2021,3907318-2797,"1,485.00",S & R LANDSCAPES.
Neighbourhoods and Climate Change,Technical Services CM0300,Supplies and Services,304358,Equipment and Materials,02/09/2021,3907318-2798,843.75,S & R LANDSCAPES.
Neighbourhoods and Climate Change,Technical Services CM0300,Supplies and Services,304358,Equipment and Materials,02/09/2021,3907318-2799,843.75,S & R LANDSCAPES.
Neighbourhoods and Climate Change,Technical Services CM0300,Supplies and Services,304358,Equipment and Materials,02/09/2021,3907318-2800,890.00,S & R LANDSCAPES.
Neighbourhoods and Climate Change,Technical Services CM0300,Supplies and Services,304358,Equipment and Materials,02/09/2021,3907318-2801,"1,006.50",S & R LANDSCAPES.
Neighbourhoods and Climate Change,Technical Services CM0300,Supplies and Services,304358,Equipment and Materials,02/09/2021,3907318-2803,777.00,S & R LANDSCAPES.
Neighbourhoods and Climate Change,Technical Services CM0300,Supplies and Services,304358,Equipment and Materials,02/09/2021,3907318-2804,992.00,S & R LANDSCAPES.
Neighbourhoods and Climate Change,Technical Services CM0300,Supplies and Services,304358,Equipment and Materials,02/09/2021,3907318-2805,663.00,S & R LANDSCAPES.
Neighbourhoods and Climate Change,Technical Services CM0300,Supplies and Services,304358,Equipment and Materials,02/09/2021,3907318-2806,814.00,S & R LANDSCAPES.
Neighbourhoods and Climate Change,Technical Services CM0300,Supplies and Services,304358,Equipment and Materials,02/09/2021,3907318-2808,962.00,S & R LANDSCAPES.
Neighbourhoods and Climate Change,Technical Services CM0300,Supplies and Services,304358,Equipment and Materials,02/09/2021,3907318-2809,962.00,S & R LANDSCAPES.
Neighbourhoods and Climate Change,Technical Services CM0300,Supplies and Services,304358,Equipment and Materials,02/09/2021,3907318-2811,777.00,S & R LANDSCAPES.
"Regeneration, Economy and Growth",Corporate Property and Land,Supplies and Services,304358,Equipment and Materials,02/09/2021,3907318-2802,"1,006.50",S & R LANDSCAPES.
Children and Young Peoples Services,Head of Education and Skills,Construction work A908,908105,Construction work,02/09/2021,3907319-6369,"1,680.00",SAFE STRIP UK LTD.
"Regeneration, Economy and Growth",Corporate Property and Land,Third Party Payments,430100,Rendered by Private Contractors,02/09/2021,3907319-6421,"4,473.60",SAFE STRIP UK LTD.
Neighbourhoods and Climate Change,Environmental Services,Third Party Payments,430113,Rendered by Private Contractors,02/09/2021,3907328-175571,"1,903.34",SHOWSEC INTERNATIONAL LTD.
Neighbourhoods and Climate Change,Environmental Services,Transport,230710,Contract Hire,02/09/2021,3907330-105/21/19972,"1,440.00",SOCIETE GENERALE EQUIPMENT FINANCE LTD.
Neighbourhoods and Climate Change,Environmental Services,Supplies and Services,338027,Services,02/09/2021,3907331-0000903969,"4,831.58",SOCOTEC UK LTD.
Neighbourhoods and Climate Change,Environmental Services,Supplies and Services,304221,Equipment and Materials,02/09/2021,3907333-1278A,"1,065.76",SPALDINGS (UK) LTD.
"Regeneration, Economy and Growth",Culture Sport and Tourism,Supplies and Services,384237,Miscellaneous Expenses,02/09/2021,3907341-02/08-06/08,750.00,THE VILLAGE STORE MEDWAY LTD.
"Regeneration, Economy and Growth",Culture Sport and Tourism,Supplies and Services,384237,Miscellaneous Expenses,02/09/2021,3907341-16/08-20/08,717.45,THE VILLAGE STORE MEDWAY LTD.
"Regeneration, Economy and Growth",Culture Sport and Tourism,Supplies and Services,384237,Miscellaneous Expenses,02/09/2021,3907341-23/08-26/08,500.00,THE VILLAGE STORE MEDWAY LTD.
Neighbourhoods and Climate Change,Environmental Services,Supplies and Services,304221,Equipment and Materials,02/09/2021,3907343-NSIN00060164,"2,721.60",THOMAS OWEN & SONS (NEWCASTLE) LTD.
Neighbourhoods and Climate Change,Environmental Services,Supplies and Services,304221,Equipment and Materials,02/09/2021,3907343-NSIN00059841,"1,179.36",THOMAS OWEN & SONS (NEWCASTLE) LTD.
Neighbourhoods and Climate Change,Technical Services CM0300,Stock A926,926900,Stock in hand-Inventory system,02/09/2021,3907343-NSIN00060705,652.80,THOMAS OWEN & SONS (NEWCASTLE) LTD.
Neighbourhoods and Climate Change,Technical Services CM0300,Third Party Payments,430100,Rendered by Private Contractors,02/09/2021,3907345-113921,"31,677.75",TOTAL SURFACE SOLUTIONS LTD.
Neighbourhoods and Climate Change,Technical Services CM0300,Third Party Payments,430100,Rendered by Private Contractors,02/09/2021,3907345-114021,"17,954.65",TOTAL SURFACE SOLUTIONS LTD.
Resources BK0010,Legal & Democratic Services,Supplies and Services,338042,Services,02/09/2021,3907347-286135/INVJO454,"2,000.00",TRINITY CHAMBERS.
Resources BK0010,Legal & Democratic Services,Supplies and Services,338042,Services,02/09/2021,3907347-286135/INVKW524,500.00,TRINITY CHAMBERS.
Neighbourhoods and Climate Change,Environmental Services,Transport,230005,Contract Hire,02/09/2021,3907351-87661,730.00,WARREN ACCESS LTD.
Neighbourhoods and Climate Change,Environmental Services,Supplies and Services,304252,Equipment and Materials,02/09/2021,3907355-21-0452,620.00,WM O SILMON LTD.
Neighbourhoods and Climate Change,Technical Services CM0300,Stock A926,926900,Stock in hand-Inventory system,02/09/2021,3907356-76756318,"2,203.80",WOLSELEY UK LTD.
Resources BK0010,Digital and Customer Services,Vehicles Equipment Furniture and Fittings,912701,Computer equipment,02/09/2021,3907357-KZ93664,"16,068.00",XMA LTD.
Resources BK0010,Digital and Customer Services,Stock A926,926900,Stock in hand-Inventory system,02/09/2021,3907357-KZ93982,"2,157.20",XMA LTD.
Neighbourhoods and Climate Change,Environmental Services,Third Party Payments,430100,Rendered by Private Contractors,03/09/2021,3908222-3140,"3,150.00",A & J GUTHRIE.
Neighbourhoods and Climate Change,Environmental Services,Third Party Payments,430100,Rendered by Private Contractors,03/09/2021,3908222-3141,"3,055.50",A & J GUTHRIE.
Adult and Health Services,Head of Adults,Third Party Payments,473101,Purchase of Care,03/09/2021,3907363-I-21-1476869,"4,298.92",ACCEPT CARE LTD.
Adult and Health Services,Head of Adults,Third Party Payments,478101,Purchase of Care,03/09/2021,3907363-I-21-1476574,"19,263.32",ACCEPT CARE LTD.
Adult and Health Services,Head of Adults,Third Party Payments,478101,Purchase of Care,03/09/2021,3907363-I-21-1476581,"39,735.00",ACCEPT CARE LTD.
Adult and Health Services,Head of Adults,Third Party Payments,478101,Purchase of Care,03/09/2021,3907363-I-21-1476633,"25,350.00",ACCEPT CARE LTD.
Adult and Health Services,Head of Adults,Third Party Payments,478101,Purchase of Care,03/09/2021,3907363-I-21-1476710,"36,215.96",ACCEPT CARE LTD.
Adult and Health Services,Head of Adults,Third Party Payments,478101,Purchase of Care,03/09/2021,3907363-I-21-1476756,"33,744.00",ACCEPT CARE LTD.
Adult and Health Services,Head of Adults,Third Party Payments,478101,Purchase of Care,03/09/2021,3907363-I-21-1476761,"26,135.40",ACCEPT CARE LTD.
Adult and Health Services,Head of Adults,Third Party Payments,478101,Purchase of Care,03/09/2021,3907363-I-21-1476827,"11,040.00",ACCEPT CARE LTD.
Adult and Health Services,Head of Adults,Third Party Payments,478101,Purchase of Care,03/09/2021,3907556-I-21-1308911,"1,244.00",ACTION DEAFNESS LTD.
Adult and Health Services,Head of Adults,Third Party Payments,478101,Purchase of Care,03/09/2021,3907556-I-21-1476821,"1,280.00",ACTION DEAFNESS LTD.
"Regeneration, Economy and Growth",Corporate Property and Land,Construction work A908,908105,Construction work,03/09/2021,3908224-47901100,"4,399.16",ADT FIRE & SECURITY PLC.
"Regeneration, Economy and Growth",Corporate Property and Land,Supplies and Services,304221,Equipment and Materials,03/09/2021,3908228-SI18898,"10,650.00",AMBIC LTD.
Adult and Health Services,Commissioning inc Supporting People,Third Party Payments,441001,Supporting People E441,03/09/2021,3907582-713838,"2,442.84",ANCHOR HANOVER GROUP.
Adult and Health Services,Head of Adults,Third Party Payments,472101,Purchase of Care,03/09/2021,3907597-I-21-1476613,"1,092.00",APM CLEANING LTD.
"Regeneration, Economy and Growth",Development and Housing,Premises,106082,Centrally Controlled Rep and Maint,03/09/2021,3908231-35878,515.00,AQUAJET DRAIN CLEANING LTD.
Adult and Health Services,Head of Adults,Third Party Payments,472101,Purchase of Care,03/09/2021,3907599-I-21-1476681,"3,413.76",ASCOT CARE AGENCY LTD.
Adult and Health Services,Head of Adults,Third Party Payments,470101,Purchase of Care,03/09/2021,3907602-I-21-1476615,691.20,ASPIRE CARE GROUP.
Adult and Health Services,Head of Adults,Third Party Payments,478101,Purchase of Care,03/09/2021,3907606-I-21-1476627,"10,559.72",AUTISM CARE UK (4) LTD.
Adult and Health Services,Head of Adults,Third Party Payments,478101,Purchase of Care,03/09/2021,3907606-I-21-1476800,"20,285.68",AUTISM CARE UK (4) LTD.
Adult and Health Services,Head of Adults,Third Party Payments,478101,Purchase of Care,03/09/2021,3907606-I-21-1476880,"8,539.52",AUTISM CARE UK (4) LTD.
Adult and Health Services,Head of Adults,Third Party Payments,478101,Purchase of Care,03/09/2021,3907606-I-21-1476887,"13,568.64",AUTISM CARE UK (4) LTD.
"Regeneration, Economy and Growth",Corporate Property and Land,Third Party Payments,430100,Rendered by Private Contractors,03/09/2021,3908233-33309,561.00,AYCLIFFE FABRICATIONS LTD.
Adult and Health Services,Head of Adults,Third Party Payments,478101,Purchase of Care,03/09/2021,3907607-I-21-1476649,"1,509.95",BARBARA LAWLOR (SHARED LIVES PROVIDER).
Children and Young Peoples Services,Head of Early Help Inclusion & Vulnerable Children.,Supplies and Services,308013,Furniture,03/09/2021,3908234-8192,622.00,BARRONS CONTRACTS.
Adult and Health Services,Head of Adults,Third Party Payments,478101,Purchase of Care,03/09/2021,3907610-I-21-1476666,"15,289.80",BEECHFIELD CARE & SUPPORT LTD.
Adult and Health Services,Commissioning inc Supporting People,Third Party Payments,442002,Supporting People E442,03/09/2021,3907616-723809,"12,184.98",BID SERVICES.
Adult and Health Services,Public Health CC0450,Supplies and Services,338066,Services,03/09/2021,3908238-SIN026399,"125,525.10",BLOOM PROCUREMENT SERVICES LTD (FORMERLY NEPRO LTD).
Adult and Health Services,Head of Adults,Third Party Payments,472101,Purchase of Care,03/09/2021,3907618-I-21-1476651,"15,184.76",BLOSSOM HOME CARE.
Adult and Health Services,Head of Adults,Third Party Payments,470101,Purchase of Care,03/09/2021,3907620-I-21-1476903,"5,021.64",BONDCARE WILLINGTON LTD.
Adult and Health Services,Head of Adults,Third Party Payments,470101,Purchase of Care,03/09/2021,3907621-I-21-1476785,"1,847.04",BONDCARE WILLINGTON LTD.
Adult and Health Services,Head of Adults,Third Party Payments,470101,Purchase of Care,03/09/2021,3907622-I-21-1476698,"2,077.92",BONDCARE WILLINGTON LTD.
Adult and Health Services,Head of Adults,Third Party Payments,478101,Purchase of Care,03/09/2021,3907619-I-21-1476881,"47,634.32",BONDCARE WILLINGTON LTD.
Adult and Health Services,Head of Adults,Third Party Payments,478101,Purchase of Care,03/09/2021,3907619-I-21-1476734,"34,010.88",BONDCARE WILLINGTON LTD.
"Regeneration, Economy and Growth",Corporate Property and Land,Third Party Payments,430100,Rendered by Private Contractors,03/09/2021,3908245-78304,"7,994.00",CARE ABILITY HEALTHCARE LTD.
Adult and Health Services,Head of Adults,Supplies and Services,338366,Services,03/09/2021,3908245-77750,625.42,CARE ABILITY HEALTHCARE LTD.
Adult and Health Services,Head of Adults,Supplies and Services,338366,Services,03/09/2021,3908245-77985,924.20,CARE ABILITY HEALTHCARE LTD.
Adult and Health Services,Head of Adults,Supplies and Services,338366,Services,03/09/2021,3908245-78080,"1,005.00",CARE ABILITY HEALTHCARE LTD.
Adult and Health Services,Head of Adults,Third Party Payments,472101,Purchase of Care,03/09/2021,3907630-I-21-1476695,"2,716.53",CARE MATTERS (HOMECARE) LTD.
Adult and Health Services,Head of Adults,Third Party Payments,472101,Purchase of Care,03/09/2021,3907631-I-21-1476743,"3,384.84",CARE VANTAGE LTD.
Adult and Health Services,Head of Adults,Third Party Payments,472101,Purchase of Care,03/09/2021,3907639-I-21-1476657,"25,929.89",CASTLE CARE TEESDALE LTD.
"Regeneration, Economy and Growth",Corporate Property and Land,Third Party Payments,430100,Rendered by Private Contractors,03/09/2021,3908250-604,"2,010.99",CEILINGS DIRECT LTD.
"Regeneration, Economy and Growth",Corporate Property and Land,Third Party Payments,430100,Rendered by Private Contractors,03/09/2021,3908250-603,"15,454.38",CEILINGS DIRECT LTD.
Resources BK0010,Finance & Transactional Services,Supplies and Services,304040,Equipment and Materials,03/09/2021,3908255-C/BN224010,"9,873.78",CIVICA UK LTD.
Adult and Health Services,Head of Adults,Third Party Payments,472101,Purchase of Care,03/09/2021,3907662-I-21-1476684,"7,006.12",CLASSIC RESOURCES UK LTD T/A CLASSIC RESOURCES HOMECARE.
Adult and Health Services,Head of Adults,Third Party Payments,472101,Purchase of Care,03/09/2021,3907667-I-21-1476784,"122,571.82",COMFORT CALL LTD.
Adult and Health Services,Head of Adults,Third Party Payments,478101,Purchase of Care,03/09/2021,3907668-I-21-1476808,"13,498.56",COMMUNITY INTEGRATED CARE LTD.
Adult and Health Services,Head of Adults,Third Party Payments,478101,Purchase of Care,03/09/2021,3907668-I-21-1476811,"17,664.53",COMMUNITY INTEGRATED CARE LTD.
Adult and Health Services,Head of Adults,Third Party Payments,478101,Purchase of Care,03/09/2021,3907668-I-21-1476707,"20,503.20",COMMUNITY INTEGRATED CARE LTD.
Adult and Health Services,Head of Adults,Third Party Payments,478101,Purchase of Care,03/09/2021,3907668-I-21-1476727,"55,431.44",COMMUNITY INTEGRATED CARE LTD.
Adult and Health Services,Head of Adults,Third Party Payments,478101,Purchase of Care,03/09/2021,3907668-I-21-1476875,"20,928.96",COMMUNITY INTEGRATED CARE LTD.
Adult and Health Services,Head of Adults,Third Party Payments,478101,Purchase of Care,03/09/2021,3907668-I-21-1476706,"22,865.52",COMMUNITY INTEGRATED CARE LTD.
Adult and Health Services,Head of Adults,Third Party Payments,478101,Purchase of Care,03/09/2021,3907668-I-21-1476796,"17,925.84",COMMUNITY INTEGRATED CARE LTD.
Adult and Health Services,Head of Adults,Third Party Payments,478101,Purchase of Care,03/09/2021,3907668-I-21-1476810,"22,204.17",COMMUNITY INTEGRATED CARE LTD.
"Regeneration, Economy and Growth",Culture Sport and Tourism,Third Party Payments,430100,Rendered by Private Contractors,03/09/2021,3908259-PSINV05032,"3,737.83",COMPETITION LINE UK LTD T/A LIFESTYLE FITNESS.
"Regeneration, Economy and Growth",Culture Sport and Tourism,Third Party Payments,430100,Rendered by Private Contractors,03/09/2021,3908259-PSINV05071,"3,955.49",COMPETITION LINE UK LTD T/A LIFESTYLE FITNESS.
"Regeneration, Economy and Growth",Culture Sport and Tourism,Third Party Payments,430100,Rendered by Private Contractors,03/09/2021,3908259-PSINV05031,"23,290.27",COMPETITION LINE UK LTD T/A LIFESTYLE FITNESS.
"Regeneration, Economy and Growth",Culture Sport and Tourism,Third Party Payments,430100,Rendered by Private Contractors,03/09/2021,3908259-PSINV05070,"26,232.85",COMPETITION LINE UK LTD T/A LIFESTYLE FITNESS.
"Regeneration, Economy and Growth",Culture Sport and Tourism,Third Party Payments,430100,Rendered by Private Contractors,03/09/2021,3908259-PSINV05033,"16,798.13",COMPETITION LINE UK LTD T/A LIFESTYLE FITNESS.
"Regeneration, Economy and Growth",Culture Sport and Tourism,Third Party Payments,430100,Rendered by Private Contractors,03/09/2021,3908259-PSINV05072,"19,685.72",COMPETITION LINE UK LTD T/A LIFESTYLE FITNESS.
"Regeneration, Economy and Growth",Culture Sport and Tourism,Third Party Payments,430100,Rendered by Private Contractors,03/09/2021,3908259-PSINV05030,"7,066.63",COMPETITION LINE UK LTD T/A LIFESTYLE FITNESS.
"Regeneration, Economy and Growth",Culture Sport and Tourism,Third Party Payments,430100,Rendered by Private Contractors,03/09/2021,3908259-PSINV05069,"7,532.93",COMPETITION LINE UK LTD T/A LIFESTYLE FITNESS.
"Regeneration, Economy and Growth",Culture Sport and Tourism,Third Party Payments,430100,Rendered by Private Contractors,03/09/2021,3908259-PSINV05029,"23,568.69",COMPETITION LINE UK LTD T/A LIFESTYLE FITNESS.
"Regeneration, Economy and Growth",Culture Sport and Tourism,Third Party Payments,430100,Rendered by Private Contractors,03/09/2021,3908259-PSINV05068,"21,775.26",COMPETITION LINE UK LTD T/A LIFESTYLE FITNESS.
"Regeneration, Economy and Growth",Culture Sport and Tourism,Third Party Payments,430100,Rendered by Private Contractors,03/09/2021,3908259-PSINV05034,"25,708.06",COMPETITION LINE UK LTD T/A LIFESTYLE FITNESS.
"Regeneration, Economy and Growth",Culture Sport and Tourism,Third Party Payments,430100,Rendered by Private Contractors,03/09/2021,3908259-PSINV05073,"23,785.90",COMPETITION LINE UK LTD T/A LIFESTYLE FITNESS.
"Regeneration, Economy and Growth",Culture Sport and Tourism,Third Party Payments,430100,Rendered by Private Contractors,03/09/2021,3908259-PSINV05035,"3,196.44",COMPETITION LINE UK LTD T/A LIFESTYLE FITNESS.
Adult and Health Services,Head of Adults,Third Party Payments,472101,Purchase of Care,03/09/2021,3907669-I-21-1476607,702.00,CONFIDENCE CARE & SUPPORT LTD.
"Regeneration, Economy and Growth",Culture Sport and Tourism,Supplies and Services,384199,Miscellaneous Expenses,03/09/2021,3908263-NEI-HCL-09-2021-01,"1,928.58",COUNTY DURHAM SPORT.
Adult and Health Services,Head of Adults,Third Party Payments,472101,Purchase of Care,03/09/2021,3907674-I-21-1476715,882.00,CREATIVE SUPPORT LTD.
Adult and Health Services,Head of Adults,Third Party Payments,470101,Purchase of Care,03/09/2021,3907675-I-21-1476635,"1,341.92",CREATIVE SUPPORT LTD.
Adult and Health Services,Head of Adults,Third Party Payments,478101,Purchase of Care,03/09/2021,3907674-I-21-1476805,"9,920.24",CREATIVE SUPPORT LTD.
Adult and Health Services,Head of Adults,Third Party Payments,478101,Purchase of Care,03/09/2021,3907674-I-21-1476883,"27,803.32",CREATIVE SUPPORT LTD.
Adult and Health Services,Head of Adults,Third Party Payments,478101,Purchase of Care,03/09/2021,3907674-I-21-1476886,"3,000.60",CREATIVE SUPPORT LTD.
Adult and Health Services,Head of Adults,Third Party Payments,478101,Purchase of Care,03/09/2021,3907674-I-21-1476891,"19,329.36",CREATIVE SUPPORT LTD.
Adult and Health Services,Commissioning inc Supporting People,Third Party Payments,442002,Supporting People E442,03/09/2021,3907674-715002,"14,718.90",CREATIVE SUPPORT LTD.
Adult and Health Services,Head of Adults,Third Party Payments,472101,Purchase of Care,03/09/2021,3907676-I-21-1476788,"72,872.21",CRESCENT HOMECARE LTD.
Adult and Health Services,Head of Adults,Third Party Payments,472101,Purchase of Care,03/09/2021,3907678-I-21-1476747,"409,644.66",DALE CARE LTD.
Adult and Health Services,Head of Adults,Third Party Payments,473101,Purchase of Care,03/09/2021,3907703-I-21-1476838,"15,666.40",DEACONSTAR LTD.
Adult and Health Services,Head of Adults,Third Party Payments,478101,Purchase of Care,03/09/2021,3907703-I-21-1476612,"12,484.56",DEACONSTAR LTD.
Adult and Health Services,Head of Adults,Third Party Payments,478101,Purchase of Care,03/09/2021,3907703-I-21-1476745,"6,900.00",DEACONSTAR LTD.
Adult and Health Services,Head of Adults,Third Party Payments,478101,Purchase of Care,03/09/2021,3907703-I-21-1476826,"11,412.00",DEACONSTAR LTD.
Adult and Health Services,Head of Adults,Third Party Payments,478101,Purchase of Care,03/09/2021,3907703-I-21-1476901,"10,440.00",DEACONSTAR LTD.
Adult and Health Services,Head of Adults,Third Party Payments,478101,Purchase of Care,03/09/2021,3907703-I-21-1476902,"5,463.04",DEACONSTAR LTD.
Resources BK0010,Digital and Customer Services,Stock A926,926900,Stock in hand-Inventory system,03/09/2021,3908268-7402740250,"2,970.10",DELL COMPUTER CORPORATION LTD.
Neighbourhoods and Climate Change,Environmental Services,Transport,210057,Repair and Maintenance of Vehicles,03/09/2021,3908269-96411290,508.49,DENNIS EAGLE LTD T/A TERBERG MATEC (UK) LTD.
Adult and Health Services,Head of Adults,Third Party Payments,473101,Purchase of Care,03/09/2021,3907711-I-21-1476690,"6,699.00",DIRECT STEPS.
Resources BK0010,Legal & Democratic Services,Supplies and Services,338101,Services,03/09/2021,3908273-8/2021,"1,200.00",REDACTED - PAYMENT TO INDIVIDUAL
Adult and Health Services,Commissioning inc Supporting People,Third Party Payments,441001,Supporting People E441,03/09/2021,3907717-704448,"18,700.53",DURHAM ACTION ON SINGLE HOUSING LTD.
Adult and Health Services,Head of Adults,Third Party Payments,473101,Purchase of Care,03/09/2021,3907718-I-21-1476842,"1,891.38",DURHAM ALLIANCE FOR COMMUNITY CARE.
Adult and Health Services,Head of Adults,Third Party Payments,473101,Purchase of Care,03/09/2021,3907718-I-21-1476841,"4,671.44",DURHAM ALLIANCE FOR COMMUNITY CARE.
Adult and Health Services,Head of Adults,Third Party Payments,473101,Purchase of Care,03/09/2021,3907718-I-21-1476895,"3,401.43",DURHAM ALLIANCE FOR COMMUNITY CARE.
Adult and Health Services,Head of Adults,Third Party Payments,473101,Purchase of Care,03/09/2021,3907718-I-21-1476593,"2,781.30",DURHAM ALLIANCE FOR COMMUNITY CARE.
Adult and Health Services,Head of Adults,Third Party Payments,473101,Purchase of Care,03/09/2021,3907718-I-21-1476840,"2,268.64",DURHAM ALLIANCE FOR COMMUNITY CARE.
Adult and Health Services,Commissioning inc Supporting People,Third Party Payments,441001,Supporting People E441,03/09/2021,3907720-713810,"4,062.18",EAST DURHAM COMMUNITY INITIATIVES LTD.
Adult and Health Services,Head of Adults,Third Party Payments,473101,Purchase of Care,03/09/2021,3907721-I-21-1476580,"25,236.13",EBONEY HOME CARE LTD.
Adult and Health Services,Head of Adults,Third Party Payments,472101,Purchase of Care,03/09/2021,3907721-I-21-1476786,"29,392.92",EBONEY HOME CARE LTD.
Neighbourhoods and Climate Change,Environmental Services,Transport,210057,Repair and Maintenance of Vehicles,03/09/2021,3908276-S208109,"2,027.50",ECON ENGINEERING LTD.
Neighbourhoods and Climate Change,Environmental Services,Transport,210057,Repair and Maintenance of Vehicles,03/09/2021,3908276-S208264,748.62,ECON ENGINEERING LTD.
Neighbourhoods and Climate Change,Environmental Services,Transport,210057,Repair and Maintenance of Vehicles,03/09/2021,3908276-S208279,951.58,ECON ENGINEERING LTD.
Neighbourhoods and Climate Change,Environmental Services,Transport,210057,Repair and Maintenance of Vehicles,03/09/2021,3908276-S208280,"3,851.34",ECON ENGINEERING LTD.
"Regeneration, Economy and Growth",Corporate Property and Land,Supplies and Services,304221,Equipment and Materials,03/09/2021,3908277-059-286444,"1,260.00",EDMUNDSON ELECTRICAL LTD.
Adult and Health Services,Head of Adults,Third Party Payments,478101,Purchase of Care,03/09/2021,3907726-I-21-1476739,"28,026.40",ELAN CARE WHITETHORN LTD.
Adult and Health Services,Head of Adults,Third Party Payments,472101,Purchase of Care,03/09/2021,3907733-I-21-1476748,"254,166.94",EMBRACING CARE.
Adult and Health Services,Head of Adults,Third Party Payments,478101,Purchase of Care,03/09/2021,3907732-I-21-1476588,"38,724.45",EMBRACING CARE.
Adult and Health Services,Head of Adults,Third Party Payments,478101,Purchase of Care,03/09/2021,3907733-I-21-1476835,"14,640.00",EMBRACING CARE.
Adult and Health Services,Head of Adults,Third Party Payments,473101,Purchase of Care,03/09/2021,3907737-I-21-1476571,"6,153.05",ENDEAVOUR WOODCRAFTS CIC.
"Regeneration, Economy and Growth",Culture Sport and Tourism,Supplies and Services,304259,Equipment and Materials,03/09/2021,3908282-INC-00018144,"1,312.90",ENTRE-PRISES LTD.
Adult and Health Services,Head of Adults,Third Party Payments,478101,Purchase of Care,03/09/2021,3907741-I-21-1476711,"9,120.32",ESSENTIAL CARE & SUPPORT LTD.
Adult and Health Services,Head of Adults,Third Party Payments,478101,Purchase of Care,03/09/2021,3907741-I-21-1476609,"12,756.52",ESSENTIAL CARE & SUPPORT LTD.
Adult and Health Services,Head of Adults,Third Party Payments,478101,Purchase of Care,03/09/2021,3907741-I-21-1476626,"25,314.68",ESSENTIAL CARE & SUPPORT LTD.
Adult and Health Services,Head of Adults,Third Party Payments,478101,Purchase of Care,03/09/2021,3907741-I-21-1476673,"16,549.92",ESSENTIAL CARE & SUPPORT LTD.
Adult and Health Services,Head of Adults,Third Party Payments,478101,Purchase of Care,03/09/2021,3907741-I-21-1476675,"16,578.44",ESSENTIAL CARE & SUPPORT LTD.
Adult and Health Services,Head of Adults,Third Party Payments,478101,Purchase of Care,03/09/2021,3907741-I-21-1476723,"44,668.13",ESSENTIAL CARE & SUPPORT LTD.
Adult and Health Services,Head of Adults,Third Party Payments,478101,Purchase of Care,03/09/2021,3907741-I-21-1476780,"23,555.20",ESSENTIAL CARE & SUPPORT LTD.
Adult and Health Services,Head of Adults,Third Party Payments,478101,Purchase of Care,03/09/2021,3907741-I-21-1476795,"19,005.00",ESSENTIAL CARE & SUPPORT LTD.
Adult and Health Services,Head of Adults,Third Party Payments,478101,Purchase of Care,03/09/2021,3907741-I-21-1476856,"16,632.00",ESSENTIAL CARE & SUPPORT LTD.
Adult and Health Services,Head of Adults,Third Party Payments,478101,Purchase of Care,03/09/2021,3907741-I-21-1476879,"17,321.60",ESSENTIAL CARE & SUPPORT LTD.
Adult and Health Services,Head of Adults,Third Party Payments,478101,Purchase of Care,03/09/2021,3907741-I-21-1476890,"15,396.00",ESSENTIAL CARE & SUPPORT LTD.
Adult and Health Services,Head of Adults,Third Party Payments,473101,Purchase of Care,03/09/2021,3907743-I-21-1476680,"15,837.40",ETHICARE (DURHAM) LTD.
Adult and Health Services,Head of Adults,Third Party Payments,473101,Purchase of Care,03/09/2021,3907743-I-21-1476726,"4,204.00",ETHICARE (DURHAM) LTD.
Adult and Health Services,Head of Adults,Third Party Payments,478101,Purchase of Care,03/09/2021,3907743-I-21-1476767,"6,852.24",ETHICARE (DURHAM) LTD.
Adult and Health Services,Head of Adults,Third Party Payments,478101,Purchase of Care,03/09/2021,3907743-I-21-1476738,"8,975.64",ETHICARE (DURHAM) LTD.
Adult and Health Services,Head of Adults,Third Party Payments,478101,Purchase of Care,03/09/2021,3907747-I-21-1476703,"19,520.40",FLEXIBLE SUPPORT OPTIONS LTD.
Adult and Health Services,Head of Adults,Third Party Payments,478101,Purchase of Care,03/09/2021,3907748-I-21-1476744,"25,334.40",FOREVER CARE LTD.
Adult and Health Services,Commissioning inc Supporting People,Third Party Payments,442002,Supporting People E442,03/09/2021,3907749-713865,"10,770.24",FOUNDATION.
Adult and Health Services,Head of Adults,Third Party Payments,473101,Purchase of Care,03/09/2021,3907757-I-21-1476753,"41,856.12",GAPPS DAY SERVICES LTD.
Neighbourhoods and Climate Change,Environmental Services,Supplies and Services,304259,Equipment and Materials,03/09/2021,3908289-8163,"1,664.81",GB SPORT & LEISURE UK LTD.
Neighbourhoods and Climate Change,Environmental Services,Supplies and Services,304999,Equipment and Materials,03/09/2021,3908289-8223,544.00,GB SPORT & LEISURE UK LTD.
Neighbourhoods and Climate Change,Technical Services CM0300,Supplies and Services,304358,Equipment and Materials,03/09/2021,3908294-78900,573.00,GEORGE VARDY HAULAGE.
Dedicated Schools Grant BG0015,DSG Early Years Block,Transfer Payments,510032,School Children,03/09/2021,3908295-27035,"1,933.05",GIANT STEPS LTD.
Dedicated Schools Grant BG0015,DSG Early Years Block,Transfer Payments,510030,School Children,03/09/2021,3908295-27038,"6,363.00",GIANT STEPS LTD.
"Regeneration, Economy and Growth",Corporate Property and Land,Supplies and Services,304221,Equipment and Materials,03/09/2021,3908297-205301,"7,256.00",GLOBAL LIFT EQUIPMENT LTD.
"Regeneration, Economy and Growth",Corporate Property and Land,Premises,106080,Centrally Controlled Rep and Maint,03/09/2021,3908298-9401,"1,047.42",GREEN TEAM PARTNERSHIP.
"Regeneration, Economy and Growth",Culture Sport and Tourism,Premises,145023,Cleaning and Domestic Supplies,03/09/2021,3908299-06/136588,"1,827.02",GREENHAM TRADING LTD.
"Regeneration, Economy and Growth",Culture Sport and Tourism,Premises,145023,Cleaning and Domestic Supplies,03/09/2021,3908299-06/136572,"1,649.96",GREENHAM TRADING LTD.
Adult and Health Services,Head of Adults,Third Party Payments,473101,Purchase of Care,03/09/2021,3907769-I-21-1476595,"4,646.40",GROWING TOGETHER DURHAM LTD.
Adult and Health Services,Head of Adults,Third Party Payments,473101,Purchase of Care,03/09/2021,3907769-I-21-1476691,"3,101.52",GROWING TOGETHER DURHAM LTD.
Adult and Health Services,Commissioning inc Supporting People,Third Party Payments,441001,Supporting People E441,03/09/2021,3907772-714775,"13,396.05",HARBOUR SUPPORT SERVICES.
Adult and Health Services,Head of Adults,Third Party Payments,473101,Purchase of Care,03/09/2021,3907775-I-21-1476579,"9,529.32",HASWELL & DISTRICT MENCAP SOCIETY.
Adult and Health Services,Head of Adults,Third Party Payments,478101,Purchase of Care,03/09/2021,3907781-I-21-1476777,"8,460.00",HIGHLEA CARE LTD.
Adult and Health Services,Head of Adults,Third Party Payments,478101,Purchase of Care,03/09/2021,3907781-I-21-1476583,"1,072.44",HIGHLEA CARE LTD.
Adult and Health Services,Head of Adults,Third Party Payments,478101,Purchase of Care,03/09/2021,3907781-I-21-1476585,"7,509.92",HIGHLEA CARE LTD.
Adult and Health Services,Head of Adults,Third Party Payments,478101,Purchase of Care,03/09/2021,3907781-I-21-1476592,"3,600.00",HIGHLEA CARE LTD.
Adult and Health Services,Head of Adults,Third Party Payments,478101,Purchase of Care,03/09/2021,3907781-I-21-1476628,"5,376.00",HIGHLEA CARE LTD.
Adult and Health Services,Head of Adults,Third Party Payments,478101,Purchase of Care,03/09/2021,3907781-I-21-1476629,"15,276.88",HIGHLEA CARE LTD.
Adult and Health Services,Head of Adults,Third Party Payments,478101,Purchase of Care,03/09/2021,3907781-I-21-1476682,"13,788.00",HIGHLEA CARE LTD.
Adult and Health Services,Head of Adults,Third Party Payments,478101,Purchase of Care,03/09/2021,3907781-I-21-1476801,"15,735.60",HIGHLEA CARE LTD.
Adult and Health Services,Head of Adults,Third Party Payments,478101,Purchase of Care,03/09/2021,3907781-I-21-1476837,"7,194.88",HIGHLEA CARE LTD.
Adult and Health Services,Head of Adults,Third Party Payments,478101,Purchase of Care,03/09/2021,3907781-I-21-1476865,"1,200.00",HIGHLEA CARE LTD.
Adult and Health Services,Head of Adults,Third Party Payments,478101,Purchase of Care,03/09/2021,3907781-I-21-1476882,"14,997.60",HIGHLEA CARE LTD.
Adult and Health Services,Head of Adults,Third Party Payments,478101,Purchase of Care,03/09/2021,3907782-I-21-1476576,"9,016.32",HIGHLEA CARE LTD.
Adult and Health Services,Head of Adults,Third Party Payments,478101,Purchase of Care,03/09/2021,3907781-I-21-1476757,"47,933.72",HIGHLEA CARE LTD.
Adult and Health Services,Head of Adults,Third Party Payments,478101,Purchase of Care,03/09/2021,3907781-I-21-1476802,"15,583.24",HIGHLEA CARE LTD.
Adult and Health Services,Head of Adults,Third Party Payments,478101,Purchase of Care,03/09/2021,3907781-I-21-1476582,"1,328.48",HIGHLEA CARE LTD.
Neighbourhoods and Climate Change,Technical Services CM0300,Third Party Payments,430100,Rendered by Private Contractors,03/09/2021,3908303-3280,"5,236.00",HIGHWAY CONSTRUCTION SERVICES LTD.
Adult and Health Services,Head of Adults,Third Party Payments,478101,Purchase of Care,03/09/2021,3907784-I-21-1476807,"1,260.00",HOME GROUP LTD FORMERLY STONHAM HOUSING ASSOCIATION LTD.
Adult and Health Services,Commissioning inc Supporting People,Third Party Payments,441001,Supporting People E441,03/09/2021,3907784-703795,"280,290.03",HOME GROUP LTD FORMERLY STONHAM HOUSING ASSOCIATION LTD.
Adult and Health Services,Head of Adults,Third Party Payments,478101,Purchase of Care,03/09/2021,3907785-I-21-1476861,735.00,HOME GROUP LTD.
Adult and Health Services,Commissioning inc Supporting People,Third Party Payments,442002,Supporting People E442,03/09/2021,3907786-714829,"24,857.49",HUMANKIND CHARITY.
Neighbourhoods and Climate Change,Technical Services CM0300,Stock A926,926900,Stock in hand-Inventory system,03/09/2021,3908305-153191,"11,677.32",HYDRAM ENGINEERING LTD.
Children and Young Peoples Services,Head of Early Help Inclusion & Vulnerable Children.,Premises,108099,Service Repairs and Maintenance,03/09/2021,3908306-21742,"4,978.00",HYGIENIC CLEANING COMPANY (UK) LTD.
Children and Young Peoples Services,Head of Early Help Inclusion & Vulnerable Children.,Premises,108099,Service Repairs and Maintenance,03/09/2021,3908306-217421,"3,750.00",HYGIENIC CLEANING COMPANY (UK) LTD.
Neighbourhoods and Climate Change,Environmental Services,Third Party Payments,430100,Rendered by Private Contractors,03/09/2021,3908307-2910,"2,730.00",IAN C LIDDLE T/A IC LIDDLE SERVICES.
Neighbourhoods and Climate Change,Environmental Services,Supplies and Services,338099,Services,03/09/2021,3908307-2907,"6,811.51",IAN C LIDDLE T/A IC LIDDLE SERVICES.
"Regeneration, Economy and Growth",Development and Housing,Fees,901002,Professinal fees,03/09/2021,3908308-8636,"3,300.00",ID PARTNERSHIP NORTHERN.
Adult and Health Services,Head of Adults,Third Party Payments,472101,Purchase of Care,03/09/2021,3907792-I-21-1476736,"7,812.00",INCLUDE `IN` AUTISM.
Adult and Health Services,Head of Adults,Third Party Payments,486020,Service level agreements E486,03/09/2021,3908309-PIG_105597,"22,800.00",INCLUDE `IN` AUTISM.
"Regeneration, Economy and Growth",Corporate Property and Land,Third Party Payments,430100,Rendered by Private Contractors,03/09/2021,3908311-11190,"1,664.85",INGLEFORD SCAFFOLDING LTD.
Neighbourhoods and Climate Change,Technical Services CM0300,Supplies and Services,304358,Equipment and Materials,03/09/2021,3908315-5306247,"1,102.50",JA GILSON (AGRICULTURAL CONTRACTORS) LTD.
"Regeneration, Economy and Growth",Corporate Property and Land,Premises,106083,Centrally Controlled Rep and Maint,03/09/2021,3908316-24650,"16,558.43",JC MAINTENANCE SERVICES LTD.
Neighbourhoods and Climate Change,Environmental Services,Premises,106082,Centrally Controlled Rep and Maint,03/09/2021,3908316-24651,"4,121.22",JC MAINTENANCE SERVICES LTD.
Adult and Health Services,Head of Adults,Third Party Payments,473101,Purchase of Care,03/09/2021,3907846-I-21-1476617,"24,586.28",JOURNEY ENTERPRISES LTD.
"Regeneration, Economy and Growth",Culture Sport and Tourism,Supplies and Services,304259,Equipment and Materials,03/09/2021,3908319-115213,738.05,JP LENNARD LTD.
"Regeneration, Economy and Growth",Culture Sport and Tourism,Supplies and Services,304259,Equipment and Materials,03/09/2021,3908319-115196,704.20,JP LENNARD LTD.
Adult and Health Services,Head of Adults,Third Party Payments,472101,Purchase of Care,03/09/2021,3907867-I-21-1476787,"236,896.77",KELLY PARK LTD..
Adult and Health Services,Head of Adults,Third Party Payments,473101,Purchase of Care,03/09/2021,3907888-I-21-1476741,"9,177.00",LION MOUTH COMMUNITY INTEREST COMPANY.
Neighbourhoods and Climate Change,Environmental Services,Construction work A908,908105,Construction work,03/09/2021,3908328-141626,"1,600.00",LUCION ENVIRONMENTAL LLP LTD.
Resources BK0010,Digital and Customer Services,Supplies and Services,342053,Computers and Communications,03/09/2021,3908330-12645178,962.50,MAINTEL EUROPE LTD.
"Regeneration, Economy and Growth",Culture Sport and Tourism,Supplies and Services,304337,Equipment and Materials,03/09/2021,3908333-4236012421,557.60,MARES SPA.
"Regeneration, Economy and Growth",Culture Sport and Tourism,Supplies and Services,304337,Equipment and Materials,03/09/2021,3908333-4236018573,"1,035.50",MARES SPA.
Adult and Health Services,Head of Adults,Third Party Payments,478101,Purchase of Care,03/09/2021,3907947-I-21-1476714,"11,254.80",MEARS EXTRA CARE LTD.
Adult and Health Services,Head of Adults,Third Party Payments,472101,Purchase of Care,03/09/2021,3907954-I-21-1476704,"6,678.00",MENCAP.
Adult and Health Services,Head of Adults,Third Party Payments,478101,Purchase of Care,03/09/2021,3907954-I-21-1476876,"9,142.12",MENCAP.
Adult and Health Services,Head of Adults,Third Party Payments,478101,Purchase of Care,03/09/2021,3907954-I-21-1476624,"2,135.00",MENCAP.
"Regeneration, Economy and Growth",Transport and Contracted Services,Construction work A908,908105,Construction work,03/09/2021,3908336-NEW-BUS-STATION,"133,207.78",MGL DEMOLITION LTD.
Adult and Health Services,Head of Adults,Third Party Payments,472101,Purchase of Care,03/09/2021,3907964-I-21-1476904,"24,673.55",MIDDLETON CARE LTD.
"Regeneration, Economy and Growth",Transport and Contracted Services,Third Party Payments,430106,Rendered by Private Contractors,03/09/2021,3908341-INV-0009,"14,465.60",MOLLY`S TAXIS LTD.
Adult and Health Services,Head of Adults,Third Party Payments,472101,Purchase of Care,03/09/2021,3907972-I-21-1476905,"3,608.25",MONARCH INC LTD T/A YANAH CARE.
Adult and Health Services,Head of Adults,Third Party Payments,473101,Purchase of Care,03/09/2021,3907974-I-21-1476594,"2,474.60",MOVEABLE FEASTS ARTS.
Adult and Health Services,Commissioning inc Supporting People,Third Party Payments,442002,Supporting People E442,03/09/2021,3907975-714905,"1,941.30",MOVING ON HOUSING.
Adult and Health Services,Head of Adults,Third Party Payments,473101,Purchase of Care,03/09/2021,3907976-I-21-1476614,"22,728.26",MR & MRS BURNS.
Adult and Health Services,Head of Adults,Third Party Payments,478101,Purchase of Care,03/09/2021,3908015-I-21-1476847,"4,007.04",MRS L & MR P FINNIGAN T/A SHARED LIVES.
Adult and Health Services,Head of Adults,Third Party Payments,478101,Purchase of Care,03/09/2021,3908028-I-21-1476639,"1,716.00",MVP SUPPORT.
Adult and Health Services,Head of Adults,Third Party Payments,478101,Purchase of Care,03/09/2021,3908029-I-21-1476688,"43,655.44",MY HOMECARE (DURHAM) LTD.
Adult and Health Services,Head of Adults,Third Party Payments,472101,Purchase of Care,03/09/2021,3908030-I-21-1476803,"12,378.85",MYCHOICE HOMECARE LTD.
"Regeneration, Economy and Growth",Development and Housing,Fees,901002,Professinal fees,03/09/2021,3908343-5972,641.25,NAPPER ARCHITECTS LTD.
"Regeneration, Economy and Growth",Corporate Property and Land,Third Party Payments,430100,Rendered by Private Contractors,03/09/2021,3908345-782308,"2,301.00",NATIONWIDE CHIMNEY COMPONENTS LTD.
Children and Young Peoples Services,Head of Education and Skills,Supplies and Services,338035,Services,03/09/2021,3908347-SI00104133,"1,843.00",NCFE.
Adult and Health Services,Head of Adults,Third Party Payments,473101,Purchase of Care,03/09/2021,3908036-I-21-1476892,"15,894.18",NEW STEPS CARE IN THE COMMUNITY LLP.
Adult and Health Services,Head of Adults,Transport,230005,Contract Hire,03/09/2021,3908037-I-21-1326191B,"1,190.10",NEWCROSS HEALTHCARE SOLUTIONS LTD.
Neighbourhoods and Climate Change,Environmental Services,Supplies and Services,304221,Equipment and Materials,03/09/2021,3908352-35944,569.00,NIGEL BUCHANAN T/A PREMIER PARTS UK LTD.
Children and Young Peoples Services,Head of Education and Skills,Supplies and Services,304259,Equipment and Materials,03/09/2021,3908355-INV1458089,779.50,NORMANS (BURTON ON TRENT) LTD.
Adult and Health Services,Head of Adults,Third Party Payments,473101,Purchase of Care,03/09/2021,3908042-I-21-1476630,"54,929.66",NORTH EAST AUTISM SOCIETY.
Adult and Health Services,Head of Adults,Third Party Payments,473101,Purchase of Care,03/09/2021,3908042-I-21-1476814,"2,871.70",NORTH EAST AUTISM SOCIETY.
Adult and Health Services,Head of Adults,Third Party Payments,472101,Purchase of Care,03/09/2021,3908041-I-21-1476610,"7,714.20",NORTH EAST AUTISM SOCIETY.
Adult and Health Services,Head of Adults,Third Party Payments,478101,Purchase of Care,03/09/2021,3908042-753795,"7,014.84",NORTH EAST AUTISM SOCIETY.
Adult and Health Services,Head of Adults,Third Party Payments,478101,Purchase of Care,03/09/2021,3908042-I-21-1476679,"11,855.76",NORTH EAST AUTISM SOCIETY.
Adult and Health Services,Head of Adults,Third Party Payments,478101,Purchase of Care,03/09/2021,3908042-I-21-1476884,"8,926.44",NORTH EAST AUTISM SOCIETY.
Adult and Health Services,Head of Adults,Third Party Payments,478101,Purchase of Care,03/09/2021,3908042-I-21-1476587,"28,368.84",NORTH EAST AUTISM SOCIETY.
Adult and Health Services,Head of Adults,Third Party Payments,478101,Purchase of Care,03/09/2021,3908042-I-21-1476799,"13,295.76",NORTH EAST AUTISM SOCIETY.
Adult and Health Services,Head of Adults,Third Party Payments,478101,Purchase of Care,03/09/2021,3908043-I-21-1476676,660.00,NORTH EAST AUTISM SOCIETY.
Adult and Health Services,Head of Adults,Third Party Payments,473101,Purchase of Care,03/09/2021,3908044-I-21-1476655,"5,181.31",NORTH EAST BEFRIENDING SERVICE CIC.
Adult and Health Services,Head of Adults,Third Party Payments,478101,Purchase of Care,03/09/2021,3908045-I-21-1476812,"1,563.44",NORTHERN LIFE CARE LTD T/A UBU.
Adult and Health Services,Head of Adults,Third Party Payments,470101,Purchase of Care,03/09/2021,3908046-I-21-1308683,"6,155.01",NOVA PAYROLL MANAGEMENT SERVICES LTD T/A PIN POINT RECRUITMENT.
Adult and Health Services,Head of Adults,Third Party Payments,470101,Purchase of Care,03/09/2021,3908046-I-21-1476598,"6,084.20",NOVA PAYROLL MANAGEMENT SERVICES LTD T/A PIN POINT RECRUITMENT.
Neighbourhoods and Climate Change,Environmental Services,Third Party Payments,430100,Rendered by Private Contractors,03/09/2021,3908362-00017509,708.12,NSL LTD.
Adult and Health Services,Head of Adults,Third Party Payments,478101,Purchase of Care,03/09/2021,3908047-I-21-1476577,"9,764.40",OAKLEA TRUST.
Adult and Health Services,Head of Adults,Third Party Payments,478101,Purchase of Care,03/09/2021,3908047-I-21-1476634,"8,479.92",OAKLEA TRUST.
Adult and Health Services,Head of Adults,Third Party Payments,478101,Purchase of Care,03/09/2021,3908047-I-21-1476667,"14,958.00",OAKLEA TRUST.
Adult and Health Services,Head of Adults,Third Party Payments,478101,Purchase of Care,03/09/2021,3908047-I-21-1476669,"16,310.40",OAKLEA TRUST.
Adult and Health Services,Head of Adults,Third Party Payments,478101,Purchase of Care,03/09/2021,3908047-I-21-1476754,"8,736.00",OAKLEA TRUST.
Adult and Health Services,Head of Adults,Third Party Payments,478101,Purchase of Care,03/09/2021,3908047-I-21-1476755,"3,828.00",OAKLEA TRUST.
Adult and Health Services,Head of Adults,Third Party Payments,478101,Purchase of Care,03/09/2021,3908047-I-21-1476813,"17,199.88",OAKLEA TRUST.
Adult and Health Services,Head of Adults,Third Party Payments,478101,Purchase of Care,03/09/2021,3908047-I-21-1476833,"16,946.12",OAKLEA TRUST.
Adult and Health Services,Head of Adults,Third Party Payments,478101,Purchase of Care,03/09/2021,3908047-I-21-1476625,"19,815.00",OAKLEA TRUST.
Adult and Health Services,Head of Adults,Third Party Payments,478101,Purchase of Care,03/09/2021,3908047-I-21-1476798,"23,580.00",OAKLEA TRUST.
Adult and Health Services,Head of Adults,Third Party Payments,478101,Purchase of Care,03/09/2021,3908047-I-21-1476877,"26,256.00",OAKLEA TRUST.
Adult and Health Services,Head of Adults,Third Party Payments,478101,Purchase of Care,03/09/2021,3908047-I-21-1476632,"29,228.84",OAKLEA TRUST.
Adult and Health Services,Head of Adults,Third Party Payments,478101,Purchase of Care,03/09/2021,3908047-I-21-1476670,"13,770.84",OAKLEA TRUST.
Adult and Health Services,Head of Adults,Third Party Payments,478101,Purchase of Care,03/09/2021,3908047-I-21-1476797,"18,676.48",OAKLEA TRUST.
Adult and Health Services,Head of Adults,Third Party Payments,478101,Purchase of Care,03/09/2021,3908047-I-21-1476834,"9,336.00",OAKLEA TRUST.
Adult and Health Services,Head of Adults,Third Party Payments,473101,Purchase of Care,03/09/2021,3908048-I-21-1476656,"4,138.20",OBJECT QUEST LTD.
Neighbourhoods and Climate Change,Environmental Services,Transport,215005,Running Costs of Vehicles,03/09/2021,3908364-795395,"12,457.85",OIL NRG LTD.
Neighbourhoods and Climate Change,Environmental Services,Transport,215022,Running Costs of Vehicles,03/09/2021,3908364-794715,573.80,OIL NRG LTD.
Neighbourhoods and Climate Change,Environmental Services,Transport,215022,Running Costs of Vehicles,03/09/2021,3908364-793254,573.23,OIL NRG LTD.
Adult and Health Services,Head of Adults,Third Party Payments,478101,Purchase of Care,03/09/2021,3908050-I-21-1476668,"10,561.32",OLIVE STONE SUPPORT.
Adult and Health Services,Head of Adults,Third Party Payments,478101,Purchase of Care,03/09/2021,3908050-I-21-1476765,"17,106.64",OLIVE STONE SUPPORT.
"Regeneration, Economy and Growth",Corporate Property and Land,Third Party Payments,430100,Rendered by Private Contractors,03/09/2021,3908368-10911-81,870.25,OPUS BUILDING SERVICES LTD.
Adult and Health Services,Head of Adults,Third Party Payments,472101,Purchase of Care,03/09/2021,3908052-I-21-1476791,"117,490.99",ORCHARD HOME CARE SERVICES LTD.
Adult and Health Services,Head of Adults,Third Party Payments,470101,Purchase of Care,03/09/2021,3908055-I-21-1476828,588.00,OSWALD HOUSE CARE HOME LTD.
Adult and Health Services,Head of Adults,Third Party Payments,470101,Purchase of Care,03/09/2021,3908056-I-21-1476750,"1,881.60",OSWALD HOUSE CARE HOME LTD.
Adult and Health Services,Head of Adults,Third Party Payments,472101,Purchase of Care,03/09/2021,3908078-I-21-1476870,"206,770.98",PERFECT CARE LTD.
Adult and Health Services,Head of Adults,Third Party Payments,473101,Purchase of Care,03/09/2021,3908082-I-21-1476815,"3,339.60",PHOENIX DAY CENTRE CIC.
Adult and Health Services,Public Health CC0450,Third Party Payments,460803,Contract Payments,03/09/2021,3908376-17569/18,"7,327.00",PIONEERING CARE PARTNERSHIP.
Adult and Health Services,Public Health CC0450,Third Party Payments,460803,Contract Payments,03/09/2021,3908376-17568/18,"5,462.92",PIONEERING CARE PARTNERSHIP.
Adult and Health Services,Head of Adults,Third Party Payments,473101,Purchase of Care,03/09/2021,3908084-I-21-1476873,"2,065.49",PIONEERING CARE PARTNERSHIP.
Adult and Health Services,Head of Adults,Third Party Payments,478101,Purchase of Care,03/09/2021,3908085-I-21-1476641,"10,520.16",POSITIVE INDIVIDUAL PROACTIVE SUPPORT LTD.
Adult and Health Services,Head of Adults,Third Party Payments,478101,Purchase of Care,03/09/2021,3908085-I-21-1476862,"5,853.12",POSITIVE INDIVIDUAL PROACTIVE SUPPORT LTD.
Adult and Health Services,Head of Adults,Third Party Payments,478101,Purchase of Care,03/09/2021,3908085-I-21-1476637,"14,113.68",POSITIVE INDIVIDUAL PROACTIVE SUPPORT LTD.
Adult and Health Services,Head of Adults,Third Party Payments,478101,Purchase of Care,03/09/2021,3908085-I-21-1476768,"35,795.08",POSITIVE INDIVIDUAL PROACTIVE SUPPORT LTD.
Adult and Health Services,Head of Adults,Third Party Payments,478101,Purchase of Care,03/09/2021,3908086-I-21-1476769,"18,215.32",POTENSIAL LTD.
Adult and Health Services,Head of Adults,Third Party Payments,478101,Purchase of Care,03/09/2021,3908087-I-21-1476853,"5,305.20",POTENSIAL LTD.
Adult and Health Services,Head of Adults,Third Party Payments,478101,Purchase of Care,03/09/2021,3908088-I-21-1476860,"12,240.00",POTENSIAL LTD.
Adult and Health Services,Head of Adults,Third Party Payments,472101,Purchase of Care,03/09/2021,3908089-I-21-1476660,"154,852.73",PREMIER COMMUNITY CARE LTD.
Adult and Health Services,Head of Adults,Third Party Payments,472101,Purchase of Care,03/09/2021,3908091-I-21-1476638,"9,131.61",PRIORITISING PEOPLE`S LIVES LTD.
Adult and Health Services,Public Health CC0450,Premises,145009,Cleaning and Domestic Supplies,03/09/2021,3908384-INV-3839,"1,165.00",QUALITY CLEANING SERVICES (NORTHERN) LTD.
Adult and Health Services,Head of Adults,Third Party Payments,472101,Purchase of Care,03/09/2021,3908092-I-21-1476605,"2,938.91",QUALITY FIRST CARE SERVICES LTD.
Adult and Health Services,Head of Adults,Third Party Payments,473101,Purchase of Care,03/09/2021,3908098-I-21-1476674,"16,723.52",REAL CARE LTD.
Adult and Health Services,Head of Adults,Third Party Payments,478101,Purchase of Care,03/09/2021,3908099-I-21-1476578,"19,963.80",REAL LIFE OPTIONS.
Adult and Health Services,Head of Adults,Third Party Payments,478101,Purchase of Care,03/09/2021,3908014-I-21-1476819,"4,355.56",REDACTED - PAYMENT TO INDIVIDUAL
Adult and Health Services,Head of Adults,Third Party Payments,472101,Purchase of Care,03/09/2021,3908102-I-21-1476820,"2,215.20",RELIEF PROFESSIONALS GROUP LTD.
Adult and Health Services,Head of Adults,Third Party Payments,478101,Purchase of Care,03/09/2021,3908107-I-21-1476742,"8,903.04",RICHMOND FELLOWSHIP.
Adult and Health Services,Commissioning inc Supporting People,Third Party Payments,441001,Supporting People E441,03/09/2021,3908109-715162,"6,981.36",RICHMOND FELLOWSHIP.
Neighbourhoods and Climate Change,Environmental Services,Third Party Payments,430100,Rendered by Private Contractors,03/09/2021,3908388-762414,939.49,RICKERBY LTD.
Neighbourhoods and Climate Change,Environmental Services,Transport,210057,Repair and Maintenance of Vehicles,03/09/2021,3908388-762658,679.84,RICKERBY LTD.
Adult and Health Services,Head of Adults,Third Party Payments,473101,Purchase of Care,03/09/2021,3908110-I-21-1196176B,800.00,RIDING CENTRE FOR SPECIAL PEOPLE LTD..
Adult and Health Services,Head of Adults,Third Party Payments,473101,Purchase of Care,03/09/2021,3908110-I-21-1308948B,640.00,RIDING CENTRE FOR SPECIAL PEOPLE LTD..
Adult and Health Services,Head of Adults,Third Party Payments,473101,Purchase of Care,03/09/2021,3908110-I-21-1476855,"2,319.63",RIDING CENTRE FOR SPECIAL PEOPLE LTD..
Adult and Health Services,Head of Adults,Third Party Payments,478101,Purchase of Care,03/09/2021,3908112-I-21-1476608,"1,296.76",ROC SOLID LTD.
Adult and Health Services,Head of Adults,Third Party Payments,472101,Purchase of Care,03/09/2021,3908115-I-21-1476781,"1,608.56",ROSEMONT CARE (MEDWAY) LTD.
Adult and Health Services,Head of Adults,Third Party Payments,478101,Purchase of Care,03/09/2021,3908123-I-21-1476778,"1,144.52",SALVATION ARMY HOUSING ASSOCIATION (SAHA).
Adult and Health Services,Head of Adults,Third Party Payments,478101,Purchase of Care,03/09/2021,3908128-I-21-1308831,"1,800.00",SANCTUARY HOME CARE LTD.
Adult and Health Services,Head of Adults,Third Party Payments,478101,Purchase of Care,03/09/2021,3908128-I-21-1476746,"1,800.00",SANCTUARY HOME CARE LTD.
Adult and Health Services,Head of Adults,Third Party Payments,472101,Purchase of Care,03/09/2021,3908133-I-21-1476749,"44,721.69",SECOND TO NONE CARE LTD.
Adult and Health Services,Head of Adults,Third Party Payments,473101,Purchase of Care,03/09/2021,3908136-I-21-1476872,"11,149.60",SHAW TRUST GARDEN PROJECT.*
Adult and Health Services,Head of Adults,Third Party Payments,472101,Purchase of Care,03/09/2021,3908137-I-21-1476693,"31,551.50",SHEENA MILES CARE SERVICES LTD.
Neighbourhoods and Climate Change,Environmental Services,Third Party Payments,430100,Rendered by Private Contractors,03/09/2021,3908399-220/21/0024325,"1,479.72",SIEMENS FINANCIAL SERVICES LTD.
Adult and Health Services,Commissioning inc Supporting People,Third Party Payments,442002,Supporting People E442,03/09/2021,3908145-715124,"4,690.17",SINGLE HOMELESS ACTION INITIATIVE IN DURHAM LTD (SHAID).
Neighbourhoods and Climate Change,Environmental Services,Premises,108099,Service Repairs and Maintenance,03/09/2021,3908401-1050098,"2,220.83",SKYVIEW SYSTEMS LTD.
Neighbourhoods and Climate Change,Technical Services CM0300,Stock A926,926900,Stock in hand-Inventory system,03/09/2021,3908403-239,"2,805.84",SNAPFAST LTD.
Adult and Health Services,Head of Adults,Third Party Payments,478101,Purchase of Care,03/09/2021,3908148-I-21-1308991,"7,918.80",SOVEREIGN CARE (NORTH EAST) LTD.
Adult and Health Services,Head of Adults,Third Party Payments,478101,Purchase of Care,03/09/2021,3908148-I-21-1476898,"7,918.80",SOVEREIGN CARE (NORTH EAST) LTD.
Adult and Health Services,Head of Adults,Third Party Payments,478101,Purchase of Care,03/09/2021,3908147-I-21-1308778,"6,808.40",SOVEREIGN CARE (NORTH EAST) LTD.
Adult and Health Services,Head of Adults,Third Party Payments,478101,Purchase of Care,03/09/2021,3908147-I-21-1476694,"6,808.40",SOVEREIGN CARE (NORTH EAST) LTD.
Adult and Health Services,Head of Adults,Third Party Payments,478101,Purchase of Care,03/09/2021,3908150-I-21-1476782,"7,910.40",ST ANNES COMMUNITY SERVICES.
Adult and Health Services,Head of Adults,Third Party Payments,478101,Purchase of Care,03/09/2021,3908150-I-21-1476863,"25,840.64",ST ANNES COMMUNITY SERVICES.
Adult and Health Services,Head of Adults,Third Party Payments,478101,Purchase of Care,03/09/2021,3908150-I-21-1476900,"8,075.20",ST ANNES COMMUNITY SERVICES.
Adult and Health Services,Head of Adults,Third Party Payments,478101,Purchase of Care,03/09/2021,3908150-I-21-1476591,"15,745.08",ST ANNES COMMUNITY SERVICES.
Adult and Health Services,Head of Adults,Third Party Payments,478101,Purchase of Care,03/09/2021,3908150-I-21-1476708,"10,180.80",ST ANNES COMMUNITY SERVICES.
Adult and Health Services,Head of Adults,Third Party Payments,478101,Purchase of Care,03/09/2021,3908150-I-21-1476717,"10,180.80",ST ANNES COMMUNITY SERVICES.
Adult and Health Services,Head of Adults,Third Party Payments,478101,Purchase of Care,03/09/2021,3908150-I-21-1476718,"4,875.24",ST ANNES COMMUNITY SERVICES.
Adult and Health Services,Head of Adults,Third Party Payments,478101,Purchase of Care,03/09/2021,3908150-I-21-1476759,"15,271.20",ST ANNES COMMUNITY SERVICES.
Adult and Health Services,Head of Adults,Third Party Payments,478101,Purchase of Care,03/09/2021,3908150-I-21-1476806,"4,875.24",ST ANNES COMMUNITY SERVICES.
Adult and Health Services,Head of Adults,Third Party Payments,478101,Purchase of Care,03/09/2021,3908150-I-21-1476836,"10,180.80",ST ANNES COMMUNITY SERVICES.
Adult and Health Services,Head of Adults,Third Party Payments,478101,Purchase of Care,03/09/2021,3908150-I-21-1476839,"10,180.80",ST ANNES COMMUNITY SERVICES.
Adult and Health Services,Head of Adults,Third Party Payments,478101,Purchase of Care,03/09/2021,3908150-I-21-1476885,"13,899.12",ST ANNES COMMUNITY SERVICES.
Neighbourhoods and Climate Change,Technical Services CM0300,Supplies and Services,304221,Equipment and Materials,03/09/2021,3908407-19010,524.80,STONEGRAVE AGGREGATES LTD.
"Regeneration, Economy and Growth",Corporate Property and Land,Third Party Payments,430100,Rendered by Private Contractors,03/09/2021,3908408-180609,"1,480.00",SUPATINT LTD T/A SUPATINT WINDOW FILMS & BLINDS.
Adult and Health Services,Head of Adults,Third Party Payments,472101,Purchase of Care,03/09/2021,3908160-I-21-1476789,"69,498.12",SUPPORTIVE SRC LTD.
Neighbourhoods and Climate Change,Technical Services CM0300,Construction work A908,908105,Construction work,03/09/2021,3908409-21001545,"3,000.00",SYSTRA LTD.
"Regeneration, Economy and Growth",Corporate Property and Land,Supplies and Services,304221,Equipment and Materials,03/09/2021,3908410-644407,"1,071.04",T CROSSLING & CO LTD.
Adult and Health Services,Commissioning inc Supporting People,Third Party Payments,441001,Supporting People E441,03/09/2021,3908175-704208,"14,246.79",THE CYRENIANS LTD T/A CHANGING LIVES.
Adult and Health Services,Head of Adults,Third Party Payments,473101,Purchase of Care,03/09/2021,3908176-I-21-1476720,"2,830.53",THE HOSPITAL OF GOD AT GREATHAM.
Adult and Health Services,Head of Adults,Third Party Payments,472101,Purchase of Care,03/09/2021,3908177-I-21-1308940,"23,937.72",THE HUMAN SUPPORT GROUP LTD.
Adult and Health Services,Head of Adults,Third Party Payments,472101,Purchase of Care,03/09/2021,3908177-I-21-1476867,"24,867.72",THE HUMAN SUPPORT GROUP LTD.
Adult and Health Services,Head of Adults,Third Party Payments,472101,Purchase of Care,03/09/2021,3908177-I-21-1476697,"159,576.13",THE HUMAN SUPPORT GROUP LTD.
Adult and Health Services,Head of Adults,Third Party Payments,478101,Purchase of Care,03/09/2021,3908178-I-21-1476871,"13,995.00",THE INTEGRATION TRUST LTD.
Adult and Health Services,Head of Adults,Third Party Payments,478101,Purchase of Care,03/09/2021,3908179-I-21-1476712,"27,849.00",THERA NORTH TRADING LTD.
Adult and Health Services,Commissioning inc Supporting People,Third Party Payments,441001,Supporting People E441,03/09/2021,3908180-704585,"26,520.81",THIRTEEN HOUSING GROUP LTD.
Neighbourhoods and Climate Change,Environmental Services,Supplies and Services,304221,Equipment and Materials,03/09/2021,3908417-NSIN00060709,696.00,THOMAS OWEN & SONS (NEWCASTLE) LTD.
Neighbourhoods and Climate Change,Environmental Services,Supplies and Services,304221,Equipment and Materials,03/09/2021,3908417-NSIN00060841,"1,764.00",THOMAS OWEN & SONS (NEWCASTLE) LTD.
Adult and Health Services,Head of Adults,Third Party Payments,473101,Purchase of Care,03/09/2021,3908190-I-21-1476832,"28,332.95",THOMPSON & HOWE LTD.
Adult and Health Services,Head of Adults,Third Party Payments,473101,Purchase of Care,03/09/2021,3908190-I-21-1476672,"22,653.31",THOMPSON & HOWE LTD.
Adult and Health Services,Head of Adults,Third Party Payments,473101,Purchase of Care,03/09/2021,3908190-I-21-1476689,"20,117.60",THOMPSON & HOWE LTD.
Adult and Health Services,Head of Adults,Third Party Payments,473101,Purchase of Care,03/09/2021,3908190-I-21-1476854,"21,326.75",THOMPSON & HOWE LTD.
Adult and Health Services,Head of Adults,Third Party Payments,473101,Purchase of Care,03/09/2021,3908190-I-21-1476611,"33,688.65",THOMPSON & HOWE LTD.
Adult and Health Services,Head of Adults,Third Party Payments,473101,Purchase of Care,03/09/2021,3908190-I-21-1476631,"19,074.36",THOMPSON & HOWE LTD.
Adult and Health Services,Head of Adults,Third Party Payments,473101,Purchase of Care,03/09/2021,3908190-I-21-1476843,"39,038.90",THOMPSON & HOWE LTD.
Adult and Health Services,Head of Adults,Third Party Payments,473101,Purchase of Care,03/09/2021,3908190-I-21-1476878,"43,962.56",THOMPSON & HOWE LTD.
Adult and Health Services,Head of Adults,Third Party Payments,473101,Purchase of Care,03/09/2021,3908191-I-21-1476794,"1,315.20",THORNBECK COLLEGE.
"Regeneration, Economy and Growth",Development and Housing,Cap Exp on Grants & Other Financial Assistance (REFCUS),918501,Exp assets not owned by authority,03/09/2021,3908418-RED-09-2021-005,"4,690.00",TK ACCESS SOLUTIONS LTD.
"Regeneration, Economy and Growth",Development and Housing,Cap Exp on Grants & Other Financial Assistance (REFCUS),918501,Exp assets not owned by authority,03/09/2021,3908418-RED-09-2021-006,"7,476.50",TK ACCESS SOLUTIONS LTD.
Adult and Health Services,Head of Adults,Third Party Payments,472101,Purchase of Care,03/09/2021,3908193-I-21-1476906,"18,878.71",TLC COMMUNITY SERVICES.
Neighbourhoods and Climate Change,Environmental Services,Supplies and Services,304252,Equipment and Materials,03/09/2021,3908419-12022376,850.00,TQ ENVIRONMENTAL LTD.
Children and Young Peoples Services,Head of Education and Skills,Supplies and Services,338089,Services,03/09/2021,3908420-TR211915,"1,410.82",TRIVIUM 21C LTD.
Adult and Health Services,Head of Adults,Third Party Payments,478101,Purchase of Care,03/09/2021,3908198-I-21-1476866,"1,512.00",TURNAROUND HOMES (3 TO 13).
"Regeneration, Economy and Growth",Corporate Property and Land,Third Party Payments,430100,Rendered by Private Contractors,03/09/2021,3908423-16955,"7,068.81",TYNE TEES THERMAL LTD.
"Regeneration, Economy and Growth",Corporate Property and Land,Third Party Payments,430100,Rendered by Private Contractors,03/09/2021,3908423-16967,"1,782.64",TYNE TEES THERMAL LTD.
"Regeneration, Economy and Growth",Corporate Property and Land,Third Party Payments,430100,Rendered by Private Contractors,03/09/2021,3908423-16956,918.40,TYNE TEES THERMAL LTD.
Neighbourhoods and Climate Change,Technical Services CM0300,Supplies and Services,304221,Equipment and Materials,03/09/2021,3908424-225383,990.01,TYNEDALE ROADSTONE LTD.
Adult and Health Services,Head of Adults,Third Party Payments,472101,Purchase of Care,03/09/2021,3908206-I-21-1476659,"29,664.51",VILLAGE CARE LTD.
Adult and Health Services,Head of Adults,Third Party Payments,473101,Purchase of Care,03/09/2021,3908208-I-21-1476575,"6,602.50",VOIDSERVICES LTD.
Adult and Health Services,Head of Adults,Third Party Payments,478101,Purchase of Care,03/09/2021,3908209-I-21-1476721,"24,119.16",VOYAGE 1 LTD.
Adult and Health Services,Head of Adults,Third Party Payments,478101,Purchase of Care,03/09/2021,3908209-I-21-1476763,"9,456.00",VOYAGE 1 LTD.
Adult and Health Services,Head of Adults,Third Party Payments,478101,Purchase of Care,03/09/2021,3908210-I-21-1476864,600.00,WADDINGTON STREET CENTRE LTD.
Adult and Health Services,Commissioning inc Supporting People,Third Party Payments,441001,Supporting People E441,03/09/2021,3908210-704691,"2,400.75",WADDINGTON STREET CENTRE LTD.
Adult and Health Services,Head of Adults,Third Party Payments,473101,Purchase of Care,03/09/2021,3908211-I-21-1476722,"12,827.90",WEAR 1 CARE LTD.
Adult and Health Services,Head of Adults,Third Party Payments,473101,Purchase of Care,03/09/2021,3908212-I-21-1476677,"1,576.52",WEAR VALLEY ANGLING CIC.
Adult and Health Services,Commissioning inc Supporting People,Third Party Payments,441001,Supporting People E441,03/09/2021,3908213-693810,"7,069.32",WEAR VALLEY WOMENS AID LTD.
Adult and Health Services,Head of Adults,Third Party Payments,473101,Purchase of Care,03/09/2021,3908220-I-21-1476623,"8,140.60",WOODCRAFT FOR LANDSCAPES CIC.
"Regeneration, Economy and Growth",Transport and Contracted Services,Supplies and Services,384199,Miscellaneous Expenses,03/09/2021,3908431-64527433,"1,451.00",WSP UK LTD.
Adult and Health Services,Head of Adults,Third Party Payments,478101,Purchase of Care,03/09/2021,3908221-I-21-1476817,"16,455.68",YS SERVICES LTD T/A EMBRACING CARE.
Adult and Health Services,Head of Adults,Third Party Payments,478101,Purchase of Care,03/09/2021,3908221-I-21-1476893,"4,965.48",YS SERVICES LTD T/A EMBRACING CARE.
Adult and Health Services,Head of Adults,Third Party Payments,478101,Purchase of Care,03/09/2021,3908221-I-21-1476600,"17,701.40",YS SERVICES LTD T/A EMBRACING CARE.
Adult and Health Services,Head of Adults,Third Party Payments,478101,Purchase of Care,03/09/2021,3908221-I-21-1476647,"9,358.44",YS SERVICES LTD T/A EMBRACING CARE.
Adult and Health Services,Head of Adults,Third Party Payments,478101,Purchase of Care,03/09/2021,3908221-I-21-1476683,"6,441.02",YS SERVICES LTD T/A EMBRACING CARE.
Adult and Health Services,Head of Adults,Third Party Payments,478101,Purchase of Care,03/09/2021,3908221-I-21-1476732,"12,758.32",YS SERVICES LTD T/A EMBRACING CARE.
Adult and Health Services,Head of Adults,Third Party Payments,478101,Purchase of Care,03/09/2021,3908221-I-21-1476733,"4,821.32",YS SERVICES LTD T/A EMBRACING CARE.
Adult and Health Services,Head of Adults,Third Party Payments,478101,Purchase of Care,03/09/2021,3908221-I-21-1476774,"9,444.13",YS SERVICES LTD T/A EMBRACING CARE.
Adult and Health Services,Head of Adults,Third Party Payments,478101,Purchase of Care,03/09/2021,3908221-I-21-1476850,"19,626.89",YS SERVICES LTD T/A EMBRACING CARE.
Adult and Health Services,Head of Adults,Third Party Payments,478101,Purchase of Care,03/09/2021,3908221-I-21-1476851,"4,657.48",YS SERVICES LTD T/A EMBRACING CARE.
Adult and Health Services,Head of Adults,Third Party Payments,478101,Purchase of Care,03/09/2021,3908221-I-21-1476852,"6,674.73",YS SERVICES LTD T/A EMBRACING CARE.
Adult and Health Services,Head of Adults,Third Party Payments,478101,Purchase of Care,03/09/2021,3908221-I-21-1476599,"7,725.42",YS SERVICES LTD T/A EMBRACING CARE.
Adult and Health Services,Head of Adults,Third Party Payments,478101,Purchase of Care,03/09/2021,3908221-I-21-1476601,"9,811.58",YS SERVICES LTD T/A EMBRACING CARE.
Adult and Health Services,Head of Adults,Third Party Payments,478101,Purchase of Care,03/09/2021,3908221-I-21-1476602,"5,088.68",YS SERVICES LTD T/A EMBRACING CARE.
Adult and Health Services,Head of Adults,Third Party Payments,478101,Purchase of Care,03/09/2021,3908221-I-21-1476642,"9,314.84",YS SERVICES LTD T/A EMBRACING CARE.
Adult and Health Services,Head of Adults,Third Party Payments,478101,Purchase of Care,03/09/2021,3908221-I-21-1476643,"8,526.44",YS SERVICES LTD T/A EMBRACING CARE.
Adult and Health Services,Head of Adults,Third Party Payments,478101,Purchase of Care,03/09/2021,3908221-I-21-1476644,"9,402.14",YS SERVICES LTD T/A EMBRACING CARE.
Adult and Health Services,Head of Adults,Third Party Payments,478101,Purchase of Care,03/09/2021,3908221-I-21-1476728,"11,261.98",YS SERVICES LTD T/A EMBRACING CARE.
Adult and Health Services,Head of Adults,Third Party Payments,478101,Purchase of Care,03/09/2021,3908221-I-21-1476729,"7,818.44",YS SERVICES LTD T/A EMBRACING CARE.
Adult and Health Services,Head of Adults,Third Party Payments,478101,Purchase of Care,03/09/2021,3908221-I-21-1476770,"9,367.03",YS SERVICES LTD T/A EMBRACING CARE.
Adult and Health Services,Head of Adults,Third Party Payments,478101,Purchase of Care,03/09/2021,3908221-I-21-1476771,"2,488.00",YS SERVICES LTD T/A EMBRACING CARE.
Adult and Health Services,Head of Adults,Third Party Payments,478101,Purchase of Care,03/09/2021,3908221-I-21-1476772,"7,282.44",YS SERVICES LTD T/A EMBRACING CARE.
Adult and Health Services,Head of Adults,Third Party Payments,478101,Purchase of Care,03/09/2021,3908221-I-21-1476816,"11,368.04",YS SERVICES LTD T/A EMBRACING CARE.
Adult and Health Services,Head of Adults,Third Party Payments,478101,Purchase of Care,03/09/2021,3908221-I-21-1476848,"2,239.20",YS SERVICES LTD T/A EMBRACING CARE.
Adult and Health Services,Head of Adults,Third Party Payments,478101,Purchase of Care,03/09/2021,3908221-I-21-1476894,"9,684.44",YS SERVICES LTD T/A EMBRACING CARE.
Adult and Health Services,Head of Adults,Third Party Payments,478101,Purchase of Care,03/09/2021,3908221-I-21-1476645,"7,655.58",YS SERVICES LTD T/A EMBRACING CARE.
Adult and Health Services,Head of Adults,Third Party Payments,478101,Purchase of Care,03/09/2021,3908221-I-21-1476646,"5,835.03",YS SERVICES LTD T/A EMBRACING CARE.
Adult and Health Services,Head of Adults,Third Party Payments,478101,Purchase of Care,03/09/2021,3908221-I-21-1476648,"9,057.23",YS SERVICES LTD T/A EMBRACING CARE.
Adult and Health Services,Head of Adults,Third Party Payments,478101,Purchase of Care,03/09/2021,3908221-I-21-1476730,"15,273.99",YS SERVICES LTD T/A EMBRACING CARE.
Adult and Health Services,Head of Adults,Third Party Payments,478101,Purchase of Care,03/09/2021,3908221-I-21-1476731,"7,725.42",YS SERVICES LTD T/A EMBRACING CARE.
Adult and Health Services,Head of Adults,Third Party Payments,478101,Purchase of Care,03/09/2021,3908221-I-21-1476773,"9,541.98",YS SERVICES LTD T/A EMBRACING CARE.
Adult and Health Services,Head of Adults,Third Party Payments,478101,Purchase of Care,03/09/2021,3908221-I-21-1476818,"10,578.98",YS SERVICES LTD T/A EMBRACING CARE.
Adult and Health Services,Head of Adults,Third Party Payments,478101,Purchase of Care,03/09/2021,3908221-I-21-1476849,"8,064.84",YS SERVICES LTD T/A EMBRACING CARE.
Non-Service Specific,Insurances,Expenditure 8INSEX,810001,Insurance Expenditure,03/09/2021,3908434-407000208,"25,776.00",ZURICH INSURANCE PLC.
Neighbourhoods and Climate Change,Environmental Services,Supplies and Services,338066,Services,06/09/2021,3908435-17721,"1,940.00",1ST LINE DEFENCE LTD.
Neighbourhoods and Climate Change,Environmental Services,Supplies and Services,338066,Services,06/09/2021,3908435-17951,970.00,1ST LINE DEFENCE LTD.
Neighbourhoods and Climate Change,Environmental Services,Supplies and Services,338066,Services,06/09/2021,3908435-17950,970.00,1ST LINE DEFENCE LTD.
Adult and Health Services,Head of Adults,Third Party Payments,470101,Purchase of Care,06/09/2021,3908436-UPLIFTPAYMENTPP5-35,"1,523.72",A CHARLES THOMAS (CARE) LTD.
Adult and Health Services,Public Health CC0450,Third Party Payments,460803,Contract Payments,06/09/2021,3908437-INV-1173,"124,855.00",ABL HEALTH LTD.
Adult and Health Services,Head of Adults,Third Party Payments,470101,Purchase of Care,06/09/2021,3908439-UPLIFTPAYMENTPP5-34,"1,274.49",AKARI CARE LTD.
Adult and Health Services,Head of Adults,Third Party Payments,471101,Purchase of Care,06/09/2021,3908440-UPLIFTPAYMENTPP5-56,"1,850.02",AKARI CARE LTD.
Adult and Health Services,Head of Adults,Third Party Payments,470101,Purchase of Care,06/09/2021,3908442-UPLIFTPAYMENTPP5-11,"2,183.77",ALLIANCE CARE (TRENDLEWOOD) LTD.
"Regeneration, Economy and Growth",Corporate Property and Land,Third Party Payments,430100,Rendered by Private Contractors,06/09/2021,3908443-SI18928,"3,350.00",AMBIC LTD.
Adult and Health Services,Head of Adults,Third Party Payments,470101,Purchase of Care,06/09/2021,3908445-UPLIFTPAYMENTPP5-92,"1,250.18",ANCHOR HANOVER GROUP.
Adult and Health Services,Head of Adults,Third Party Payments,470101,Purchase of Care,06/09/2021,3908447-UPLIFTPAYMENTPP5-31,813.65,ASCOT CARE NORTH EAST LTD..
Adult and Health Services,Head of Adults,Third Party Payments,474101,Purchase of Care,06/09/2021,3908448-UPLIFTPAYMENTPP5-42,"1,336.93",BARCHESTER HEALTHCARE HOMES LTD.
Adult and Health Services,Head of Adults,Third Party Payments,470101,Purchase of Care,06/09/2021,3908452-UPLIFTPAYMENTPP5-84,"1,672.43",BONDCARE WILLINGTON LTD.
Adult and Health Services,Head of Adults,Third Party Payments,470101,Purchase of Care,06/09/2021,3908454-UPLIFTPAYMENTPP5-86,"1,730.33",BONDCARE WILLINGTON LTD.
Adult and Health Services,Head of Adults,Third Party Payments,471101,Purchase of Care,06/09/2021,3908453-UPLIFTPAYMENTPP5-85,"1,381.55",BONDCARE WILLINGTON LTD.
"Regeneration, Economy and Growth",Culture Sport and Tourism,Premises,145023,Cleaning and Domestic Supplies,06/09/2021,3908456-22SI2273407,803.00,BRENNTAG UK LTD.
Adult and Health Services,Head of Adults,Third Party Payments,471101,Purchase of Care,06/09/2021,3908457-UPLIFTPAYMENTPP5-36,"1,081.78",BROOMHOUSE CARE LTD.
Adult and Health Services,Head of Adults,Third Party Payments,470101,Purchase of Care,06/09/2021,3908458-UPLIFTPAYMENTPP5-82,763.63,CARE UK COMMUNITY PARTNERSHIPS LTD.
Adult and Health Services,Head of Adults,Third Party Payments,471101,Purchase of Care,06/09/2021,3908459-UPLIFTPAYMENTPP5-81,"1,817.83",CARE UK COMMUNITY PARTNERSHIPS LTD.
Adult and Health Services,Head of Adults,Third Party Payments,470101,Purchase of Care,06/09/2021,3908460-UPLIFTPAYMENTPP5-14,"1,112.19",CAREWELL (HEALTH CARE) LTD.
"Regeneration, Economy and Growth",Corporate Property and Land,Third Party Payments,430100,Rendered by Private Contractors,06/09/2021,3908462-601,"2,504.48",CEILINGS DIRECT LTD.
"Regeneration, Economy and Growth",Corporate Property and Land,Third Party Payments,430100,Rendered by Private Contractors,06/09/2021,3908462-602,"6,515.17",CEILINGS DIRECT LTD.
Neighbourhoods and Climate Change,Environmental Services,Cap Exp on Grants & Other Financial Assistance (REFCUS),918501,Exp assets not owned by authority,06/09/2021,3908465-60880,"1,845.00",CHEVIOT TREES LTD.
Resources BK0010,Finance & Transactional Services,Supplies and Services,338066,Services,06/09/2021,3908468-C/BN222153,"8,814.11",CIVICA UK LTD.
"Regeneration, Economy and Growth",Culture Sport and Tourism,Third Party Payments,430100,Rendered by Private Contractors,06/09/2021,3908470-PSINV05074,"3,434.67",COMPETITION LINE UK LTD T/A LIFESTYLE FITNESS.
Adult and Health Services,Head of Adults,Third Party Payments,474101,Purchase of Care,06/09/2021,3908472-UPLIFTPAYMENTPP5-65,990.77,COUNTRYWIDE CARE HOMES (2) LTD.
Adult and Health Services,Head of Adults,Third Party Payments,470101,Purchase of Care,06/09/2021,3908471-UPLIFTPAYMENTPP5-47,"3,956.27",COUNTRYWIDE CARE HOMES (2) LTD.
Adult and Health Services,Head of Adults,Third Party Payments,471101,Purchase of Care,06/09/2021,3908473-UPLIFTPAYMENTPP5-79,845.24,COUNTRYWIDE CARE HOMES (2) LTD.
Adult and Health Services,Head of Adults,Third Party Payments,474101,Purchase of Care,06/09/2021,3908476-UPLIFTPAYMENTPP5-40,905.71,CRAIGARRAN LTD.
Adult and Health Services,Head of Adults,Third Party Payments,474101,Purchase of Care,06/09/2021,3908477-UPLIFTPAYMENTPP5-25,858.45,CROFT HOUSE (CARE) LTD.
Adult and Health Services,Head of Adults,Third Party Payments,474101,Purchase of Care,06/09/2021,3908478-UPLIFTPAYMENTPP5-5,"2,226.66",CROWN CARE VI LTD.
Adult and Health Services,Head of Adults,Third Party Payments,470101,Purchase of Care,06/09/2021,3908480-UPLIFTPAYMENTPP5-91,758.41,D3 CARE LTD.
Adult and Health Services,Head of Adults,Third Party Payments,470101,Purchase of Care,06/09/2021,3908484-UPLIFTPAYMENTPP5-9,914.13,DEVONSHIRE HOUSE CARE LTD.
Adult and Health Services,Head of Adults,Third Party Payments,471101,Purchase of Care,06/09/2021,3908485-UPLIFTPAYMENTPP5-50,"1,417.49",DIPTON CARE HOME LTD.
Resources - C A C,Centrally Administered costs 069006,Supplies and Services,384899,Miscellaneous Expenses,06/09/2021,3908487-10011330,500.00,DURHAM & DARLINGTON FIRE & RESCUE.
Adult and Health Services,Head of Adults,Third Party Payments,474101,Purchase of Care,06/09/2021,3908488-UPLIFTPAYMENTPP5-74,"1,118.61",DURHAM CARELINE LTD.
Neighbourhoods and Climate Change,Environmental Services,Supplies and Services,384899,Miscellaneous Expenses,06/09/2021,3908490-NEI-EXP-09-2021-001,"19,694.00",DURHAM WILDLIFE TRUST LTD.
"Regeneration, Economy and Growth",Corporate Property and Land,Third Party Payments,430100,Rendered by Private Contractors,06/09/2021,211-1850,"1,080.00",ECO FACILITIES SOLUTIONS LTD.
Non-Service Specific,Non Service Specific-Financing,Central Support and Other Recharges,690900,Unclassified E690,06/09/2021,211-BALANCEWRITEOFF,"1,460.00",ECO FACILITIES SOLUTIONS LTD.
"Regeneration, Economy and Growth",Corporate Property and Land,Supplies and Services,304221,Equipment and Materials,06/09/2021,3908495-059-286603,"6,056.88",EDMUNDSON ELECTRICAL LTD.
Adult and Health Services,Head of Adults,Third Party Payments,470101,Purchase of Care,06/09/2021,3908497-UPLIFTPAYMENTPP5-51,949.31,ELBA CARE LTD.
Children and Young Peoples Services,Head of Education and Skills,Third Party Payments,440999,Other third party payments E440,06/09/2021,3908499-KICK5044718INVOICE000212,941.16,ELLIOTT & TELFORD GARDEN SERVICES LTD.
Neighbourhoods and Climate Change,Environmental Services,Supplies and Services,304221,Equipment and Materials,06/09/2021,3908500-6894746,"12,888.00",ESE WORLD LTD.
Adult and Health Services,Head of Adults,Third Party Payments,470101,Purchase of Care,06/09/2021,3908501-UPLIFTPAYMENTPP5-90,"1,336.53",ESSENTIAL CARE & SUPPORT LTD.
Children and Young Peoples Services,Head of Education and Skills,Supplies and Services,304259,Equipment and Materials,06/09/2021,3908502-303711,"2,573.50",ETAC LTD.
Adult and Health Services,Head of Adults,Third Party Payments,470101,Purchase of Care,06/09/2021,3908504-UPLIFTPAYMENTPP5-75,"1,323.23",FOUR SEASONS (NO 9) LTD.
Adult and Health Services,Head of Adults,Third Party Payments,470101,Purchase of Care,06/09/2021,3908505-UPLIFTPAYMENTPP5-18,913.52,FOUR SEASONS HOMES NO 1 LTD.
Adult and Health Services,Head of Adults,Third Party Payments,474101,Purchase of Care,06/09/2021,3908512-UPLIFTPAYMENTPP5-77,"1,468.26",GAINFORD CARE HOMES LTD.
Adult and Health Services,Head of Adults,Third Party Payments,470101,Purchase of Care,06/09/2021,3908513-UPLIFTPAYMENTPP5-76,"1,409.30",GAINFORD CARE HOMES LTD.
Adult and Health Services,Head of Adults,Third Party Payments,471101,Purchase of Care,06/09/2021,3908509-UPLIFTPAYMENTPP5-78,"1,379.98",GAINFORD CARE HOMES LTD.
Adult and Health Services,Head of Adults,Third Party Payments,471101,Purchase of Care,06/09/2021,3908510-UPLIFTPAYMENTPP5-12,"2,449.96",GAINFORD CARE HOMES LTD.
Adult and Health Services,Head of Adults,Third Party Payments,471101,Purchase of Care,06/09/2021,3908511-UPLIFTPAYMENTPP5-46,"1,615.41",GAINFORD CARE HOMES LTD.
Neighbourhoods and Climate Change,Environmental Services,Supplies and Services,304999,Equipment and Materials,06/09/2021,3908516-8224,"1,219.09",GB SPORT & LEISURE UK LTD.
Neighbourhoods and Climate Change,Environmental Services,Supplies and Services,304221,Equipment and Materials,06/09/2021,3908518-171808,878.88,GUSTHARTS LTD.
Neighbourhoods and Climate Change,Environmental Services,Third Party Payments,430100,Rendered by Private Contractors,06/09/2021,3908519-2108\050,997.50,HALL CONSTRUCTION SERVICES LTD.
Adult and Health Services,Head of Adults,Third Party Payments,470101,Purchase of Care,06/09/2021,3908523-UPLIFTPAYMENTPP5-64,"1,745.84",HC-ONE BEAMISH LTD.
Adult and Health Services,Head of Adults,Third Party Payments,470101,Purchase of Care,06/09/2021,3908524-UPLIFTPAYMENTPP5-62,"1,277.15",HC-ONE BEAMISH LTD.
Adult and Health Services,Head of Adults,Third Party Payments,471101,Purchase of Care,06/09/2021,3908522-UPLIFTPAYMENTPP5-66,"1,151.46",HC-ONE BEAMISH LTD.
Adult and Health Services,Head of Adults,Third Party Payments,471101,Purchase of Care,06/09/2021,3908525-UPLIFTPAYMENTPP5-61,"1,726.20",HC-ONE BEAMISH LTD.
Adult and Health Services,Head of Adults,Third Party Payments,471101,Purchase of Care,06/09/2021,3908526-UPLIFTPAYMENTPP5-52,"2,416.24",HC-ONE BEAMISH LTD.
Adult and Health Services,Head of Adults,Third Party Payments,479140,Purchase of Care,06/09/2021,3908528-SUSTAINABILITYPAYMENT17/11,"6,139.40",HC-ONE LTD.
Adult and Health Services,Head of Adults,Third Party Payments,470101,Purchase of Care,06/09/2021,3908527-UPLIFTPAYMENTPP5-71,"1,008.17",HC-ONE LTD.
Adult and Health Services,Head of Adults,Third Party Payments,470101,Purchase of Care,06/09/2021,3908528-UPLIFTPAYMENTPP5-70,"1,367.91",HC-ONE LTD.
Adult and Health Services,Head of Adults,Third Party Payments,470101,Purchase of Care,06/09/2021,3908529-UPLIFTPAYMENTPP5-53,"1,131.57",HC-ONE LTD.
Adult and Health Services,Head of Adults,Third Party Payments,470101,Purchase of Care,06/09/2021,3908531-UPLIFTPAYMENTPP5-63,"1,089.40",HILL CARE 3 LTD.
Adult and Health Services,Head of Adults,Third Party Payments,470101,Purchase of Care,06/09/2021,3908532-UPLIFTPAYMENTPP5-15,"1,070.14",HILL CARE 3 LTD.
Adult and Health Services,Head of Adults,Third Party Payments,471101,Purchase of Care,06/09/2021,3908538-UPLIFTPAYMENTPP5-24,545.10,IDEAL CARE (NORTH) LTD.
"Regeneration, Economy and Growth",Corporate Property and Land,Third Party Payments,430100,Rendered by Private Contractors,06/09/2021,3908539-10809,"3,247.80",INGLEFORD SCAFFOLDING LTD.
"Regeneration, Economy and Growth",Corporate Property and Land,Third Party Payments,430100,Rendered by Private Contractors,06/09/2021,3908539-11198,"6,709.33",INGLEFORD SCAFFOLDING LTD.
Neighbourhoods and Climate Change,Community Protection,Supplies and Services,342033,Computers and Communications,06/09/2021,3908540-5428369,783.32,INSIGHT DIRECT (UK) LTD.
Neighbourhoods and Climate Change,Technical Services CM0300,Stock A926,926900,Stock in hand-Inventory system,06/09/2021,3908541-798017,"2,366.00",INSTARMAC GROUP PLC.
Neighbourhoods and Climate Change,Environmental Services,Supplies and Services,338066,Services,06/09/2021,3908545-BURSARY-SEPT21,711.88,REDACTED - PAYMENT TO INDIVIDUAL
Neighbourhoods and Climate Change,Environmental Services,Supplies and Services,304221,Equipment and Materials,06/09/2021,3908552-1180703,578.10,JOHNSONS OF WHIXLEY LTD.
"Regeneration, Economy and Growth",Culture Sport and Tourism,Supplies and Services,304259,Equipment and Materials,06/09/2021,3908553-304021,971.25,JORDAN FITNESS LTD.
"Regeneration, Economy and Growth",Corporate Property and Land,Supplies and Services,304221,Equipment and Materials,06/09/2021,3908554-0120/00448063,"5,104.00",JT DOVE LTD.
"Regeneration, Economy and Growth",Corporate Property and Land,Supplies and Services,304221,Equipment and Materials,06/09/2021,3908554-0120/00450357,"5,104.00",JT DOVE LTD.
Adult and Health Services,Head of Adults,Third Party Payments,474101,Purchase of Care,06/09/2021,3908556-UPLIFTPAYMENTPP5-43,668.60,KINGSWAY CARE HOME LTD.
Adult and Health Services,Head of Adults,Third Party Payments,470101,Purchase of Care,06/09/2021,3908558-UPLIFTPAYMENTPP5-83,849.21,LAMBTON HOUSE LTD.
Adult and Health Services,Head of Adults,Third Party Payments,470101,Purchase of Care,06/09/2021,3908562-UPLIFTPAYMENTPP5-32,"1,424.09",LEAZES HALL CARE HOME LTD.
Adult and Health Services,Head of Adults,Third Party Payments,474101,Purchase of Care,06/09/2021,3908563-UPLIFTPAYMENTPP5-87,"1,185.04",LEONARD CHESHIRE DISABILITY.
Children and Young Peoples Services,Head of Education and Skills,Third Party Payments,440999,Other third party payments E440,06/09/2021,3908568-KICK5044718INVOICE000210,716.39,LTC INTERNATIONAL LOGISTICS LTD.
Neighbourhoods and Climate Change,Technical Services CM0300,Supplies and Services,304358,Equipment and Materials,06/09/2021,3908570-MS3072,504.00,M SPENCE SURFACING LTD.
Neighbourhoods and Climate Change,Technical Services CM0300,Supplies and Services,304358,Equipment and Materials,06/09/2021,3908570-MS3076,588.60,M SPENCE SURFACING LTD.
Neighbourhoods and Climate Change,Technical Services CM0300,Supplies and Services,304358,Equipment and Materials,06/09/2021,3908570-MS3077,603.00,M SPENCE SURFACING LTD.
Neighbourhoods and Climate Change,Technical Services CM0300,Supplies and Services,304358,Equipment and Materials,06/09/2021,3908570-MS3079,"1,125.00",M SPENCE SURFACING LTD.
Neighbourhoods and Climate Change,Technical Services CM0300,Supplies and Services,304358,Equipment and Materials,06/09/2021,3908570-MS3089,504.00,M SPENCE SURFACING LTD.
Neighbourhoods and Climate Change,Technical Services CM0300,Supplies and Services,304358,Equipment and Materials,06/09/2021,3908570-MS3095,711.00,M SPENCE SURFACING LTD.
Neighbourhoods and Climate Change,Technical Services CM0300,Supplies and Services,304358,Equipment and Materials,06/09/2021,3908570-MS3099,504.00,M SPENCE SURFACING LTD.
"Regeneration, Economy and Growth",Culture Sport and Tourism,Supplies and Services,384302,Miscellaneous Expenses,06/09/2021,3908571-01/09/21,500.00,MAD ALICE THEATRE COMPANY LTD.
Adult and Health Services,Commissioning inc Supporting People,Third Party Payments,479111,Purchase of Care,06/09/2021,3908572-4828,"11,757.00",MAIN - TAKING AUTISM PERSONALLY.
Adult and Health Services,Head of Adults,Third Party Payments,474101,Purchase of Care,06/09/2021,3908574-UPLIFTPAYMENTPP5-57,"1,445.27",MALHOTRA CARE HOMES LTD.
Children and Young Peoples Services,Head of Education and Skills,Third Party Payments,440999,Other third party payments E440,06/09/2021,3908575-KICK5044718INVOICE000213,"1,010.75",MAPLELEAF SHOPFITTERS LTD.
Adult and Health Services,Head of Adults,Third Party Payments,470101,Purchase of Care,06/09/2021,3908576-UPLIFTPAYMENTPP5-41,"1,456.32",MARIA MALLABAND CARE GROUP LTD.
Adult and Health Services,Head of Adults,Third Party Payments,471101,Purchase of Care,06/09/2021,3908577-UPLIFTPAYMENTPP5-89,613.69,MARIPOSA CARE GROUP LTD.
Adult and Health Services,Head of Adults,Third Party Payments,471101,Purchase of Care,06/09/2021,3908578-UPLIFTPAYMENTPP5-28,"1,619.15",MARIPOSA CARE LTD.
Adult and Health Services,Head of Adults,Third Party Payments,471101,Purchase of Care,06/09/2021,3908580-UPLIFTPAYMENTPP5-94,"1,630.89",MARTON CARE HOMES LTD T/A LANGLEY PARK CARE HOME.
Adult and Health Services,Head of Adults,Third Party Payments,474101,Purchase of Care,06/09/2021,3908581-UPLIFTPAYMENTPP5-93,"1,014.72",MARTON CARE HOMES LTD T/A ST HELENS CARE HOME.
Children and Young Peoples Services,Head of Education and Skills,Supplies and Services,384199,Miscellaneous Expenses,06/09/2021,3908586-INV-2790,"1,375.00",MID NITE EXPRESS.
"Regeneration, Economy and Growth",Corporate Property and Land,Third Party Payments,430100,Rendered by Private Contractors,06/09/2021,3908588-30559/92331978,"1,945.00",MITIE PROPERTY SERVICES (UK) LTD.
Neighbourhoods and Climate Change,Environmental Services,Supplies and Services,384899,Miscellaneous Expenses,06/09/2021,3908595-NEI-EXP-09-2021-002,"6,741.00",NATIONAL TRUST.
"Regeneration, Economy and Growth",Corporate Property and Land,Third Party Payments,430100,Rendered by Private Contractors,06/09/2021,3908596-782316,"2,970.00",NATIONWIDE CHIMNEY COMPONENTS LTD.
"Regeneration, Economy and Growth",Development and Housing,Supplies and Services,336005,Advertising E336,06/09/2021,3908600-36771698,"1,011.05",NEWSQUEST (YORKSHIRE & NORTH EAST) LTD.
"Regeneration, Economy and Growth",Development and Housing,Supplies and Services,336005,Advertising E336,06/09/2021,3908600-36831310,575.85,NEWSQUEST (YORKSHIRE & NORTH EAST) LTD.
"Regeneration, Economy and Growth",Development and Housing,Supplies and Services,336005,Advertising E336,06/09/2021,3908600-36898189,956.65,NEWSQUEST (YORKSHIRE & NORTH EAST) LTD.
"Regeneration, Economy and Growth",Development and Housing,Supplies and Services,336005,Advertising E336,06/09/2021,3908600-36961615,521.45,NEWSQUEST (YORKSHIRE & NORTH EAST) LTD.
Adult and Health Services,Head of Adults,Third Party Payments,470101,Purchase of Care,06/09/2021,3908604-UPLIFTPAYMENTPP5-33,847.32,OBJECT QUEST LTD.
Adult and Health Services,Head of Adults,Third Party Payments,470101,Purchase of Care,06/09/2021,3908611-UPLIFTPAYMENTPP5-60,549.79,PERFECT CARE LTD.
Adult and Health Services,Head of Adults,Third Party Payments,470101,Purchase of Care,06/09/2021,3908615-UPLIFTPAYMENTPP5-54,"1,388.96",POPULAR CARE LTD..
Adult and Health Services,Head of Adults,Third Party Payments,470101,Purchase of Care,06/09/2021,3908617-UPLIFTPAYMENTPP5-44,"1,802.98",PREMIER CARE HOMES LTD.
Adult and Health Services,Head of Adults,Third Party Payments,471101,Purchase of Care,06/09/2021,3908616-UPLIFTPAYMENTPP5-16,779.36,PREMIER CARE HOMES LTD.
"Regeneration, Economy and Growth",Culture Sport and Tourism,Supplies and Services,338099,Services,06/09/2021,3908618-INV-10865,"3,250.00",PTFS EUROPE LTD.
Adult and Health Services,Head of Adults,Third Party Payments,470101,Purchase of Care,06/09/2021,3908620-UPLIFTPAYMENTPP5-38,893.62,RAYSON HOMES LTD.
Adult and Health Services,Head of Adults,Third Party Payments,471101,Purchase of Care,06/09/2021,3908623-UPLIFTPAYMENTPP5-27,"1,009.09",ROBERT PATTINSON.
Adult and Health Services,Head of Adults,Third Party Payments,471101,Purchase of Care,06/09/2021,3908624-UPLIFTPAYMENTPP5-58,"1,470.85",ROSEBERRY CARE CENTRES GB LTD.
Neighbourhoods and Climate Change,Environmental Services,Supplies and Services,304221,Equipment and Materials,06/09/2021,3908628-2708,"4,050.00",S & R LANDSCAPES.
Neighbourhoods and Climate Change,Technical Services CM0300,Supplies and Services,304358,Equipment and Materials,06/09/2021,3908628-2816,663.00,S & R LANDSCAPES.
Neighbourhoods and Climate Change,Technical Services CM0300,Supplies and Services,304358,Equipment and Materials,06/09/2021,3908628-2818,663.00,S & R LANDSCAPES.
Neighbourhoods and Climate Change,Technical Services CM0300,Supplies and Services,304358,Equipment and Materials,06/09/2021,3908628-2819,777.00,S & R LANDSCAPES.
Neighbourhoods and Climate Change,Technical Services CM0300,Supplies and Services,304358,Equipment and Materials,06/09/2021,3908628-2820,777.00,S & R LANDSCAPES.
Neighbourhoods and Climate Change,Technical Services CM0300,Supplies and Services,304358,Equipment and Materials,06/09/2021,3908628-2822,966.50,S & R LANDSCAPES.
Neighbourhoods and Climate Change,Technical Services CM0300,Supplies and Services,304358,Equipment and Materials,06/09/2021,3908628-2824,"1,006.50",S & R LANDSCAPES.
"Regeneration, Economy and Growth",Corporate Property and Land,Supplies and Services,338078,Services,06/09/2021,3908631-14419,"1,125.00",SAFEGUARD SECURITY (NE) LTD.
"Regeneration, Economy and Growth",Corporate Property and Land,Third Party Payments,430100,Rendered by Private Contractors,06/09/2021,3908632-55680,"4,071.80",SAFETY SYSTEMS DISTRIBUTION LTD.
Adult and Health Services,Head of Adults,Third Party Payments,474101,Purchase of Care,06/09/2021,3908633-UPLIFTPAYMENTPP5-2,"2,650.20",SANCTUARY CARE (ENGLAND) LTD.
Adult and Health Services,Head of Adults,Third Party Payments,474101,Purchase of Care,06/09/2021,3908636-UPLIFTPAYMENTPP5-45,959.97,SANCTUARY CARE (ENGLAND) LTD.
Adult and Health Services,Head of Adults,Third Party Payments,470101,Purchase of Care,06/09/2021,3908634-UPLIFTPAYMENTPP5-4,"1,315.63",SANCTUARY CARE (ENGLAND) LTD.
Adult and Health Services,Head of Adults,Third Party Payments,470101,Purchase of Care,06/09/2021,3908635-UPLIFTPAYMENTPP5-37,"1,611.23",SANCTUARY CARE (ENGLAND) LTD.
Adult and Health Services,Head of Adults,Third Party Payments,474101,Purchase of Care,06/09/2021,3908639-UPLIFTPAYMENTPP5-26,861.59,SEAHAM CARE LTD.
Adult and Health Services,Head of Adults,Third Party Payments,470101,Purchase of Care,06/09/2021,3908638-UPLIFTPAYMENTPP5-55,862.94,SEAHAM CARE LTD.
Neighbourhoods and Climate Change,Environmental Services,Supplies and Services,384899,Miscellaneous Expenses,06/09/2021,3908640-NEI-EXP-09-2021-004,"5,106.00",SEAHAM HARBOUR CIC.
Adult and Health Services,Head of Adults,Third Party Payments,470101,Purchase of Care,06/09/2021,3908641-UPLIFTPAYMENTPP5-88,"1,584.13",SHAFTESBURY CARE GROUP LTD.
Adult and Health Services,Head of Adults,Third Party Payments,470101,Purchase of Care,06/09/2021,3908643-UPLIFTPAYMENTPP5-20,522.93,SHOTLEY PARK HOMES FOR THE ELDERLY LTD.
"Regeneration, Economy and Growth",Development and Housing,Supplies and Services,384899,Miscellaneous Expenses,06/09/2021,3908649-NEI-EXP-09-2021-005,"10,982.00",SOUTH TYNESIDE COUNCIL.
Adult and Health Services,Head of Adults,Third Party Payments,470101,Purchase of Care,06/09/2021,3908650-UPLIFTPAYMENTPP5-39,"1,094.44",ST ANDREWS MPS LTD.
Adult and Health Services,Head of Adults,Third Party Payments,470101,Purchase of Care,06/09/2021,3908652-UPLIFTPAYMENTPP5-17,"1,471.32",ST PHILIPS CARE LTD.
Adult and Health Services,Head of Adults,Third Party Payments,471101,Purchase of Care,06/09/2021,3908651-UPLIFTPAYMENTPP5-67,"1,852.51",ST PHILIPS CARE LTD.
"Regeneration, Economy and Growth",Culture Sport and Tourism,Supplies and Services,338066,Services,06/09/2021,3908653-NEI-HCL-08-2021-008,"3,480.00",STANLEY EVENTS LTD.
"Regeneration, Economy and Growth",Culture Sport and Tourism,Supplies and Services,338066,Services,06/09/2021,3908653-NEI-HCL-08-2021-009,"3,480.00",STANLEY EVENTS LTD.
"Regeneration, Economy and Growth",Culture Sport and Tourism,Supplies and Services,338066,Services,06/09/2021,3908654-NEI-HCL-08-2021-05,"10,175.00",STANLEY TOWN COUNCIL.*
"Regeneration, Economy and Growth",Corporate Property and Land,Supplies and Services,304221,Equipment and Materials,06/09/2021,3908655-1085341340,895.21,STANNAH LIFT SERVICE LTD.
Adult and Health Services,Head of Adults,Third Party Payments,471101,Purchase of Care,06/09/2021,3908658-UPLIFTPAYMENTPP5-29,617.27,SUNNY OKUKPOLOR HUMPHREYS.
"Regeneration, Economy and Growth",Business Durham CL0850,Premises,108125,Service Repairs and Maintenance,06/09/2021,3908660-19915,800.00,SWINBURNE HORTICULTURAL SERVICES LTD.
Adult and Health Services,Head of Adults,Third Party Payments,474101,Purchase of Care,06/09/2021,3908666-UPLIFTPAYMENTPP5-1,"1,526.18",TAMARIS HEALTHCARE (ENGLAND) LTD.
Adult and Health Services,Head of Adults,Third Party Payments,470101,Purchase of Care,06/09/2021,3908663-UPLIFTPAYMENTPP5-3,"2,417.38",TAMARIS HEALTHCARE (ENGLAND) LTD.
Adult and Health Services,Head of Adults,Third Party Payments,470101,Purchase of Care,06/09/2021,3908664-UPLIFTPAYMENTPP5-10,881.81,TAMARIS HEALTHCARE (ENGLAND) LTD.
Adult and Health Services,Head of Adults,Third Party Payments,470101,Purchase of Care,06/09/2021,3908665-UPLIFTPAYMENTPP5-30,"2,286.07",TAMARIS HEALTHCARE (ENGLAND) LTD.
Neighbourhoods and Climate Change,Technical Services CM0300,Supplies and Services,304221,Equipment and Materials,06/09/2021,3908667-9043929430,975.15,TARMAC TRADING LTD.
Neighbourhoods and Climate Change,Technical Services CM0300,Supplies and Services,304221,Equipment and Materials,06/09/2021,3908667-9043976072,"2,832.78",TARMAC TRADING LTD.
Neighbourhoods and Climate Change,Technical Services CM0300,Supplies and Services,304221,Equipment and Materials,06/09/2021,3908667-9043976073,760.74,TARMAC TRADING LTD.
Neighbourhoods and Climate Change,Technical Services CM0300,Supplies and Services,304221,Equipment and Materials,06/09/2021,3908667-9043990110,673.58,TARMAC TRADING LTD.
Neighbourhoods and Climate Change,Technical Services CM0300,Supplies and Services,304221,Equipment and Materials,06/09/2021,3908667-9044003032,524.07,TARMAC TRADING LTD.
Neighbourhoods and Climate Change,Technical Services CM0300,Supplies and Services,304221,Equipment and Materials,06/09/2021,3908667-9044003033,"1,007.76",TARMAC TRADING LTD.
Neighbourhoods and Climate Change,Technical Services CM0300,Supplies and Services,304221,Equipment and Materials,06/09/2021,3908667-9044010314,"1,524.12",TARMAC TRADING LTD.
Neighbourhoods and Climate Change,Technical Services CM0300,Stock A926,926900,Stock in hand-Inventory system,06/09/2021,3908667-9043961123,876.36,TARMAC TRADING LTD.
Children and Young Peoples Services,Head of Education and Skills,Third Party Payments,440999,Other third party payments E440,06/09/2021,3908672-KICK5044718INVOICE000209,"1,010.75",THE FACE & BODY CLINIC T/A AUTON LTD.
Adult and Health Services,Head of Adults,Third Party Payments,470101,Purchase of Care,06/09/2021,3908675-UPLIFTPAYMENTPP5-48,"1,327.06",THE HAWTHORNS LODGE LTD.
Adult and Health Services,Commissioning inc Supporting People,Supplies and Services,377015,County Durham Development,06/09/2021,3908680-2593A,"4,596.00",THREE MOTION MEDIA LTD.
Neighbourhoods and Climate Change,Technical Services CM0300,Stock A926,926900,Stock in hand-Inventory system,06/09/2021,3908681-105329,"2,914.25",TOTAL RENTAL SOLUTIONS.
Neighbourhoods and Climate Change,Technical Services CM0300,Third Party Payments,430100,Rendered by Private Contractors,06/09/2021,3908682-114321,"31,286.60",TOTAL SURFACE SOLUTIONS LTD.
Adult and Health Services,Head of Adults,Third Party Payments,471101,Purchase of Care,06/09/2021,3908685-UPLIFTPAYMENTPP5-23,"1,451.22",TRIMS GYM LTD.
"Regeneration, Economy and Growth",Corporate Property and Land,Third Party Payments,430100,Rendered by Private Contractors,06/09/2021,3908688-16957,"4,780.27",TYNE TEES THERMAL LTD.
"Regeneration, Economy and Growth",Corporate Property and Land,Third Party Payments,430100,Rendered by Private Contractors,06/09/2021,3908688-16960,"2,745.96",TYNE TEES THERMAL LTD.
Neighbourhoods and Climate Change,Technical Services CM0300,Supplies and Services,304221,Equipment and Materials,06/09/2021,3908689-225382,"1,266.82",TYNEDALE ROADSTONE LTD.
Neighbourhoods and Climate Change,Technical Services CM0300,Supplies and Services,304221,Equipment and Materials,06/09/2021,3908689-225388,"1,525.21",TYNEDALE ROADSTONE LTD.
Neighbourhoods and Climate Change,Technical Services CM0300,Supplies and Services,304221,Equipment and Materials,06/09/2021,3908689-225393,"1,533.13",TYNEDALE ROADSTONE LTD.
Neighbourhoods and Climate Change,Technical Services CM0300,Supplies and Services,304221,Equipment and Materials,06/09/2021,3908689-225402,"1,487.59",TYNEDALE ROADSTONE LTD.
Neighbourhoods and Climate Change,Technical Services CM0300,Supplies and Services,304221,Equipment and Materials,06/09/2021,3908689-225405,"1,063.84",TYNEDALE ROADSTONE LTD.
Neighbourhoods and Climate Change,Environmental Services,Supplies and Services,384899,Miscellaneous Expenses,06/09/2021,3908691-NEI-EXP-09-2021-003,"3,999.00",UNIVERSITY OF NEWCASTLE UPON TYNE.
Neighbourhoods and Climate Change,Environmental Services,Supplies and Services,384899,Miscellaneous Expenses,06/09/2021,3908692-NEI-EXP-09-2021-006,"8,353.00",UNIVERSITY OF SUNDERLAND.
Children and Young Peoples Services,Head of Education and Skills,Third Party Payments,440999,Other third party payments E440,06/09/2021,3908693-KICK5044718INVOICE000208,"1,010.75",VANQUISH HAIR & BEAUTY LTD.
Adult and Health Services,Head of Adults,Third Party Payments,470101,Purchase of Care,06/09/2021,3908701-UPLIFTPAYMENTPP5-13,911.18,WEST HOUSE CARE HOME LTD.
Adult and Health Services,Head of Adults,Third Party Payments,470101,Purchase of Care,06/09/2021,3908702-UPLIFTPAYMENTPP5-22,"1,979.02",WEST LODGE CARE HOMES LTD.
Adult and Health Services,Head of Adults,Third Party Payments,470101,Purchase of Care,06/09/2021,3908704-UPLIFTPAYMENTPP5-6,"1,148.16",WILLIAMS & SPENCELEY LTD.
"Regeneration, Economy and Growth",Corporate Property and Land,Third Party Payments,430100,Rendered by Private Contractors,07/09/2021,3909237-47912139,"3,900.00",ADT FIRE & SECURITY PLC.
Adult and Health Services,Head of Adults,Transport,230005,Contract Hire,07/09/2021,3909241-0048,953.22,AIRPORT TAXIS 4U.
Children and Young Peoples Services,Head of Education and Skills,Transport,230008,Contract Hire,07/09/2021,3909244-00135,822.00,ANNE MARIE HENDERSON T/A HENDERSON HIRE (TAXIS).
"Regeneration, Economy and Growth",Corporate Property and Land,Third Party Payments,430100,Rendered by Private Contractors,07/09/2021,3909247-4945,"4,200.00",APEX ROOFING SPECIALISTS LTD.
"Regeneration, Economy and Growth",Culture Sport and Tourism,Supplies and Services,312013,Newspapers books and periodicals E312,07/09/2021,3909248-6548308,785.21,ASKEWS & HOLTS LIBRARY SERVICES LTD.
"Regeneration, Economy and Growth",Culture Sport and Tourism,Supplies and Services,312013,Newspapers books and periodicals E312,07/09/2021,3909248-6548325,680.49,ASKEWS & HOLTS LIBRARY SERVICES LTD.
"Regeneration, Economy and Growth",Culture Sport and Tourism,Supplies and Services,312013,Newspapers books and periodicals E312,07/09/2021,3909248-6550988,645.90,ASKEWS & HOLTS LIBRARY SERVICES LTD.
"Regeneration, Economy and Growth",Culture Sport and Tourism,Supplies and Services,312013,Newspapers books and periodicals E312,07/09/2021,3909248-6551030,679.37,ASKEWS & HOLTS LIBRARY SERVICES LTD.
"Regeneration, Economy and Growth",Culture Sport and Tourism,Supplies and Services,312017,Newspapers books and periodicals E312,07/09/2021,3909248-6548184,509.03,ASKEWS & HOLTS LIBRARY SERVICES LTD.
"Regeneration, Economy and Growth",Culture Sport and Tourism,Supplies and Services,312017,Newspapers books and periodicals E312,07/09/2021,3909248-6551046,626.13,ASKEWS & HOLTS LIBRARY SERVICES LTD.
Neighbourhoods and Climate Change,Environmental Services,Transport,210057,Repair and Maintenance of Vehicles,07/09/2021,3909250-IN0402894,664.95,ATE (UK) LTD.
Adult and Health Services,Head of Adults,Transport,230005,Contract Hire,07/09/2021,3909251-DCC5AUGUST21,"1,324.68",ATLAS TAXIS BISHOP AUCKLAND.
Adult and Health Services,Head of Adults,Transport,230005,Contract Hire,07/09/2021,3909251-DCC13AUG2021,"1,048.32",ATLAS TAXIS BISHOP AUCKLAND.
Neighbourhoods and Climate Change,Environmental Services,Transport,210057,Repair and Maintenance of Vehicles,07/09/2021,3909256-35208006,"1,598.76",BELL TRUCK SALES LTD T/A BELL TRUCK & VAN.
Neighbourhoods and Climate Change,Environmental Services,Transport,210057,Repair and Maintenance of Vehicles,07/09/2021,3909256-35208372,"1,179.77",BELL TRUCK SALES LTD T/A BELL TRUCK & VAN.
Neighbourhoods and Climate Change,Environmental Services,Transport,210057,Repair and Maintenance of Vehicles,07/09/2021,3909256-35208429,953.55,BELL TRUCK SALES LTD T/A BELL TRUCK & VAN.
Adult and Health Services,Commissioning inc Supporting People,Third Party Payments,479111,Purchase of Care,07/09/2021,3909257-DHP0113,"103,614.13",BERNICIA GROUP LTD.*
"Regeneration, Economy and Growth",Business Durham CL0850,Supplies and Services,336005,Advertising E336,07/09/2021,3909260-758,"2,825.00",BETTER BRAND AGENCY LTD.
Neighbourhoods and Climate Change,Environmental Services,Transport,210057,Repair and Maintenance of Vehicles,07/09/2021,3909263-56594,516.30,BJ LUKE NIELSEN DIRECT.
Neighbourhoods and Climate Change,Environmental Services,Construction work A908,908105,Construction work,07/09/2021,3909269-15900,"2,413.60",BROWN & ILLINGWORTH LTD.
"Regeneration, Economy and Growth",Corporate Property and Land,Third Party Payments,430100,Rendered by Private Contractors,07/09/2021,3909269-16091,"2,322.00",BROWN & ILLINGWORTH LTD.
Neighbourhoods and Climate Change,Environmental Services,Transport,210057,Repair and Maintenance of Vehicles,07/09/2021,3909270-62022668,713.88,BUCHER MUNICIPAL LTD.
Resources BK0010,Digital and Customer Services,Supplies and Services,342051,Computers and Communications,07/09/2021,3909273-799086,"20,715.56",BYTES SOFTWARE SERVICES LTD.
Neighbourhoods and Climate Change,Environmental Services,Transport,210057,Repair and Maintenance of Vehicles,07/09/2021,3909277-251436,883.22,CARRS BILLINGTON AGRICULTURE.
Neighbourhoods and Climate Change,Environmental Services,Transport,210057,Repair and Maintenance of Vehicles,07/09/2021,3909277-251438,770.62,CARRS BILLINGTON AGRICULTURE.
Neighbourhoods and Climate Change,Environmental Services,Transport,210057,Repair and Maintenance of Vehicles,07/09/2021,3909277-251440,650.89,CARRS BILLINGTON AGRICULTURE.
Neighbourhoods and Climate Change,Environmental Services,Transport,210057,Repair and Maintenance of Vehicles,07/09/2021,3909277-251441,650.89,CARRS BILLINGTON AGRICULTURE.
Neighbourhoods and Climate Change,Environmental Services,Transport,210057,Repair and Maintenance of Vehicles,07/09/2021,3909277-251442,"2,746.50",CARRS BILLINGTON AGRICULTURE.
Neighbourhoods and Climate Change,Environmental Services,Transport,210057,Repair and Maintenance of Vehicles,07/09/2021,3909277-251615,"1,126.43",CARRS BILLINGTON AGRICULTURE.
Neighbourhoods and Climate Change,Environmental Services,Transport,210057,Repair and Maintenance of Vehicles,07/09/2021,3909277-251874,513.99,CARRS BILLINGTON AGRICULTURE.
Neighbourhoods and Climate Change,Environmental Services,Transport,210057,Repair and Maintenance of Vehicles,07/09/2021,3909277-251947,777.19,CARRS BILLINGTON AGRICULTURE.
Neighbourhoods and Climate Change,Environmental Services,Transport,210057,Repair and Maintenance of Vehicles,07/09/2021,3909277-251618,665.50,CARRS BILLINGTON AGRICULTURE.
Children and Young Peoples Services,Childrens Services Operational Support,Supplies and Services,338026,Services,07/09/2021,3909281-RT134,"1,575.00",CHOICES & VOICES CARE LTD.
"Regeneration, Economy and Growth",Culture Sport and Tourism,Third Party Payments,430131,Rendered by Private Contractors,07/09/2021,3909282-CLC01-4100731665,540.00,CHRISTINE ECCLES (CLASS COACH).
"Regeneration, Economy and Growth",Corporate Property and Land,Third Party Payments,430100,Rendered by Private Contractors,07/09/2021,3909284-CC133046,"1,650.00",CITY CLEAN NORTHERN LTD.
Resources BK0010,Corporate Finance & Commercial Services,Third Party Payments,479112,Purchase of Care,07/09/2021,3909289-22926,"1,718.75",CONNECT HEALTH LTD.
Adult and Health Services,Public Health CC0450,Third Party Payments,460803,Contract Payments,07/09/2021,3909292-3980040038,"37,448.00",COUNTY DURHAM & DARLINGTON NHS FOUNDATION TRUST (CDDFT).
